Workbook

Sheet Форма 4
A1: < 209.15 * 209-08 * 5295.20 > | D1: Документ составлен в ПК РИК (вер.1.3.191022) тел./факс (495) 347-33-01 | J1: Форма 4
B3: «УТВЕРЖДАЮ»
B4: Смета на сумму: | D4: 484 902 руб.
B7: ________________ /______________________ /
B9: «______»____________________ 20___г.
A12: ЛОКАЛЬНАЯ СМЕТА № 5295.20 | Y12: ЛОКАЛЬНАЯ СМЕТА № 5295.20
A13: (Локальный сметный расчет) | Y13: (Локальный сметный расчет)
Y14: на Замена теплотрассы с. Демарино ул. Ленина
B15: Основание: | C15: Дефектный акт
G16: Сметная стоимость: | H16: =TEXT((F548)/1000,"# ##0"&GetSeparator()&"000") -> 484,902 | J16: тыс. руб.
G17: Hормативная трудоемкость: | H17: =TEXT((J538)/1000,"# ##0"&GetSeparator()&"000") -> 0,449 | J17: тыс.чел.ч
G18: Сметная заработная плата: | H18: =TEXT((F535)/1000,"# ##0"&GetSeparator()&"000") -> 5,474 | J18: тыс. руб.
A19: Составлена в базисных ценах на 01.01.2000 по НБ: "ТСНБ-2001 Челябинской области (эталон) с доп. и изм. 5 (приказ Минстроя России № 140/пр)".
A20: С учетом коэф-та индексации на 2 квартал 2020г. (письмо Минстроя России №19271-ИФ/09 от 25.05.20 г.)
A22: № поз | B22: Шифр и № позиции норматива, Наименование работ и затрат, Единица измерения | C22: Количе-ство | D22: Стоим. ед., руб. | F22: Общая стоимость, руб. | I22: Затр. труда рабочих, не зан. обсл. машин, чел-ч
D23: всего | E23: экс. маш. | F23: всего | G23: оплата труда осн. раб. | H23: экс. маш. | I23: обслуж. машины
D24: оплата труда осн. раб. | E24: в т.ч. опл. труда мех. | H24: в т.ч. опл. труда мех. | I24: на ед. | J24: всего
A25: 1 | B25: 2 | C25: 3 | D25: 4 | E25: 5 | F25: 6 | G25: 7 | H25: 8 | I25: 9 | J25: 10
A26: 1. | B26: Е01-01-003-08 Разработка грунта в отвал экскаваторами <драглайн> или <обратная лопата> с ковшом вместимостью 0,65 (0,5-1) м3, группа грунтов 2, 1000 м3 грунта | C26: 0.00975 | D26: ='Базовые цены за единицу'!B6 -> 3420.69 | E26: ='Базовые цены за единицу'!D6 -> 3317.36 | F26: ='Базовые цены с учетом расхода'!B6 -> 33 | G26: ='Базовые цены с учетом расхода'!C6 -> 1 | H26: ='Базовые цены с учетом расхода'!D6 -> 32 | I26: 10.48 | J26: ='Базовые цены с учетом расхода'!I6 -> 0.10218 | K26: sum | L26: IsZPR | N26: ='Базовые цены с учетом расхода'!F6 -> 0
D27: ='Базовые цены за единицу'!C6 -> 103.33 | E27: ='Базовые цены за единицу'!E6 -> 371.83 | H27: ='Базовые цены с учетом расхода'!E6 -> 4 | I27: 22.77 | J27: ='Базовые цены с учетом расхода'!K6 -> 0.2220075 | K27: sum_b | L27: IsZPM
B28: Зарплата рабочих | F28: 1
B29: Эксплуатация машин | F29: 32
B30: в т.ч. зарплата машинистов | F30: 4
B31: Материалы
B32: в т.ч. Вспомогательные материалы от стоимости материалов
B33: в т.ч. Вспомогательные ненормируемые материалы | K33: NenormMatOtZPR | L33: IsMater
B34: в т.ч. Ненормированная з.п. рабочих
B35: в т.ч. Ненормированная стоимость эксплуатации машин
B36: в т.ч. Ненормированная оплата механизаторов
B37: Накладные расходы | C37: 85.5 | F37: =IF('Базовые цены с учетом расхода'!N6>0,'Базовые цены с учетом расхода'!N6,IF('Базовые цены с учетом расхода'!N6<0,'Базовые цены с учетом расхода'!N6,"")) -> 4 | L37: Nakl
B38: НР от ЗПР | C38: 85.5 | F38: =IF('Базовые цены с учетом расхода'!P6>0,'Базовые цены с учетом расхода'!P6,IF('Базовые цены с учетом расхода'!P6<0,'Базовые цены с учетом расхода'!P6,"")) -> 1 | L38: Nakl_ZPR
B39: НР от ЗПМ | C39: 85.5 | F39: =IF('Базовые цены с учетом расхода'!Q6>0,'Базовые цены с учетом расхода'!Q6,IF('Базовые цены с учетом расхода'!Q6<0,'Базовые цены с учетом расхода'!Q6,"")) -> 3 | L39: Nakl_ZPM
B40: Сметная прибыль | C40: 42.5 | F40: =IF('Базовые цены с учетом расхода'!O6>0,'Базовые цены с учетом расхода'!O6,IF('Базовые цены с учетом расхода'!O6<0,'Базовые цены с учетом расхода'!O6,"")) -> 2 | L40: Plan
B41: СП от ЗПР | C41: 42.5 | F41: =IF('Базовые цены с учетом расхода'!R6>0,'Базовые цены с учетом расхода'!R6,IF('Базовые цены с учетом расхода'!R6<0,'Базовые цены с учетом расхода'!R6,"")) ->  | L41: Plan_ZPR
B42: СП от ЗПМ | C42: 42.5 | F42: =IF('Базовые цены с учетом расхода'!S6>0,'Базовые цены с учетом расхода'!S6,IF('Базовые цены с учетом расхода'!S6<0,'Базовые цены с учетом расхода'!S6,"")) -> 2 | L42: Plan_ZPM
B43: Всего с НР и СП | F43: =ROUND(IF(F26="",0,F26)+IF(F37="",0,F37)+IF(F40="",0,F40),0) -> 39
A45: 2. | B45: Е01-02-057-02 Доработка грунта вручную в траншеях глубиной до 2 м без креплений с откосами, группа грунтов 2, 100 м3 грунта | C45: 0.01 | D45: ='Базовые цены за единицу'!B7 -> 1822.13 | E45: ='Базовые цены за единицу'!D7 -> 0 | F45: ='Базовые цены с учетом расхода'!B7 -> 18 | G45: ='Базовые цены с учетом расхода'!C7 -> 18 | H45: ='Базовые цены с учетом расхода'!D7 -> 0 | I45: 184.8 | J45: ='Базовые цены с учетом расхода'!I7 -> 1.848 | K45: sum | L45: IsZPR | N45: ='Базовые цены с учетом расхода'!F7 -> 0
D46: ='Базовые цены за единицу'!C7 -> 1822.13 | E46: ='Базовые цены за единицу'!E7 -> 0 | H46: ='Базовые цены с учетом расхода'!E7 -> 0 | J46: ='Базовые цены с учетом расхода'!K7 -> 0 | K46: sum_b | L46: IsZPM
B47: Зарплата рабочих | F47: 18
B48: Эксплуатация машин
B49: в т.ч. зарплата машинистов
B50: Материалы
B51: в т.ч. Вспомогательные материалы от стоимости материалов
B52: в т.ч. Вспомогательные ненормируемые материалы | K52: NenormMatOtZPR | L52: IsMater
B53: в т.ч. Ненормированная з.п. рабочих
B54: в т.ч. Ненормированная стоимость эксплуатации машин
B55: в т.ч. Ненормированная оплата механизаторов
B56: Накладные расходы | C56: 72 | F56: =IF('Базовые цены с учетом расхода'!N7>0,'Базовые цены с учетом расхода'!N7,IF('Базовые цены с учетом расхода'!N7<0,'Базовые цены с учетом расхода'!N7,"")) -> 13 | L56: Nakl
B57: НР от ЗПР | C57: 72 | F57: =IF('Базовые цены с учетом расхода'!P7>0,'Базовые цены с учетом расхода'!P7,IF('Базовые цены с учетом расхода'!P7<0,'Базовые цены с учетом расхода'!P7,"")) -> 13 | L57: Nakl_ZPR
B58: НР от ЗПМ | F58: =IF('Базовые цены с учетом расхода'!Q7>0,'Базовые цены с учетом расхода'!Q7,IF('Базовые цены с учетом расхода'!Q7<0,'Базовые цены с учетом расхода'!Q7,"")) ->  | L58: Nakl_ZPM
B59: Сметная прибыль | C59: 38.25 | F59: =IF('Базовые цены с учетом расхода'!O7>0,'Базовые цены с учетом расхода'!O7,IF('Базовые цены с учетом расхода'!O7<0,'Базовые цены с учетом расхода'!O7,"")) -> 7 | L59: Plan
B60: СП от ЗПР | C60: 38.25 | F60: =IF('Базовые цены с учетом расхода'!R7>0,'Базовые цены с учетом расхода'!R7,IF('Базовые цены с учетом расхода'!R7<0,'Базовые цены с учетом расхода'!R7,"")) -> 7 | L60: Plan_ZPR
B61: СП от ЗПМ | F61: =IF('Базовые цены с учетом расхода'!S7>0,'Базовые цены с учетом расхода'!S7,IF('Базовые цены с учетом расхода'!S7<0,'Базовые цены с учетом расхода'!S7,"")) ->  | L61: Plan_ZPM
B62: Всего с НР и СП | F62: =ROUND(IF(F45="",0,F45)+IF(F56="",0,F56)+IF(F59="",0,F59),0) -> 38
A64: 3. | B64: Е24-01-020-03 Демонтаж трубопроводов в изоляции из пенополиуретана (ППУ) с изоляцией стыков скорлупами при условном давлении 1,6 МПа, температуре 150°С, диаметр труб 80 мм, 1 км трубопровода | C64: 0.078 | D64: ='Базовые цены за единицу'!B8 -> 11467.66 | E64: ='Базовые цены за единицу'!D8 -> 7233.39 | F64: ='Базовые цены с учетом расхода'!B8 -> 894 | G64: ='Базовые цены с учетом расхода'!C8 -> 330 | H64: ='Базовые цены с учетом расхода'!D8 -> 564 | I64: 343.134 | J64: ='Базовые цены с учетом расхода'!I8 -> 26.764452 | K64: sum | L64: IsZPR | N64: ='Базовые цены с учетом расхода'!F8 -> 0
D65: ='Базовые цены за единицу'!C8 -> 4234.27 | E65: ='Базовые цены за единицу'!E8 -> 611.65 | H65: ='Базовые цены с учетом расхода'!E8 -> 48 | I65: 43.752 | J65: ='Базовые цены с учетом расхода'!K8 -> 3.412656 | K65: sum_b | L65: IsZPM
B66: Зарплата рабочих | F66: 330
B67: Эксплуатация машин | F67: 564
B68: в т.ч. зарплата машинистов | F68: 48
B69: Материалы
B70: в т.ч. Вспомогательные материалы от стоимости материалов
B71: в т.ч. Вспомогательные ненормируемые материалы | K71: NenormMatOtZPR | L71: IsMater
B72: в т.ч. Ненормированная з.п. рабочих
B73: в т.ч. Ненормированная стоимость эксплуатации машин
B74: в т.ч. Ненормированная оплата механизаторов
B75: Накладные расходы | C75: 117 | F75: =IF('Базовые цены с учетом расхода'!N8>0,'Базовые цены с учетом расхода'!N8,IF('Базовые цены с учетом расхода'!N8<0,'Базовые цены с учетом расхода'!N8,"")) -> 442 | L75: Nakl
B76: НР от ЗПР | C76: 117 | F76: =IF('Базовые цены с учетом расхода'!P8>0,'Базовые цены с учетом расхода'!P8,IF('Базовые цены с учетом расхода'!P8<0,'Базовые цены с учетом расхода'!P8,"")) -> 386 | L76: Nakl_ZPR
B77: НР от ЗПМ | C77: 117 | F77: =IF('Базовые цены с учетом расхода'!Q8>0,'Базовые цены с учетом расхода'!Q8,IF('Базовые цены с учетом расхода'!Q8<0,'Базовые цены с учетом расхода'!Q8,"")) -> 56 | L77: Nakl_ZPM
B78: Сметная прибыль | C78: 75.65 | F78: =IF('Базовые цены с учетом расхода'!O8>0,'Базовые цены с учетом расхода'!O8,IF('Базовые цены с учетом расхода'!O8<0,'Базовые цены с учетом расхода'!O8,"")) -> 286 | L78: Plan
B79: СП от ЗПР | C79: 75.65 | F79: =IF('Базовые цены с учетом расхода'!R8>0,'Базовые цены с учетом расхода'!R8,IF('Базовые цены с учетом расхода'!R8<0,'Базовые цены с учетом расхода'!R8,"")) -> 250 | L79: Plan_ZPR
B80: СП от ЗПМ | C80: 75.65 | F80: =IF('Базовые цены с учетом расхода'!S8>0,'Базовые цены с учетом расхода'!S8,IF('Базовые цены с учетом расхода'!S8<0,'Базовые цены с учетом расхода'!S8,"")) -> 36 | L80: Plan_ZPM
B81: Всего с НР и СП | F81: =ROUND(IF(F64="",0,F64)+IF(F75="",0,F75)+IF(F78="",0,F78),0) -> 1622
A83: 4. | B83: Е24-01-020-03 Бесканальная прокладка трубопроводов в изоляции из пенополиуретана (ППУ) с изоляцией стыков скорлупами при условном давлении 1,6 МПа, температуре 150°С, диаметр труб 80 мм, 1 км трубопровода | C83: 0.078 | D83: ='Базовые цены за единицу'!B9 -> 60806.98 | E83: ='Базовые цены за единицу'!D9 -> 12055.65 | F83: ='Базовые цены с учетом расхода'!B9 -> 4742 | G83: ='Базовые цены с учетом расхода'!C9 -> 550 | H83: ='Базовые цены с учетом расхода'!D9 -> 940 | I83: 571.89 | J83: ='Базовые цены с учетом расхода'!I9 -> 44.60742 | K83: sum | L83: IsZPR | N83: ='Базовые цены с учетом расхода'!F9 -> 3252
D84: ='Базовые цены за единицу'!C9 -> 7057.12 | E84: ='Базовые цены за единицу'!E9 -> 1019.42 | H84: ='Базовые цены с учетом расхода'!E9 -> 80 | I84: 72.92 | J84: ='Базовые цены с учетом расхода'!K9 -> 5.68776 | K84: sum_b | L84: IsZPM
B85: Зарплата рабочих | F85: 550
B86: Эксплуатация машин | F86: 940
B87: в т.ч. зарплата машинистов | F87: 80
B88: Материалы | F88: 3252
B89: в т.ч. Вспомогательные материалы от стоимости материалов
B90: в т.ч. Вспомогательные ненормируемые материалы | K90: NenormMatOtZPR | L90: IsMater
B91: в т.ч. Ненормированная з.п. рабочих
B92: в т.ч. Ненормированная стоимость эксплуатации машин
B93: в т.ч. Ненормированная оплата механизаторов
B94: Накладные расходы | C94: 117 | F94: =IF('Базовые цены с учетом расхода'!N9>0,'Базовые цены с учетом расхода'!N9,IF('Базовые цены с учетом расхода'!N9<0,'Базовые цены с учетом расхода'!N9,"")) -> 737 | L94: Nakl
B95: НР от ЗПР | C95: 117 | F95: =IF('Базовые цены с учетом расхода'!P9>0,'Базовые цены с учетом расхода'!P9,IF('Базовые цены с учетом расхода'!P9<0,'Базовые цены с учетом расхода'!P9,"")) -> 644 | L95: Nakl_ZPR
B96: НР от ЗПМ | C96: 117 | F96: =IF('Базовые цены с учетом расхода'!Q9>0,'Базовые цены с учетом расхода'!Q9,IF('Базовые цены с учетом расхода'!Q9<0,'Базовые цены с учетом расхода'!Q9,"")) -> 93 | L96: Nakl_ZPM
B97: Сметная прибыль | C97: 75.65 | F97: =IF('Базовые цены с учетом расхода'!O9>0,'Базовые цены с учетом расхода'!O9,IF('Базовые цены с учетом расхода'!O9<0,'Базовые цены с учетом расхода'!O9,"")) -> 477 | L97: Plan
B98: СП от ЗПР | C98: 75.65 | F98: =IF('Базовые цены с учетом расхода'!R9>0,'Базовые цены с учетом расхода'!R9,IF('Базовые цены с учетом расхода'!R9<0,'Базовые цены с учетом расхода'!R9,"")) -> 416 | L98: Plan_ZPR
B99: СП от ЗПМ | C99: 75.65 | F99: =IF('Базовые цены с учетом расхода'!S9>0,'Базовые цены с учетом расхода'!S9,IF('Базовые цены с учетом расхода'!S9<0,'Базовые цены с учетом расхода'!S9,"")) -> 60 | L99: Plan_ZPM
B100: Всего с НР и СП | F100: =ROUND(IF(F83="",0,F83)+IF(F94="",0,F94)+IF(F97="",0,F97),0) -> 5956
A102: 5. | B102: С103-2019 Труба стальная изолированная пенополиуретаном (ГОСТ 30732-2006) в полиэтиленовой оболочке диаметром 89 мм, толщиной стенки 4 мм, наружным диаметром оболочки 180 мм, м | C102: 78 | D102: ='Базовые цены за единицу'!B10 -> 238.64 | E102: ='Базовые цены за единицу'!D10 -> 0 | F102: ='Базовые цены с учетом расхода'!B10 -> 18614 | G102: ='Базовые цены с учетом расхода'!C10 -> 0 | H102: ='Базовые цены с учетом расхода'!D10 -> 0 | J102: ='Базовые цены с учетом расхода'!I10 -> 0 | K102: sum | L102: IsZPR | N102: ='Базовые цены с учетом расхода'!F10 -> 18614
D103: ='Базовые цены за единицу'!C10 -> 0 | E103: ='Базовые цены за единицу'!E10 -> 0 | H103: ='Базовые цены с учетом расхода'!E10 -> 0 | J103: ='Базовые цены с учетом расхода'!K10 -> 0 | K103: sum_b | L103: IsZPM
B104: Зарплата рабочих
B105: Эксплуатация машин
B106: в т.ч. зарплата машинистов
B107: Материалы | F107: 18614
B108: в т.ч. Вспомогательные материалы от стоимости материалов
B109: в т.ч. Вспомогательные ненормируемые материалы | K109: NenormMatOtZPR | L109: IsMater
B110: в т.ч. Ненормированная з.п. рабочих
B111: в т.ч. Ненормированная стоимость эксплуатации машин
B112: в т.ч. Ненормированная оплата механизаторов
B113: Накладные расходы | F113: =IF('Базовые цены с учетом расхода'!N10>0,'Базовые цены с учетом расхода'!N10,IF('Базовые цены с учетом расхода'!N10<0,'Базовые цены с учетом расхода'!N10,"")) ->  | L113: Nakl
B114: НР от ЗПР | F114: =IF('Базовые цены с учетом расхода'!P10>0,'Базовые цены с учетом расхода'!P10,IF('Базовые цены с учетом расхода'!P10<0,'Базовые цены с учетом расхода'!P10,"")) ->  | L114: Nakl_ZPR
B115: НР от ЗПМ | F115: =IF('Базовые цены с учетом расхода'!Q10>0,'Базовые цены с учетом расхода'!Q10,IF('Базовые цены с учетом расхода'!Q10<0,'Базовые цены с учетом расхода'!Q10,"")) ->  | L115: Nakl_ZPM
B116: Сметная прибыль | F116: =IF('Базовые цены с учетом расхода'!O10>0,'Базовые цены с учетом расхода'!O10,IF('Базовые цены с учетом расхода'!O10<0,'Базовые цены с учетом расхода'!O10,"")) ->  | L116: Plan
B117: СП от ЗПР | F117: =IF('Базовые цены с учетом расхода'!R10>0,'Базовые цены с учетом расхода'!R10,IF('Базовые цены с учетом расхода'!R10<0,'Базовые цены с учетом расхода'!R10,"")) ->  | L117: Plan_ZPR
B118: СП от ЗПМ | F118: =IF('Базовые цены с учетом расхода'!S10>0,'Базовые цены с учетом расхода'!S10,IF('Базовые цены с учетом расхода'!S10<0,'Базовые цены с учетом расхода'!S10,"")) ->  | L118: Plan_ZPM
A120: 6. | B120: Е01-01-033-02 Засыпка траншей и котлованов с перемещением грунта до 5 м бульдозерами мощностью 59 кВт (80 л.с.), группа грунтов 2, 1000 м3 грунта | C120: 0.01075 | D120: ='Базовые цены за единицу'!B11 -> 633.41 | E120: ='Базовые цены за единицу'!D11 -> 633.41 | F120: ='Базовые цены с учетом расхода'!B11 -> 7 | G120: ='Базовые цены с учетом расхода'!C11 -> 0 | H120: ='Базовые цены с учетом расхода'!D11 -> 7 | J120: ='Базовые цены с учетом расхода'!I11 -> 0 | K120: sum | L120: IsZPR | N120: ='Базовые цены с учетом расхода'!F11 -> 0
D121: ='Базовые цены за единицу'!C11 -> 0 | E121: ='Базовые цены за единицу'!E11 -> 124.36 | H121: ='Базовые цены с учетом расхода'!E11 -> 1 | I121: 8.87 | J121: ='Базовые цены с учетом расхода'!K11 -> 0.0953525 | K121: sum_b | L121: IsZPM
B122: Зарплата рабочих
B123: Эксплуатация машин | F123: 7
B124: в т.ч. зарплата машинистов | F124: 1
B125: Материалы
B126: в т.ч. Вспомогательные материалы от стоимости материалов
B127: в т.ч. Вспомогательные ненормируемые материалы | K127: NenormMatOtZPR | L127: IsMater
B128: в т.ч. Ненормированная з.п. рабочих
B129: в т.ч. Ненормированная стоимость эксплуатации машин
B130: в т.ч. Ненормированная оплата механизаторов
B131: Накладные расходы | C131: 85.5 | F131: =IF('Базовые цены с учетом расхода'!N11>0,'Базовые цены с учетом расхода'!N11,IF('Базовые цены с учетом расхода'!N11<0,'Базовые цены с учетом расхода'!N11,"")) -> 1 | L131: Nakl
B132: НР от ЗПР | F132: =IF('Базовые цены с учетом расхода'!P11>0,'Базовые цены с учетом расхода'!P11,IF('Базовые цены с учетом расхода'!P11<0,'Базовые цены с учетом расхода'!P11,"")) ->  | L132: Nakl_ZPR
B133: НР от ЗПМ | C133: 85.5 | F133: =IF('Базовые цены с учетом расхода'!Q11>0,'Базовые цены с учетом расхода'!Q11,IF('Базовые цены с учетом расхода'!Q11<0,'Базовые цены с учетом расхода'!Q11,"")) -> 1 | L133: Nakl_ZPM
B134: Сметная прибыль | C134: 42.5 | F134: =IF('Базовые цены с учетом расхода'!O11>0,'Базовые цены с учетом расхода'!O11,IF('Базовые цены с учетом расхода'!O11<0,'Базовые цены с учетом расхода'!O11,"")) ->  | L134: Plan
B135: СП от ЗПР | F135: =IF('Базовые цены с учетом расхода'!R11>0,'Базовые цены с учетом расхода'!R11,IF('Базовые цены с учетом расхода'!R11<0,'Базовые цены с учетом расхода'!R11,"")) ->  | L135: Plan_ZPR
B136: СП от ЗПМ | C136: 42.5 | F136: =IF('Базовые цены с учетом расхода'!S11>0,'Базовые цены с учетом расхода'!S11,IF('Базовые цены с учетом расхода'!S11<0,'Базовые цены с учетом расхода'!S11,"")) -> 1 | L136: Plan_ZPM
B137: Всего с НР и СП | F137: =ROUND(IF(F120="",0,F120)+IF(F131="",0,F131)+IF(F134="",0,F134),0) -> 8
A141: 7. | B141: Е01-02-031-04 Бурение ям глубиной до 2 м бурильно-крановыми машинами на автомобиле, группа грунтов 2, 100 ям | C141: 0.23 | D141: ='Базовые цены за единицу'!B12 -> 2426.18 | E141: ='Базовые цены за единицу'!D12 -> 2276.31 | F141: ='Базовые цены с учетом расхода'!B12 -> 558 | G141: ='Базовые цены с учетом расхода'!C12 -> 34 | H141: ='Базовые цены с учетом расхода'!D12 -> 524 | I141: 15.2 | J141: ='Базовые цены с учетом расхода'!I12 -> 3.496 | K141: sum | L141: IsZPR | N141: ='Базовые цены с учетом расхода'!F12 -> 0
D142: ='Базовые цены за единицу'!C12 -> 149.87 | E142: ='Базовые цены за единицу'!E12 -> 232.59 | H142: ='Базовые цены с учетом расхода'!E12 -> 53 | I142: 16.59 | J142: ='Базовые цены с учетом расхода'!K12 -> 3.8157 | K142: sum_b | L142: IsZPM
B143: Зарплата рабочих | F143: 34
B144: Эксплуатация машин | F144: 524
B145: в т.ч. зарплата машинистов | F145: 53
B146: Материалы
B147: в т.ч. Вспомогательные материалы от стоимости материалов
B148: в т.ч. Вспомогательные ненормируемые материалы | K148: NenormMatOtZPR | L148: IsMater
B149: в т.ч. Ненормированная з.п. рабочих
B150: в т.ч. Ненормированная стоимость эксплуатации машин
B151: в т.ч. Ненормированная оплата механизаторов
B152: Накладные расходы | C152: 72 | F152: =IF('Базовые цены с учетом расхода'!N12>0,'Базовые цены с учетом расхода'!N12,IF('Базовые цены с учетом расхода'!N12<0,'Базовые цены с учетом расхода'!N12,"")) -> 63 | L152: Nakl
B153: НР от ЗПР | C153: 72 | F153: =IF('Базовые цены с учетом расхода'!P12>0,'Базовые цены с учетом расхода'!P12,IF('Базовые цены с учетом расхода'!P12<0,'Базовые цены с учетом расхода'!P12,"")) -> 25 | L153: Nakl_ZPR
B154: НР от ЗПМ | C154: 72 | F154: =IF('Базовые цены с учетом расхода'!Q12>0,'Базовые цены с учетом расхода'!Q12,IF('Базовые цены с учетом расхода'!Q12<0,'Базовые цены с учетом расхода'!Q12,"")) -> 39 | L154: Nakl_ZPM
B155: Сметная прибыль | C155: 38.25 | F155: =IF('Базовые цены с учетом расхода'!O12>0,'Базовые цены с учетом расхода'!O12,IF('Базовые цены с учетом расхода'!O12<0,'Базовые цены с учетом расхода'!O12,"")) -> 33 | L155: Plan
B156: СП от ЗПР | C156: 38.25 | F156: =IF('Базовые цены с учетом расхода'!R12>0,'Базовые цены с учетом расхода'!R12,IF('Базовые цены с учетом расхода'!R12<0,'Базовые цены с учетом расхода'!R12,"")) -> 13 | L156: Plan_ZPR
B157: СП от ЗПМ | C157: 38.25 | F157: =IF('Базовые цены с учетом расхода'!S12>0,'Базовые цены с учетом расхода'!S12,IF('Базовые цены с учетом расхода'!S12<0,'Базовые цены с учетом расхода'!S12,"")) -> 20 | L157: Plan_ZPM
B158: Всего с НР и СП | F158: =ROUND(IF(F141="",0,F141)+IF(F152="",0,F152)+IF(F155="",0,F155),0) -> 654
A160: 8. | B160: Е06-01-001-13 Устройство фундаментов-столбов бетонных, 100 м3 бетона, бутобетона и железобетона в деле | C160: 0.01 | D160: ='Базовые цены за единицу'!B13 -> 14758.76 | E160: ='Базовые цены за единицу'!D13 -> 1934.99 | F160: ='Базовые цены с учетом расхода'!B13 -> 147 | G160: ='Базовые цены с учетом расхода'!C13 -> 64 | H160: ='Базовые цены с учетом расхода'!D13 -> 19 | I160: 598.26 | J160: ='Базовые цены с учетом расхода'!I13 -> 5.9826 | K160: sum | L160: IsZPR | N160: ='Базовые цены с учетом расхода'!F13 -> 64
D161: ='Базовые цены за единицу'!C13 -> 6449.24 | E161: ='Базовые цены за единицу'!E13 -> 302.95 | H161: ='Базовые цены с учетом расхода'!E13 -> 3 | I161: 18.62 | J161: ='Базовые цены с учетом расхода'!K13 -> 0.1862 | K161: sum_b | L161: IsZPM
B162: Зарплата рабочих | F162: 64
B163: Эксплуатация машин | F163: 19
B164: в т.ч. зарплата машинистов | F164: 3
B165: Материалы | F165: 64
B166: в т.ч. Вспомогательные материалы от стоимости материалов
B167: в т.ч. Вспомогательные ненормируемые материалы | K167: NenormMatOtZPR | L167: IsMater
B168: в т.ч. Ненормированная з.п. рабочих
B169: в т.ч. Ненормированная стоимость эксплуатации машин
B170: в т.ч. Ненормированная оплата механизаторов
B171: Накладные расходы | C171: 94.5 | F171: =IF('Базовые цены с учетом расхода'!N13>0,'Базовые цены с учетом расхода'!N13,IF('Базовые цены с учетом расхода'!N13<0,'Базовые цены с учетом расхода'!N13,"")) -> 63 | L171: Nakl
B172: НР от ЗПР | C172: 94.5 | F172: =IF('Базовые цены с учетом расхода'!P13>0,'Базовые цены с учетом расхода'!P13,IF('Базовые цены с учетом расхода'!P13<0,'Базовые цены с учетом расхода'!P13,"")) -> 61 | L172: Nakl_ZPR
B173: НР от ЗПМ | C173: 94.5 | F173: =IF('Базовые цены с учетом расхода'!Q13>0,'Базовые цены с учетом расхода'!Q13,IF('Базовые цены с учетом расхода'!Q13<0,'Базовые цены с учетом расхода'!Q13,"")) -> 3 | L173: Nakl_ZPM
B174: Сметная прибыль | C174: 55.25 | F174: =IF('Базовые цены с учетом расхода'!O13>0,'Базовые цены с учетом расхода'!O13,IF('Базовые цены с учетом расхода'!O13<0,'Базовые цены с учетом расхода'!O13,"")) -> 37 | L174: Plan
B175: СП от ЗПР | C175: 55.25 | F175: =IF('Базовые цены с учетом расхода'!R13>0,'Базовые цены с учетом расхода'!R13,IF('Базовые цены с учетом расхода'!R13<0,'Базовые цены с учетом расхода'!R13,"")) -> 36 | L175: Plan_ZPR
B176: СП от ЗПМ | C176: 55.25 | F176: =IF('Базовые цены с учетом расхода'!S13>0,'Базовые цены с учетом расхода'!S13,IF('Базовые цены с учетом расхода'!S13<0,'Базовые цены с учетом расхода'!S13,"")) -> 2 | L176: Plan_ZPM
B177: Всего с НР и СП | F177: =ROUND(IF(F160="",0,F160)+IF(F171="",0,F171)+IF(F174="",0,F174),0) -> 247
A179: 9. | B179: С401-0003 Бетон тяжелый, класс В7,5 (М100), м3 | C179: 1.02 | D179: ='Базовые цены за единицу'!B14 -> 551 | E179: ='Базовые цены за единицу'!D14 -> 0 | F179: ='Базовые цены с учетом расхода'!B14 -> 562 | G179: ='Базовые цены с учетом расхода'!C14 -> 0 | H179: ='Базовые цены с учетом расхода'!D14 -> 0 | J179: ='Базовые цены с учетом расхода'!I14 -> 0 | K179: sum | L179: IsZPR | N179: ='Базовые цены с учетом расхода'!F14 -> 562
D180: ='Базовые цены за единицу'!C14 -> 0 | E180: ='Базовые цены за единицу'!E14 -> 0 | H180: ='Базовые цены с учетом расхода'!E14 -> 0 | J180: ='Базовые цены с учетом расхода'!K14 -> 0 | K180: sum_b | L180: IsZPM
B181: =IF(ROUND((1*1.02)/1,9)=C179,"Объем: 1*1,02","") -> Объем: 1*1,02
B182: Зарплата рабочих
B183: Эксплуатация машин
B184: в т.ч. зарплата машинистов
B185: Материалы | F185: 562
B186: в т.ч. Вспомогательные материалы от стоимости материалов
B187: в т.ч. Вспомогательные ненормируемые материалы | K187: NenormMatOtZPR | L187: IsMater
B188: в т.ч. Ненормированная з.п. рабочих
B189: в т.ч. Ненормированная стоимость эксплуатации машин
B190: в т.ч. Ненормированная оплата механизаторов
B191: Накладные расходы | F191: =IF('Базовые цены с учетом расхода'!N14>0,'Базовые цены с учетом расхода'!N14,IF('Базовые цены с учетом расхода'!N14<0,'Базовые цены с учетом расхода'!N14,"")) ->  | L191: Nakl
B192: НР от ЗПР | F192: =IF('Базовые цены с учетом расхода'!P14>0,'Базовые цены с учетом расхода'!P14,IF('Базовые цены с учетом расхода'!P14<0,'Базовые цены с учетом расхода'!P14,"")) ->  | L192: Nakl_ZPR
B193: НР от ЗПМ | F193: =IF('Базовые цены с учетом расхода'!Q14>0,'Базовые цены с учетом расхода'!Q14,IF('Базовые цены с учетом расхода'!Q14<0,'Базовые цены с учетом расхода'!Q14,"")) ->  | L193: Nakl_ZPM
B194: Сметная прибыль | F194: =IF('Базовые цены с учетом расхода'!O14>0,'Базовые цены с учетом расхода'!O14,IF('Базовые цены с учетом расхода'!O14<0,'Базовые цены с учетом расхода'!O14,"")) ->  | L194: Plan
B195: СП от ЗПР | F195: =IF('Базовые цены с учетом расхода'!R14>0,'Базовые цены с учетом расхода'!R14,IF('Базовые цены с учетом расхода'!R14<0,'Базовые цены с учетом расхода'!R14,"")) ->  | L195: Plan_ZPR
B196: СП от ЗПМ | F196: =IF('Базовые цены с учетом расхода'!S14>0,'Базовые цены с учетом расхода'!S14,IF('Базовые цены с учетом расхода'!S14<0,'Базовые цены с учетом расхода'!S14,"")) ->  | L196: Plan_ZPM
A198: 10. | B198: Е09-03-012-12 Монтаж опорных стоек для пролетов до 24 м, 1 т конструкций | C198: 0.63 | D198: ='Базовые цены за единицу'!B15 -> 549.95 | E198: ='Базовые цены за единицу'!D15 -> 299.82 | F198: ='Базовые цены с учетом расхода'!B15 -> 347 | G198: ='Базовые цены с учетом расхода'!C15 -> 47 | H198: ='Базовые цены с учетом расхода'!D15 -> 189 | I198: 6.59 | J198: ='Базовые цены с учетом расхода'!I15 -> 4.1517 | K198: sum | L198: IsZPR | N198: ='Базовые цены с учетом расхода'!F15 -> 111
D199: ='Базовые цены за единицу'!C15 -> 74.73 | E199: ='Базовые цены за единицу'!E15 -> 36.18 | H199: ='Базовые цены с учетом расхода'!E15 -> 23 | I199: 2.09 | J199: ='Базовые цены с учетом расхода'!K15 -> 1.3167 | K199: sum_b | L199: IsZPM
B200: Зарплата рабочих | F200: 47
B201: Эксплуатация машин | F201: 189
B202: в т.ч. зарплата машинистов | F202: 23
B203: Материалы | F203: 111
B204: в т.ч. Вспомогательные материалы от стоимости материалов
B205: в т.ч. Вспомогательные ненормируемые материалы | K205: NenormMatOtZPR | L205: IsMater
B206: в т.ч. Ненормированная з.п. рабочих
B207: в т.ч. Ненормированная стоимость эксплуатации машин
B208: в т.ч. Ненормированная оплата механизаторов
B209: Накладные расходы | C209: 81 | F209: =IF('Базовые цены с учетом расхода'!N15>0,'Базовые цены с учетом расхода'!N15,IF('Базовые цены с учетом расхода'!N15<0,'Базовые цены с учетом расхода'!N15,"")) -> 57 | L209: Nakl
B210: НР от ЗПР | C210: 81 | F210: =IF('Базовые цены с учетом расхода'!P15>0,'Базовые цены с учетом расхода'!P15,IF('Базовые цены с учетом расхода'!P15<0,'Базовые цены с учетом расхода'!P15,"")) -> 38 | L210: Nakl_ZPR
B211: НР от ЗПМ | C211: 81 | F211: =IF('Базовые цены с учетом расхода'!Q15>0,'Базовые цены с учетом расхода'!Q15,IF('Базовые цены с учетом расхода'!Q15<0,'Базовые цены с учетом расхода'!Q15,"")) -> 18 | L211: Nakl_ZPM
B212: Сметная прибыль | C212: 72.25 | F212: =IF('Базовые цены с учетом расхода'!O15>0,'Базовые цены с учетом расхода'!O15,IF('Базовые цены с учетом расхода'!O15<0,'Базовые цены с учетом расхода'!O15,"")) -> 51 | L212: Plan
B213: СП от ЗПР | C213: 72.25 | F213: =IF('Базовые цены с учетом расхода'!R15>0,'Базовые цены с учетом расхода'!R15,IF('Базовые цены с учетом расхода'!R15<0,'Базовые цены с учетом расхода'!R15,"")) -> 34 | L213: Plan_ZPR
B214: СП от ЗПМ | C214: 72.25 | F214: =IF('Базовые цены с учетом расхода'!S15>0,'Базовые цены с учетом расхода'!S15,IF('Базовые цены с учетом расхода'!S15<0,'Базовые цены с учетом расхода'!S15,"")) -> 16 | L214: Plan_ZPM
B215: Всего с НР и СП | F215: =ROUND(IF(F198="",0,F198)+IF(F209="",0,F209)+IF(F212="",0,F212),0) -> 455
A217: 11. | B217: С201-0763 Отдельные конструктивные элементы зданий и сооружений с преобладанием гнутосварных профилей и круглых труб, средняя масса сборочной единицы до 0,1 т, т | C217: 0.63 | D217: ='Базовые цены за единицу'!B16 -> 13810 | E217: ='Базовые цены за единицу'!D16 -> 0 | F217: ='Базовые цены с учетом расхода'!B16 -> 8700 | G217: ='Базовые цены с учетом расхода'!C16 -> 0 | H217: ='Базовые цены с учетом расхода'!D16 -> 0 | J217: ='Базовые цены с учетом расхода'!I16 -> 0 | K217: sum | L217: IsZPR | N217: ='Базовые цены с учетом расхода'!F16 -> 8700
D218: ='Базовые цены за единицу'!C16 -> 0 | E218: ='Базовые цены за единицу'!E16 -> 0 | H218: ='Базовые цены с учетом расхода'!E16 -> 0 | J218: ='Базовые цены с учетом расхода'!K16 -> 0 | K218: sum_b | L218: IsZPM
B219: Зарплата рабочих
... 317 more rows

Sheet Базовые цены за единицу без нач
B1: C1 | C1: C2 | D1: C3 | E1: C4 | F1: C5 | G1: C6 | H1: VOZVR | I1: C8 | J1: C9 | K1: C10 | L1: C11 | M1: C12 | N1: NAKL | O1: PLAN | P1: NAKL_ZPR | Q1: NAKL_ZPM | R1: PLAN_ZPR | S1: PLAN_ZPM | T1: RN11 | U1: RN12 | V1: RN13 | X1: OBORUD_VSPOMOG | Y1: NAKL_PN | Z1: NAKL_VX | AA1: PLAN_PN | AB1: PLAN_VX | AC1: VTCH_PN | AD1: VTCH_VX | AE1: MR_BY_ZPR_VSPOMOG | AF1: NAKL_INC | AG1: PLAN_INC | AH1: RN14 | AI1: RN15 | AJ1: RN16 | AK1: OBORUD
B3: N = < 209.15 * 209-08 * 5295.20 >
B4: Замена теплотрассы с. Демарино ул. Ленина
A6: ='Форма 4'!A26 -> 1. | B6: =ROUND(C6+D6+F6+AF6+AG6,2) -> 3420.69 | C6: 103.33 | D6: 3317.36 | E6: 371.83 | F6: 0 | G6: 0 | H6: 0 | I6: ='Форма 4'!I26 -> 10.48 | J6: 0 | K6: ='Форма 4'!I27 -> 22.77 | L6: 0 | M6: 0 | N6: 406.2618 | O6: 201.943 | P6: 88.34715 | Q6: 317.91465 | R6: 43.91525 | S6: 158.02775 | T6: 0 | U6: 0 | V6: 0 | X6: 0 | Y6: 0 | Z6: 0 | AA6: 0 | AB6: 0 | AC6: 0 | AD6: 0 | AE6: 0 | AH6: 0 | AI6: 0 | AJ6: 0 | AK6: 0
A7: ='Форма 4'!A45 -> 2. | B7: 1518.44 | C7: 1518.44 | D7: 0 | E7: 0 | F7: 0 | G7: 0 | H7: 0 | I7: ='Форма 4'!I45 -> 184.8 | J7: 0 | K7: ='Форма 4'!I46 -> 0 | L7: 0 | M7: 0 | N7: 1093.2768 | O7: 580.8033 | P7: 1093.2768 | Q7: 0 | R7: 580.8033 | S7: 0 | T7: 0 | U7: 0 | V7: 0 | X7: 0 | Y7: 0 | Z7: 0 | AA7: 0 | AB7: 0 | AC7: 0 | AD7: 0 | AE7: 0 | AH7: 0 | AI7: 0 | AJ7: 0 | AK7: 0
A8: ='Форма 4'!A64 -> 3. | B8: 60806.98 | C8: 7057.12 | D8: 12055.65 | E8: 1019.42 | F8: 41694.21 | G8: 0 | H8: 0 | I8: ='Форма 4'!I64 -> 343.134 | J8: 0 | K8: ='Форма 4'!I65 -> 43.752 | L8: 0 | M8: 0 | N8: 9449.5518 | O8: 6109.90251 | P8: 8256.8304 | Q8: 1192.7214 | R8: 5338.71128 | S8: 771.19123 | T8: 0 | U8: 0 | V8: 0 | X8: 0 | Y8: 0 | Z8: 0 | AA8: 0 | AB8: 0 | AC8: 0 | AD8: 0 | AE8: 0 | AH8: 0 | AI8: 0 | AJ8: 0 | AK8: 0
A9: ='Форма 4'!A83 -> 4. | B9: 60806.98 | C9: 7057.12 | D9: 12055.65 | E9: 1019.42 | F9: 41694.21 | G9: 0 | H9: 0 | I9: ='Форма 4'!I83 -> 571.89 | J9: 0 | K9: ='Форма 4'!I84 -> 72.92 | L9: 0 | M9: 0 | N9: 9449.5518 | O9: 6109.90251 | P9: 8256.8304 | Q9: 1192.7214 | R9: 5338.71128 | S9: 771.19123 | T9: 0 | U9: 0 | V9: 0 | X9: 0 | Y9: 0 | Z9: 0 | AA9: 0 | AB9: 0 | AC9: 0 | AD9: 0 | AE9: 0 | AH9: 0 | AI9: 0 | AJ9: 0 | AK9: 0
A10: ='Форма 4'!A102 -> 5. | B10: 238.64 | C10: 0 | D10: 0 | E10: 0 | F10: 238.64 | G10: 233.31 | H10: 0 | I10: ='Форма 4'!I102 -> 0 | J10: 0 | K10: ='Форма 4'!I103 -> 0 | L10: 0 | M10: 0 | N10: 0 | O10: 0 | P10: 0 | Q10: 0 | R10: 0 | S10: 0 | T10: 0 | U10: 0 | V10: 0 | X10: 0 | Y10: 0 | Z10: 0 | AA10: 0 | AB10: 0 | AC10: 0 | AD10: 0 | AE10: 0 | AH10: 0 | AI10: 0 | AJ10: 0 | AK10: 0
A11: ='Форма 4'!A120 -> 6. | B11: 633.41 | C11: 0 | D11: 633.41 | E11: 124.36 | F11: 0 | G11: 0 | H11: 0 | I11: ='Форма 4'!I120 -> 0 | J11: 0 | K11: ='Форма 4'!I121 -> 8.87 | L11: 0 | M11: 0 | N11: 106.3278 | O11: 52.853 | P11: 0 | Q11: 106.3278 | R11: 0 | S11: 52.853 | T11: 0 | U11: 0 | V11: 0 | X11: 0 | Y11: 0 | Z11: 0 | AA11: 0 | AB11: 0 | AC11: 0 | AD11: 0 | AE11: 0 | AH11: 0 | AI11: 0 | AJ11: 0 | AK11: 0
A12: ='Форма 4'!A141 -> 7. | B12: 2426.18 | C12: 149.87 | D12: 2276.31 | E12: 232.59 | F12: 0 | G12: 0 | H12: 0 | I12: ='Форма 4'!I141 -> 15.2 | J12: 0 | K12: ='Форма 4'!I142 -> 16.59 | L12: 0 | M12: 0 | N12: 275.3712 | O12: 146.29095 | P12: 107.9064 | Q12: 167.4648 | R12: 57.325275 | S12: 88.965675 | T12: 0 | U12: 0 | V12: 0 | X12: 0 | Y12: 0 | Z12: 0 | AA12: 0 | AB12: 0 | AC12: 0 | AD12: 0 | AE12: 0 | AH12: 0 | AI12: 0 | AJ12: 0 | AK12: 0
A13: ='Форма 4'!A160 -> 8. | B13: 14758.76 | C13: 6449.24 | D13: 1934.99 | E13: 302.95 | F13: 6374.53 | G13: 0 | H13: 0 | I13: ='Форма 4'!I160 -> 598.26 | J13: 0 | K13: ='Форма 4'!I161 -> 18.62 | L13: 0 | M13: 0 | N13: 6380.81955 | O13: 3730.584975 | P13: 6094.5318 | Q13: 286.28775 | R13: 3563.2051 | S13: 167.379875 | T13: 0 | U13: 0 | V13: 0 | X13: 0 | Y13: 0 | Z13: 0 | AA13: 0 | AB13: 0 | AC13: 0 | AD13: 0 | AE13: 0 | AH13: 0 | AI13: 0 | AJ13: 0 | AK13: 0
A14: ='Форма 4'!A179 -> 9. | B14: 551 | C14: 0 | D14: 0 | E14: 0 | F14: 551 | G14: 454.59 | H14: 0 | I14: ='Форма 4'!I179 -> 0 | J14: 0 | K14: ='Форма 4'!I180 -> 0 | L14: 2450 | M14: 0 | N14: 0 | O14: 0 | P14: 0 | Q14: 0 | R14: 0 | S14: 0 | T14: 0 | U14: 0 | V14: 0 | X14: 0 | Y14: 0 | Z14: 0 | AA14: 0 | AB14: 0 | AC14: 0 | AD14: 0 | AE14: 0 | AH14: 0 | AI14: 0 | AJ14: 0 | AK14: 0
A15: ='Форма 4'!A198 -> 10. | B15: 549.95 | C15: 74.73 | D15: 299.82 | E15: 36.18 | F15: 175.4 | G15: 0 | H15: 0 | I15: ='Форма 4'!I198 -> 6.59 | J15: 0 | K15: ='Форма 4'!I199 -> 2.09 | L15: 0 | M15: 0 | N15: 89.8371 | O15: 80.132475 | P15: 60.5313 | Q15: 29.3058 | R15: 53.992425 | S15: 26.14005 | T15: 0 | U15: 0 | V15: 0 | X15: 0 | Y15: 0 | Z15: 0 | AA15: 0 | AB15: 0 | AC15: 0 | AD15: 0 | AE15: 0 | AH15: 0 | AI15: 0 | AJ15: 0 | AK15: 0
A16: ='Форма 4'!A217 -> 11. | B16: 13810 | C16: 0 | D16: 0 | E16: 0 | F16: 13810 | G16: 13630.05 | H16: 0 | I16: ='Форма 4'!I217 -> 0 | J16: 0 | K16: ='Форма 4'!I218 -> 0 | L16: 1000 | M16: 0 | N16: 0 | O16: 0 | P16: 0 | Q16: 0 | R16: 0 | S16: 0 | T16: 0 | U16: 0 | V16: 0 | X16: 0 | Y16: 0 | Z16: 0 | AA16: 0 | AB16: 0 | AC16: 0 | AD16: 0 | AE16: 0 | AH16: 0 | AI16: 0 | AJ16: 0 | AK16: 0
A17: ='Форма 4'!A235 -> 12. | B17: 331.98 | C17: 71.47 | D17: 10.15 | E17: 0.12 | F17: 250.36 | G17: 0 | H17: 0 | I17: ='Форма 4'!I235 -> 5.31 | J17: 0 | K17: ='Форма 4'!I236 -> 0.01 | L17: 0 | M17: 0 | N17: 57.9879 | O17: 42.59605 | P17: 57.8907 | Q17: 0.0972 | R17: 42.52465 | S17: 0.0714 | T17: 0 | U17: 0 | V17: 0 | X17: 0 | Y17: 0 | Z17: 0 | AA17: 0 | AB17: 0 | AC17: 0 | AD17: 0 | AE17: 0 | AH17: 0 | AI17: 0 | AJ17: 0 | AK17: 0
A18: ='Форма 4'!A255 -> 13. | B18: 439.21 | C18: 43.93 | D18: 6.8 | E18: 0.12 | F18: 388.48 | G18: 0 | H18: 0 | I18: ='Форма 4'!I255 -> 3.83 | J18: 0 | K18: ='Форма 4'!I256 -> 0.01 | L18: 0 | M18: 0 | N18: 35.6805 | O18: 26.20975 | P18: 35.5833 | Q18: 0.0972 | R18: 26.13835 | S18: 0.0714 | T18: 0 | U18: 0 | V18: 0 | X18: 0 | Y18: 0 | Z18: 0 | AA18: 0 | AB18: 0 | AC18: 0 | AD18: 0 | AE18: 0 | AH18: 0 | AI18: 0 | AJ18: 0 | AK18: 0
A19: ='Форма 4'!A275 -> 14. | B19: 21914.95 | C19: 5581.44 | D19: 11594.41 | E19: 1104.69 | F19: 4739.1 | G19: 0 | H19: 0 | I19: ='Форма 4'!I275 -> 459 | J19: 0 | K19: ='Форма 4'!I276 -> 77.85 | L19: 0 | M19: 0 | N19: 7822.7721 | O19: 5058.057345 | P19: 6530.2848 | Q19: 1292.4873 | R19: 4222.35936 | S19: 835.697985 | T19: 0 | U19: 0 | V19: 0 | X19: 0 | Y19: 0 | Z19: 0 | AA19: 0 | AB19: 0 | AC19: 0 | AD19: 0 | AE19: 0 | AH19: 0 | AI19: 0 | AJ19: 0 | AK19: 0
A20: ='Форма 4'!A294 -> 15. | B20: 54.7 | C20: 0 | D20: 0 | E20: 0 | F20: 54.7 | G20: 53.15 | H20: 0 | I20: ='Форма 4'!I294 -> 0 | J20: 0 | K20: ='Форма 4'!I295 -> 0 | L20: 8.39 | M20: 0 | N20: 0 | O20: 0 | P20: 0 | Q20: 0 | R20: 0 | S20: 0 | T20: 0 | U20: 0 | V20: 0 | X20: 0 | Y20: 0 | Z20: 0 | AA20: 0 | AB20: 0 | AC20: 0 | AD20: 0 | AE20: 0 | AH20: 0 | AI20: 0 | AJ20: 0 | AK20: 0
A21: ='Форма 4'!A313 -> 16. | B21: 42.3 | C21: 0 | D21: 0 | E21: 0 | F21: 42.3 | G21: 41.28 | H21: 0 | I21: ='Форма 4'!I313 -> 0 | J21: 0 | K21: ='Форма 4'!I314 -> 0 | L21: 1.43 | M21: 0 | N21: 0 | O21: 0 | P21: 0 | Q21: 0 | R21: 0 | S21: 0 | T21: 0 | U21: 0 | V21: 0 | X21: 0 | Y21: 0 | Z21: 0 | AA21: 0 | AB21: 0 | AC21: 0 | AD21: 0 | AE21: 0 | AH21: 0 | AI21: 0 | AJ21: 0 | AK21: 0
A22: ='Форма 4'!A331 -> 17. | B22: 74.4 | C22: 0 | D22: 0 | E22: 0 | F22: 74.4 | G22: 72.8 | H22: 0 | I22: ='Форма 4'!I331 -> 0 | J22: 0 | K22: ='Форма 4'!I332 -> 0 | L22: 0 | M22: 0 | N22: 0 | O22: 0 | P22: 0 | Q22: 0 | R22: 0 | S22: 0 | T22: 0 | U22: 0 | V22: 0 | X22: 0 | Y22: 0 | Z22: 0 | AA22: 0 | AB22: 0 | AC22: 0 | AD22: 0 | AE22: 0 | AH22: 0 | AI22: 0 | AJ22: 0 | AK22: 0
A23: ='Форма 4'!A349 -> 18. | B23: 331.98 | C23: 71.47 | D23: 10.15 | E23: 0.12 | F23: 250.36 | G23: 0 | H23: 0 | I23: ='Форма 4'!I349 -> 5.31 | J23: 0 | K23: ='Форма 4'!I350 -> 0.01 | L23: 0 | M23: 0 | N23: 57.9879 | O23: 42.59605 | P23: 57.8907 | Q23: 0.0972 | R23: 42.52465 | S23: 0.0714 | T23: 0 | U23: 0 | V23: 0 | X23: 0 | Y23: 0 | Z23: 0 | AA23: 0 | AB23: 0 | AC23: 0 | AD23: 0 | AE23: 0 | AH23: 0 | AI23: 0 | AJ23: 0 | AK23: 0
A24: ='Форма 4'!A369 -> 19. | B24: 303.89 | C24: 252.88 | D24: 0 | E24: 0 | F24: 51.01 | G24: 0 | H24: 0 | I24: ='Форма 4'!I369 -> 5.575 | J24: 0 | K24: ='Форма 4'!I370 -> 0 | L24: 0 | M24: 0 | N24: 227.592 | O24: 150.4636 | P24: 227.592 | Q24: 0 | R24: 150.4636 | S24: 0 | T24: 0 | U24: 0 | V24: 0 | X24: 0 | Y24: 0 | Z24: 0 | AA24: 0 | AB24: 0 | AC24: 0 | AD24: 0 | AE24: 0 | AH24: 0 | AI24: 0 | AJ24: 0 | AK24: 0
A25: ='Форма 4'!A390 -> 20. | B25: 1629.27 | C25: 0 | D25: 0 | E25: 0 | F25: 1629.27 | G25: 1248.68 | H25: 0 | I25: ='Форма 4'!I390 -> 0 | J25: 0 | K25: ='Форма 4'!I391 -> 0 | L25: 0 | M25: 0 | N25: 0 | O25: 0 | P25: 0 | Q25: 0 | R25: 0 | S25: 0 | T25: 0 | U25: 0 | V25: 0 | X25: 0 | Y25: 0 | Z25: 0 | AA25: 0 | AB25: 0 | AC25: 0 | AD25: 0 | AE25: 0 | AH25: 0 | AI25: 0 | AJ25: 0 | AK25: 0
A26: ='Форма 4'!A409 -> 21. | B26: 1414.52 | C26: 1289.38 | D26: 72.25 | E26: 0 | F26: 52.89 | G26: 0 | H26: 0 | I26: ='Форма 4'!I409 -> 107.18 | J26: 0 | K26: ='Форма 4'!I410 -> 0 | L26: 0 | M26: 0 | N26: 1160.442 | O26: 767.1811 | P26: 1160.442 | Q26: 0 | R26: 767.1811 | S26: 0 | T26: 0 | U26: 0 | V26: 0 | X26: 0 | Y26: 0 | Z26: 0 | AA26: 0 | AB26: 0 | AC26: 0 | AD26: 0 | AE26: 0 | AH26: 0 | AI26: 0 | AJ26: 0 | AK26: 0
A27: ='Форма 4'!A430 -> 22. | B27: 14620 | C27: 0 | D27: 0 | E27: 0 | F27: 14620 | G27: 14311.61 | H27: 0 | I27: ='Форма 4'!I430 -> 0 | J27: 0 | K27: ='Форма 4'!I431 -> 0 | L27: 303 | M27: 0 | N27: 0 | O27: 0 | P27: 0 | Q27: 0 | R27: 0 | S27: 0 | T27: 0 | U27: 0 | V27: 0 | X27: 0 | Y27: 0 | Z27: 0 | AA27: 0 | AB27: 0 | AC27: 0 | AD27: 0 | AE27: 0 | AH27: 0 | AI27: 0 | AJ27: 0 | AK27: 0

Sheet Базовые цены за единицу
B1: C1 | C1: C2 | D1: C3 | E1: C4 | F1: C5 | G1: C6 | H1: VOZVR | I1: C8 | J1: C9 | K1: C10 | L1: C11 | M1: C12 | N1: NAKL | O1: PLAN | P1: NAKL_ZPR | Q1: NAKL_ZPM | R1: PLAN_ZPR | S1: PLAN_ZPM | T1: RN11 | U1: RN12 | V1: RN13 | X1: OBORUD_VSPOMOG | Y1: NAKL_PN | Z1: NAKL_VX | AA1: PLAN_PN | AB1: PLAN_VX | AC1: VTCH_PN | AD1: VTCH_VX | AE1: MR_BY_ZPR_VSPOMOG | AF1: NAKL_INC | AG1: PLAN_INC | AH1: RN14 | AI1: RN15 | AJ1: RN16 | AK1: OBORUD
B3: N = < 209.15 * 209-08 * 5295.20 >
B4: Замена теплотрассы с. Демарино ул. Ленина
A6: ='Форма 4'!A26 -> 1. | B6: =ROUND(C6+D6+F6+AF6+AG6,2) -> 3420.69 | C6: 103.33 | D6: 3317.36 | E6: 371.83 | F6: 0 | G6: 0 | H6: 0 | I6: ='Форма 4'!I26 -> 10.48 | J6: 0 | K6: ='Форма 4'!I27 -> 22.77 | L6: 0 | M6: 0 | N6: 406.2618 | O6: 201.943 | P6: 88.34715 | Q6: 317.91465 | R6: 43.91525 | S6: 158.02775 | T6: 0 | U6: 0 | V6: 0 | X6: 0 | Y6: 0 | Z6: 0 | AA6: 0 | AB6: 0 | AC6: 0 | AD6: 0 | AE6: 0 | AH6: 0 | AI6: 0 | AJ6: 0 | AK6: 0
A7: ='Форма 4'!A45 -> 2. | B7: 1822.13 | C7: 1822.13 | D7: 0 | E7: 0 | F7: 0 | G7: 0 | H7: 0 | I7: ='Форма 4'!I45 -> 184.8 | J7: 0 | K7: ='Форма 4'!I46 -> 0 | L7: 0 | M7: 0 | N7: 1311.9336 | O7: 696.964725 | P7: 1311.9336 | Q7: 0 | R7: 696.964725 | S7: 0 | T7: 0 | U7: 0 | V7: 0 | X7: 0 | Y7: 0 | Z7: 0 | AA7: 0 | AB7: 0 | AC7: 0 | AD7: 0 | AE7: 0 | AH7: 0 | AI7: 0 | AJ7: 0 | AK7: 0
A8: ='Форма 4'!A64 -> 3. | B8: 11467.66 | C8: 4234.27 | D8: 7233.39 | E8: 611.65 | F8: 0 | G8: 0 | H8: 0 | I8: ='Форма 4'!I64 -> 343.134 | J8: 0 | K8: ='Форма 4'!I65 -> 43.752 | L8: 0 | M8: 0 | N8: 5669.7264 | O8: 3665.93848 | P8: 4954.0959 | Q8: 715.6305 | R8: 3203.225255 | S8: 462.713225 | T8: 0 | U8: 0 | V8: 0 | X8: 0 | Y8: 0 | Z8: 0 | AA8: 0 | AB8: 0 | AC8: 0 | AD8: 0 | AE8: 0 | AH8: 0 | AI8: 0 | AJ8: 0 | AK8: 0
A9: ='Форма 4'!A83 -> 4. | B9: 60806.98 | C9: 7057.12 | D9: 12055.65 | E9: 1019.42 | F9: 41694.21 | G9: 0 | H9: 0 | I9: ='Форма 4'!I83 -> 571.89 | J9: 0 | K9: ='Форма 4'!I84 -> 72.92 | L9: 0 | M9: 0 | N9: 9449.5518 | O9: 6109.90251 | P9: 8256.8304 | Q9: 1192.7214 | R9: 5338.71128 | S9: 771.19123 | T9: 0 | U9: 0 | V9: 0 | X9: 0 | Y9: 0 | Z9: 0 | AA9: 0 | AB9: 0 | AC9: 0 | AD9: 0 | AE9: 0 | AH9: 0 | AI9: 0 | AJ9: 0 | AK9: 0
A10: ='Форма 4'!A102 -> 5. | B10: 238.64 | C10: 0 | D10: 0 | E10: 0 | F10: 238.64 | G10: 233.31 | H10: 0 | I10: ='Форма 4'!I102 -> 0 | J10: 0 | K10: ='Форма 4'!I103 -> 0 | L10: 0 | M10: 0 | N10: 0 | O10: 0 | P10: 0 | Q10: 0 | R10: 0 | S10: 0 | T10: 0 | U10: 0 | V10: 0 | X10: 0 | Y10: 0 | Z10: 0 | AA10: 0 | AB10: 0 | AC10: 0 | AD10: 0 | AE10: 0 | AH10: 0 | AI10: 0 | AJ10: 0 | AK10: 0
A11: ='Форма 4'!A120 -> 6. | B11: 633.41 | C11: 0 | D11: 633.41 | E11: 124.36 | F11: 0 | G11: 0 | H11: 0 | I11: ='Форма 4'!I120 -> 0 | J11: 0 | K11: ='Форма 4'!I121 -> 8.87 | L11: 0 | M11: 0 | N11: 106.3278 | O11: 52.853 | P11: 0 | Q11: 106.3278 | R11: 0 | S11: 52.853 | T11: 0 | U11: 0 | V11: 0 | X11: 0 | Y11: 0 | Z11: 0 | AA11: 0 | AB11: 0 | AC11: 0 | AD11: 0 | AE11: 0 | AH11: 0 | AI11: 0 | AJ11: 0 | AK11: 0
A12: ='Форма 4'!A141 -> 7. | B12: 2426.18 | C12: 149.87 | D12: 2276.31 | E12: 232.59 | F12: 0 | G12: 0 | H12: 0 | I12: ='Форма 4'!I141 -> 15.2 | J12: 0 | K12: ='Форма 4'!I142 -> 16.59 | L12: 0 | M12: 0 | N12: 275.3712 | O12: 146.29095 | P12: 107.9064 | Q12: 167.4648 | R12: 57.325275 | S12: 88.965675 | T12: 0 | U12: 0 | V12: 0 | X12: 0 | Y12: 0 | Z12: 0 | AA12: 0 | AB12: 0 | AC12: 0 | AD12: 0 | AE12: 0 | AH12: 0 | AI12: 0 | AJ12: 0 | AK12: 0
A13: ='Форма 4'!A160 -> 8. | B13: 14758.76 | C13: 6449.24 | D13: 1934.99 | E13: 302.95 | F13: 6374.53 | G13: 0 | H13: 0 | I13: ='Форма 4'!I160 -> 598.26 | J13: 0 | K13: ='Форма 4'!I161 -> 18.62 | L13: 0 | M13: 0 | N13: 6380.81955 | O13: 3730.584975 | P13: 6094.5318 | Q13: 286.28775 | R13: 3563.2051 | S13: 167.379875 | T13: 0 | U13: 0 | V13: 0 | X13: 0 | Y13: 0 | Z13: 0 | AA13: 0 | AB13: 0 | AC13: 0 | AD13: 0 | AE13: 0 | AH13: 0 | AI13: 0 | AJ13: 0 | AK13: 0
A14: ='Форма 4'!A179 -> 9. | B14: 551 | C14: 0 | D14: 0 | E14: 0 | F14: 551 | G14: 454.59 | H14: 0 | I14: ='Форма 4'!I179 -> 0 | J14: 0 | K14: ='Форма 4'!I180 -> 0 | L14: 2450 | M14: 0 | N14: 0 | O14: 0 | P14: 0 | Q14: 0 | R14: 0 | S14: 0 | T14: 0 | U14: 0 | V14: 0 | X14: 0 | Y14: 0 | Z14: 0 | AA14: 0 | AB14: 0 | AC14: 0 | AD14: 0 | AE14: 0 | AH14: 0 | AI14: 0 | AJ14: 0 | AK14: 0
A15: ='Форма 4'!A198 -> 10. | B15: 549.95 | C15: 74.73 | D15: 299.82 | E15: 36.18 | F15: 175.4 | G15: 0 | H15: 0 | I15: ='Форма 4'!I198 -> 6.59 | J15: 0 | K15: ='Форма 4'!I199 -> 2.09 | L15: 0 | M15: 0 | N15: 89.8371 | O15: 80.132475 | P15: 60.5313 | Q15: 29.3058 | R15: 53.992425 | S15: 26.14005 | T15: 0 | U15: 0 | V15: 0 | X15: 0 | Y15: 0 | Z15: 0 | AA15: 0 | AB15: 0 | AC15: 0 | AD15: 0 | AE15: 0 | AH15: 0 | AI15: 0 | AJ15: 0 | AK15: 0
A16: ='Форма 4'!A217 -> 11. | B16: 13810 | C16: 0 | D16: 0 | E16: 0 | F16: 13810 | G16: 13630.05 | H16: 0 | I16: ='Форма 4'!I217 -> 0 | J16: 0 | K16: ='Форма 4'!I218 -> 0 | L16: 1000 | M16: 0 | N16: 0 | O16: 0 | P16: 0 | Q16: 0 | R16: 0 | S16: 0 | T16: 0 | U16: 0 | V16: 0 | X16: 0 | Y16: 0 | Z16: 0 | AA16: 0 | AB16: 0 | AC16: 0 | AD16: 0 | AE16: 0 | AH16: 0 | AI16: 0 | AJ16: 0 | AK16: 0
A17: ='Форма 4'!A235 -> 12. | B17: 331.98 | C17: 71.47 | D17: 10.15 | E17: 0.12 | F17: 250.36 | G17: 0 | H17: 0 | I17: ='Форма 4'!I235 -> 5.31 | J17: 0 | K17: ='Форма 4'!I236 -> 0.01 | L17: 0 | M17: 0 | N17: 57.9879 | O17: 42.59605 | P17: 57.8907 | Q17: 0.0972 | R17: 42.52465 | S17: 0.0714 | T17: 0 | U17: 0 | V17: 0 | X17: 0 | Y17: 0 | Z17: 0 | AA17: 0 | AB17: 0 | AC17: 0 | AD17: 0 | AE17: 0 | AH17: 0 | AI17: 0 | AJ17: 0 | AK17: 0
A18: ='Форма 4'!A255 -> 13. | B18: 439.21 | C18: 43.93 | D18: 6.8 | E18: 0.12 | F18: 388.48 | G18: 0 | H18: 0 | I18: ='Форма 4'!I255 -> 3.83 | J18: 0 | K18: ='Форма 4'!I256 -> 0.01 | L18: 0 | M18: 0 | N18: 35.6805 | O18: 26.20975 | P18: 35.5833 | Q18: 0.0972 | R18: 26.13835 | S18: 0.0714 | T18: 0 | U18: 0 | V18: 0 | X18: 0 | Y18: 0 | Z18: 0 | AA18: 0 | AB18: 0 | AC18: 0 | AD18: 0 | AE18: 0 | AH18: 0 | AI18: 0 | AJ18: 0 | AK18: 0
A19: ='Форма 4'!A275 -> 14. | B19: 21914.95 | C19: 5581.44 | D19: 11594.41 | E19: 1104.69 | F19: 4739.1 | G19: 0 | H19: 0 | I19: ='Форма 4'!I275 -> 459 | J19: 0 | K19: ='Форма 4'!I276 -> 77.85 | L19: 0 | M19: 0 | N19: 7822.7721 | O19: 5058.057345 | P19: 6530.2848 | Q19: 1292.4873 | R19: 4222.35936 | S19: 835.697985 | T19: 0 | U19: 0 | V19: 0 | X19: 0 | Y19: 0 | Z19: 0 | AA19: 0 | AB19: 0 | AC19: 0 | AD19: 0 | AE19: 0 | AH19: 0 | AI19: 0 | AJ19: 0 | AK19: 0
A20: ='Форма 4'!A294 -> 15. | B20: 54.7 | C20: 0 | D20: 0 | E20: 0 | F20: 54.7 | G20: 53.15 | H20: 0 | I20: ='Форма 4'!I294 -> 0 | J20: 0 | K20: ='Форма 4'!I295 -> 0 | L20: 8.39 | M20: 0 | N20: 0 | O20: 0 | P20: 0 | Q20: 0 | R20: 0 | S20: 0 | T20: 0 | U20: 0 | V20: 0 | X20: 0 | Y20: 0 | Z20: 0 | AA20: 0 | AB20: 0 | AC20: 0 | AD20: 0 | AE20: 0 | AH20: 0 | AI20: 0 | AJ20: 0 | AK20: 0
A21: ='Форма 4'!A313 -> 16. | B21: 42.3 | C21: 0 | D21: 0 | E21: 0 | F21: 42.3 | G21: 41.28 | H21: 0 | I21: ='Форма 4'!I313 -> 0 | J21: 0 | K21: ='Форма 4'!I314 -> 0 | L21: 1.43 | M21: 0 | N21: 0 | O21: 0 | P21: 0 | Q21: 0 | R21: 0 | S21: 0 | T21: 0 | U21: 0 | V21: 0 | X21: 0 | Y21: 0 | Z21: 0 | AA21: 0 | AB21: 0 | AC21: 0 | AD21: 0 | AE21: 0 | AH21: 0 | AI21: 0 | AJ21: 0 | AK21: 0
A22: ='Форма 4'!A331 -> 17. | B22: 74.4 | C22: 0 | D22: 0 | E22: 0 | F22: 74.4 | G22: 72.8 | H22: 0 | I22: ='Форма 4'!I331 -> 0 | J22: 0 | K22: ='Форма 4'!I332 -> 0 | L22: 0 | M22: 0 | N22: 0 | O22: 0 | P22: 0 | Q22: 0 | R22: 0 | S22: 0 | T22: 0 | U22: 0 | V22: 0 | X22: 0 | Y22: 0 | Z22: 0 | AA22: 0 | AB22: 0 | AC22: 0 | AD22: 0 | AE22: 0 | AH22: 0 | AI22: 0 | AJ22: 0 | AK22: 0
A23: ='Форма 4'!A349 -> 18. | B23: 331.98 | C23: 71.47 | D23: 10.15 | E23: 0.12 | F23: 250.36 | G23: 0 | H23: 0 | I23: ='Форма 4'!I349 -> 5.31 | J23: 0 | K23: ='Форма 4'!I350 -> 0.01 | L23: 0 | M23: 0 | N23: 57.9879 | O23: 42.59605 | P23: 57.8907 | Q23: 0.0972 | R23: 42.52465 | S23: 0.0714 | T23: 0 | U23: 0 | V23: 0 | X23: 0 | Y23: 0 | Z23: 0 | AA23: 0 | AB23: 0 | AC23: 0 | AD23: 0 | AE23: 0 | AH23: 0 | AI23: 0 | AJ23: 0 | AK23: 0
A24: ='Форма 4'!A369 -> 19. | B24: 114.23 | C24: 63.22 | D24: 0 | E24: 0 | F24: 51.01 | G24: 0 | H24: 0 | I24: ='Форма 4'!I369 -> 5.575 | J24: 0 | K24: ='Форма 4'!I370 -> 0 | L24: 0 | M24: 0 | N24: 56.898 | O24: 37.6159 | P24: 56.898 | Q24: 0 | R24: 37.6159 | S24: 0 | T24: 0 | U24: 0 | V24: 0 | X24: 0 | Y24: 0 | Z24: 0 | AA24: 0 | AB24: 0 | AC24: 0 | AD24: 0 | AE24: 0 | AH24: 0 | AI24: 0 | AJ24: 0 | AK24: 0
A25: ='Форма 4'!A390 -> 20. | B25: 1629.27 | C25: 0 | D25: 0 | E25: 0 | F25: 1629.27 | G25: 1248.68 | H25: 0 | I25: ='Форма 4'!I390 -> 0 | J25: 0 | K25: ='Форма 4'!I391 -> 0 | L25: 0 | M25: 0 | N25: 0 | O25: 0 | P25: 0 | Q25: 0 | R25: 0 | S25: 0 | T25: 0 | U25: 0 | V25: 0 | X25: 0 | Y25: 0 | Z25: 0 | AA25: 0 | AB25: 0 | AC25: 0 | AD25: 0 | AE25: 0 | AH25: 0 | AI25: 0 | AJ25: 0 | AK25: 0
A26: ='Форма 4'!A409 -> 21. | B26: 1414.52 | C26: 1289.38 | D26: 72.25 | E26: 0 | F26: 52.89 | G26: 0 | H26: 0 | I26: ='Форма 4'!I409 -> 107.18 | J26: 0 | K26: ='Форма 4'!I410 -> 0 | L26: 0 | M26: 0 | N26: 1160.442 | O26: 767.1811 | P26: 1160.442 | Q26: 0 | R26: 767.1811 | S26: 0 | T26: 0 | U26: 0 | V26: 0 | X26: 0 | Y26: 0 | Z26: 0 | AA26: 0 | AB26: 0 | AC26: 0 | AD26: 0 | AE26: 0 | AH26: 0 | AI26: 0 | AJ26: 0 | AK26: 0
A27: ='Форма 4'!A430 -> 22. | B27: 14620 | C27: 0 | D27: 0 | E27: 0 | F27: 14620 | G27: 14311.61 | H27: 0 | I27: ='Форма 4'!I430 -> 0 | J27: 0 | K27: ='Форма 4'!I431 -> 0 | L27: 303 | M27: 0 | N27: 0 | O27: 0 | P27: 0 | Q27: 0 | R27: 0 | S27: 0 | T27: 0 | U27: 0 | V27: 0 | X27: 0 | Y27: 0 | Z27: 0 | AA27: 0 | AB27: 0 | AC27: 0 | AD27: 0 | AE27: 0 | AH27: 0 | AI27: 0 | AJ27: 0 | AK27: 0

Sheet Базовые цены с учетом расхода
B1: C1 | C1: C2 | D1: C3 | E1: C4 | F1: C5 | G1: C6 | H1: VOZVR | I1: C8 | J1: C9 | K1: C10 | L1: C11 | M1: C12 | N1: NAKL | O1: PLAN | P1: NAKL_ZPR | Q1: NAKL_ZPM | R1: PLAN_ZPR | S1: PLAN_ZPM | T1: RN11 | U1: RN12 | V1: RN13 | X1: OBORUD_VSPOMOG | Y1: NAKL_PN | Z1: NAKL_VX | AA1: PLAN_PN | AB1: PLAN_VX | AC1: VTCH_PN | AD1: VTCH_VX | AE1: MR_BY_ZPR_VSPOMOG | AF1: NAKL_INC | AG1: PLAN_INC | AH1: RN14 | AI1: RN15 | AJ1: RN16 | AK1: OBORUD
B3: N = < 209.15 * 209-08 * 5295.20 >
B4: Замена теплотрассы с. Демарино ул. Ленина
A6: ='Форма 4'!A26 -> 1. | B6: =ROUND(C6+D6+F6+AF6+AG6,0) -> 33 | C6: =ROUND('Форма 4'!C26*'Базовые цены за единицу'!C6,0) -> 1 | D6: =ROUND('Форма 4'!C26*'Базовые цены за единицу'!D6,0) -> 32 | E6: =ROUND('Форма 4'!C26*'Базовые цены за единицу'!E6,0) -> 4 | F6: =ROUND('Форма 4'!C26*'Базовые цены за единицу'!F6,0) -> 0 | G6: =ROUND('Форма 4'!C26*'Базовые цены за единицу'!G6,0) -> 0 | H6: =ROUND('Форма 4'!C26*'Базовые цены за единицу'!H6,0) -> 0 | I6: =ОКРУГЛВСЕ('Форма 4'!C26*'Базовые цены за единицу'!I6,8) -> 0.10218 | J6: =ОКРУГЛВСЕ('Форма 4'!C26*'Базовые цены за единицу'!J6,8) -> 0 | K6: =ОКРУГЛВСЕ('Форма 4'!C26*'Базовые цены за единицу'!K6,8) -> 0.2220075 | L6: =ROUND('Форма 4'!C26*'Базовые цены за единицу'!L6,0) -> 0 | M6: =ROUND('Форма 4'!C26*'Базовые цены за единицу'!M6,0) -> 0 | N6: =ROUND((C6+E6)*'Форма 4'!C37/100,0) -> 4 | O6: =ROUND((C6+E6)*'Форма 4'!C40/100,0) -> 2 | P6: =ROUND('Форма 4'!C26*'Базовые цены за единицу'!P6,0) -> 1 | Q6: =ROUND('Форма 4'!C26*'Базовые цены за единицу'!Q6,0) -> 3 | R6: =ROUND('Форма 4'!C26*'Базовые цены за единицу'!R6,0) -> 0 | S6: =ROUND('Форма 4'!C26*'Базовые цены за единицу'!S6,0) -> 2 | T6: =ROUND('Форма 4'!C26*'Базовые цены за единицу'!T6,0) -> 0 | U6: =ROUND('Форма 4'!C26*'Базовые цены за единицу'!U6,0) -> 0 | V6: =ROUND('Форма 4'!C26*'Базовые цены за единицу'!V6,0) -> 0 | X6: =ROUND('Форма 4'!C26*'Базовые цены за единицу'!X6,0) -> 0 | Y6: =IF(Определители!I6="9",ROUND((C6+E6)*(Начисления!M6/100)*('Форма 4'!C37/100),0),0) -> 0 | Z6: =IF(Определители!I6="9",ROUND((C6+E6)*(100-Начисления!M6/100)*('Форма 4'!C37/100),0),0) -> 0 | AA6: =IF(Определители!I6="9",ROUND((C6+E6)*(Начисления!M6/100)*('Форма 4'!C40/100),0),0) -> 0 | AB6: =IF(Определители!I6="9",ROUND((C6+E6)*(100-Начисления!M6/100)*('Форма 4'!C40/100),0),0) -> 0 | AC6: =IF(Определители!I6="9",ROUND(B6*Начисления!M6/100,0),0) -> 0 | AD6: =IF(Определители!I6="9",ROUND(B6*(100-Начисления!M6)/100,0),0) -> 0 | AE6: =ROUND('Форма 4'!C26*'Базовые цены за единицу'!AE6,0) -> 0 | AH6: =ROUND('Форма 4'!C26*'Базовые цены за единицу'!AH6,0) -> 0 | AI6: =ROUND('Форма 4'!C26*'Базовые цены за единицу'!AI6,0) -> 0 | AJ6: =ROUND('Форма 4'!C26*'Базовые цены за единицу'!AJ6,0) -> 0 | AK6: =ROUND('Форма 4'!C26*'Базовые цены за единицу'!AK6,0) -> 0
A7: ='Форма 4'!A45 -> 2. | B7: 18 | C7: =ROUND('Форма 4'!C45*'Базовые цены за единицу'!C7,0) -> 18 | D7: =ROUND('Форма 4'!C45*'Базовые цены за единицу'!D7,0) -> 0 | E7: =ROUND('Форма 4'!C45*'Базовые цены за единицу'!E7,0) -> 0 | F7: =ROUND('Форма 4'!C45*'Базовые цены за единицу'!F7,0) -> 0 | G7: =ROUND('Форма 4'!C45*'Базовые цены за единицу'!G7,0) -> 0 | H7: =ROUND('Форма 4'!C45*'Базовые цены за единицу'!H7,0) -> 0 | I7: =ОКРУГЛВСЕ('Форма 4'!C45*'Базовые цены за единицу'!I7,8) -> 1.848 | J7: =ОКРУГЛВСЕ('Форма 4'!C45*'Базовые цены за единицу'!J7,8) -> 0 | K7: =ОКРУГЛВСЕ('Форма 4'!C45*'Базовые цены за единицу'!K7,8) -> 0 | L7: =ROUND('Форма 4'!C45*'Базовые цены за единицу'!L7,0) -> 0 | M7: =ROUND('Форма 4'!C45*'Базовые цены за единицу'!M7,0) -> 0 | N7: =ROUND((C7+E7)*'Форма 4'!C56/100,0) -> 13 | O7: =ROUND((C7+E7)*'Форма 4'!C59/100,0) -> 7 | P7: =ROUND('Форма 4'!C45*'Базовые цены за единицу'!P7,0) -> 13 | Q7: =ROUND('Форма 4'!C45*'Базовые цены за единицу'!Q7,0) -> 0 | R7: =ROUND('Форма 4'!C45*'Базовые цены за единицу'!R7,0) -> 7 | S7: =ROUND('Форма 4'!C45*'Базовые цены за единицу'!S7,0) -> 0 | T7: =ROUND('Форма 4'!C45*'Базовые цены за единицу'!T7,0) -> 0 | U7: =ROUND('Форма 4'!C45*'Базовые цены за единицу'!U7,0) -> 0 | V7: =ROUND('Форма 4'!C45*'Базовые цены за единицу'!V7,0) -> 0 | X7: =ROUND('Форма 4'!C45*'Базовые цены за единицу'!X7,0) -> 0 | Y7: =IF(Определители!I7="9",ROUND((C7+E7)*(Начисления!M7/100)*('Форма 4'!C56/100),0),0) -> 0 | Z7: =IF(Определители!I7="9",ROUND((C7+E7)*(100-Начисления!M7/100)*('Форма 4'!C56/100),0),0) -> 0 | AA7: =IF(Определители!I7="9",ROUND((C7+E7)*(Начисления!M7/100)*('Форма 4'!C59/100),0),0) -> 0 | AB7: =IF(Определители!I7="9",ROUND((C7+E7)*(100-Начисления!M7/100)*('Форма 4'!C59/100),0),0) -> 0 | AC7: =IF(Определители!I7="9",ROUND(B7*Начисления!M7/100,0),0) -> 0 | AD7: =IF(Определители!I7="9",ROUND(B7*(100-Начисления!M7)/100,0),0) -> 0 | AE7: =ROUND('Форма 4'!C45*'Базовые цены за единицу'!AE7,0) -> 0 | AH7: =ROUND('Форма 4'!C45*'Базовые цены за единицу'!AH7,0) -> 0 | AI7: =ROUND('Форма 4'!C45*'Базовые цены за единицу'!AI7,0) -> 0 | AJ7: =ROUND('Форма 4'!C45*'Базовые цены за единицу'!AJ7,0) -> 0 | AK7: =ROUND('Форма 4'!C45*'Базовые цены за единицу'!AK7,0) -> 0
A8: ='Форма 4'!A64 -> 3. | B8: 894 | C8: =ROUND('Форма 4'!C64*'Базовые цены за единицу'!C8,0) -> 330 | D8: =ROUND('Форма 4'!C64*'Базовые цены за единицу'!D8,0) -> 564 | E8: =ROUND('Форма 4'!C64*'Базовые цены за единицу'!E8,0) -> 48 | F8: =ROUND('Форма 4'!C64*'Базовые цены за единицу'!F8,0) -> 0 | G8: =ROUND('Форма 4'!C64*'Базовые цены за единицу'!G8,0) -> 0 | H8: =ROUND('Форма 4'!C64*'Базовые цены за единицу'!H8,0) -> 0 | I8: =ОКРУГЛВСЕ('Форма 4'!C64*'Базовые цены за единицу'!I8,8) -> 26.764452 | J8: =ОКРУГЛВСЕ('Форма 4'!C64*'Базовые цены за единицу'!J8,8) -> 0 | K8: =ОКРУГЛВСЕ('Форма 4'!C64*'Базовые цены за единицу'!K8,8) -> 3.412656 | L8: =ROUND('Форма 4'!C64*'Базовые цены за единицу'!L8,0) -> 0 | M8: =ROUND('Форма 4'!C64*'Базовые цены за единицу'!M8,0) -> 0 | N8: =ROUND((C8+E8)*'Форма 4'!C75/100,0) -> 442 | O8: =ROUND((C8+E8)*'Форма 4'!C78/100,0) -> 286 | P8: =ROUND('Форма 4'!C64*'Базовые цены за единицу'!P8,0) -> 386 | Q8: =ROUND('Форма 4'!C64*'Базовые цены за единицу'!Q8,0) -> 56 | R8: =ROUND('Форма 4'!C64*'Базовые цены за единицу'!R8,0) -> 250 | S8: =ROUND('Форма 4'!C64*'Базовые цены за единицу'!S8,0) -> 36 | T8: =ROUND('Форма 4'!C64*'Базовые цены за единицу'!T8,0) -> 0 | U8: =ROUND('Форма 4'!C64*'Базовые цены за единицу'!U8,0) -> 0 | V8: =ROUND('Форма 4'!C64*'Базовые цены за единицу'!V8,0) -> 0 | X8: =ROUND('Форма 4'!C64*'Базовые цены за единицу'!X8,0) -> 0 | Y8: =IF(Определители!I8="9",ROUND((C8+E8)*(Начисления!M8/100)*('Форма 4'!C75/100),0),0) -> 0 | Z8: =IF(Определители!I8="9",ROUND((C8+E8)*(100-Начисления!M8/100)*('Форма 4'!C75/100),0),0) -> 0 | AA8: =IF(Определители!I8="9",ROUND((C8+E8)*(Начисления!M8/100)*('Форма 4'!C78/100),0),0) -> 0 | AB8: =IF(Определители!I8="9",ROUND((C8+E8)*(100-Начисления!M8/100)*('Форма 4'!C78/100),0),0) -> 0 | AC8: =IF(Определители!I8="9",ROUND(B8*Начисления!M8/100,0),0) -> 0 | AD8: =IF(Определители!I8="9",ROUND(B8*(100-Начисления!M8)/100,0),0) -> 0 | AE8: =ROUND('Форма 4'!C64*'Базовые цены за единицу'!AE8,0) -> 0 | AH8: =ROUND('Форма 4'!C64*'Базовые цены за единицу'!AH8,0) -> 0 | AI8: =ROUND('Форма 4'!C64*'Базовые цены за единицу'!AI8,0) -> 0 | AJ8: =ROUND('Форма 4'!C64*'Базовые цены за единицу'!AJ8,0) -> 0 | AK8: =ROUND('Форма 4'!C64*'Базовые цены за единицу'!AK8,0) -> 0
A9: ='Форма 4'!A83 -> 4. | B9: 4742 | C9: =ROUND('Форма 4'!C83*'Базовые цены за единицу'!C9,0) -> 550 | D9: =ROUND('Форма 4'!C83*'Базовые цены за единицу'!D9,0) -> 940 | E9: =ROUND('Форма 4'!C83*'Базовые цены за единицу'!E9,0) -> 80 | F9: =ROUND('Форма 4'!C83*'Базовые цены за единицу'!F9,0) -> 3252 | G9: =ROUND('Форма 4'!C83*'Базовые цены за единицу'!G9,0) -> 0 | H9: =ROUND('Форма 4'!C83*'Базовые цены за единицу'!H9,0) -> 0 | I9: =ОКРУГЛВСЕ('Форма 4'!C83*'Базовые цены за единицу'!I9,8) -> 44.60742 | J9: =ОКРУГЛВСЕ('Форма 4'!C83*'Базовые цены за единицу'!J9,8) -> 0 | K9: =ОКРУГЛВСЕ('Форма 4'!C83*'Базовые цены за единицу'!K9,8) -> 5.68776 | L9: =ROUND('Форма 4'!C83*'Базовые цены за единицу'!L9,0) -> 0 | M9: =ROUND('Форма 4'!C83*'Базовые цены за единицу'!M9,0) -> 0 | N9: =ROUND((C9+E9)*'Форма 4'!C94/100,0) -> 737 | O9: =ROUND((C9+E9)*'Форма 4'!C97/100,0) -> 477 | P9: =ROUND('Форма 4'!C83*'Базовые цены за единицу'!P9,0) -> 644 | Q9: =ROUND('Форма 4'!C83*'Базовые цены за единицу'!Q9,0) -> 93 | R9: =ROUND('Форма 4'!C83*'Базовые цены за единицу'!R9,0) -> 416 | S9: =ROUND('Форма 4'!C83*'Базовые цены за единицу'!S9,0) -> 60 | T9: =ROUND('Форма 4'!C83*'Базовые цены за единицу'!T9,0) -> 0 | U9: =ROUND('Форма 4'!C83*'Базовые цены за единицу'!U9,0) -> 0 | V9: =ROUND('Форма 4'!C83*'Базовые цены за единицу'!V9,0) -> 0 | X9: =ROUND('Форма 4'!C83*'Базовые цены за единицу'!X9,0) -> 0 | Y9: =IF(Определители!I9="9",ROUND((C9+E9)*(Начисления!M9/100)*('Форма 4'!C94/100),0),0) -> 0 | Z9: =IF(Определители!I9="9",ROUND((C9+E9)*(100-Начисления!M9/100)*('Форма 4'!C94/100),0),0) -> 0 | AA9: =IF(Определители!I9="9",ROUND((C9+E9)*(Начисления!M9/100)*('Форма 4'!C97/100),0),0) -> 0 | AB9: =IF(Определители!I9="9",ROUND((C9+E9)*(100-Начисления!M9/100)*('Форма 4'!C97/100),0),0) -> 0 | AC9: =IF(Определители!I9="9",ROUND(B9*Начисления!M9/100,0),0) -> 0 | AD9: =IF(Определители!I9="9",ROUND(B9*(100-Начисления!M9)/100,0),0) -> 0 | AE9: =ROUND('Форма 4'!C83*'Базовые цены за единицу'!AE9,0) -> 0 | AH9: =ROUND('Форма 4'!C83*'Базовые цены за единицу'!AH9,0) -> 0 | AI9: =ROUND('Форма 4'!C83*'Базовые цены за единицу'!AI9,0) -> 0 | AJ9: =ROUND('Форма 4'!C83*'Базовые цены за единицу'!AJ9,0) -> 0 | AK9: =ROUND('Форма 4'!C83*'Базовые цены за единицу'!AK9,0) -> 0
A10: ='Форма 4'!A102 -> 5. | B10: 18614 | C10: =ROUND('Форма 4'!C102*'Базовые цены за единицу'!C10,0) -> 0 | D10: =ROUND('Форма 4'!C102*'Базовые цены за единицу'!D10,0) -> 0 | E10: =ROUND('Форма 4'!C102*'Базовые цены за единицу'!E10,0) -> 0 | F10: =ROUND('Форма 4'!C102*'Базовые цены за единицу'!F10,0) -> 18614 | G10: =ROUND('Форма 4'!C102*'Базовые цены за единицу'!G10,0) -> 18198 | H10: =ROUND('Форма 4'!C102*'Базовые цены за единицу'!H10,0) -> 0 | I10: =ОКРУГЛВСЕ('Форма 4'!C102*'Базовые цены за единицу'!I10,8) -> 0 | J10: =ОКРУГЛВСЕ('Форма 4'!C102*'Базовые цены за единицу'!J10,8) -> 0 | K10: =ОКРУГЛВСЕ('Форма 4'!C102*'Базовые цены за единицу'!K10,8) -> 0 | L10: =ROUND('Форма 4'!C102*'Базовые цены за единицу'!L10,0) -> 0 | M10: =ROUND('Форма 4'!C102*'Базовые цены за единицу'!M10,0) -> 0 | N10: =ROUND((C10+E10)*'Форма 4'!C113/100,0) -> 0 | O10: =ROUND((C10+E10)*'Форма 4'!C116/100,0) -> 0 | P10: =ROUND('Форма 4'!C102*'Базовые цены за единицу'!P10,0) -> 0 | Q10: =ROUND('Форма 4'!C102*'Базовые цены за единицу'!Q10,0) -> 0 | R10: =ROUND('Форма 4'!C102*'Базовые цены за единицу'!R10,0) -> 0 | S10: =ROUND('Форма 4'!C102*'Базовые цены за единицу'!S10,0) -> 0 | T10: =ROUND('Форма 4'!C102*'Базовые цены за единицу'!T10,0) -> 0 | U10: =ROUND('Форма 4'!C102*'Базовые цены за единицу'!U10,0) -> 0 | V10: =ROUND('Форма 4'!C102*'Базовые цены за единицу'!V10,0) -> 0 | X10: =ROUND('Форма 4'!C102*'Базовые цены за единицу'!X10,0) -> 0 | Y10: =IF(Определители!I10="9",ROUND((C10+E10)*(Начисления!M10/100)*('Форма 4'!C113/100),0),0) -> 0 | Z10: =IF(Определители!I10="9",ROUND((C10+E10)*(100-Начисления!M10/100)*('Форма 4'!C113/100),0),0) -> 0 | AA10: =IF(Определители!I10="9",ROUND((C10+E10)*(Начисления!M10/100)*('Форма 4'!C116/100),0),0) -> 0 | AB10: =IF(Определители!I10="9",ROUND((C10+E10)*(100-Начисления!M10/100)*('Форма 4'!C116/100),0),0) -> 0 | AC10: =IF(Определители!I10="9",ROUND(B10*Начисления!M10/100,0),0) -> 0 | AD10: =IF(Определители!I10="9",ROUND(B10*(100-Начисления!M10)/100,0),0) -> 0 | AE10: =ROUND('Форма 4'!C102*'Базовые цены за единицу'!AE10,0) -> 0 | AH10: =ROUND('Форма 4'!C102*'Базовые цены за единицу'!AH10,0) -> 0 | AI10: =ROUND('Форма 4'!C102*'Базовые цены за единицу'!AI10,0) -> 0 | AJ10: =ROUND('Форма 4'!C102*'Базовые цены за единицу'!AJ10,0) -> 0 | AK10: =ROUND('Форма 4'!C102*'Базовые цены за единицу'!AK10,0) -> 0
A11: ='Форма 4'!A120 -> 6. | B11: 7 | C11: =ROUND('Форма 4'!C120*'Базовые цены за единицу'!C11,0) -> 0 | D11: =ROUND('Форма 4'!C120*'Базовые цены за единицу'!D11,0) -> 7 | E11: =ROUND('Форма 4'!C120*'Базовые цены за единицу'!E11,0) -> 1 | F11: =ROUND('Форма 4'!C120*'Базовые цены за единицу'!F11,0) -> 0 | G11: =ROUND('Форма 4'!C120*'Базовые цены за единицу'!G11,0) -> 0 | H11: =ROUND('Форма 4'!C120*'Базовые цены за единицу'!H11,0) -> 0 | I11: =ОКРУГЛВСЕ('Форма 4'!C120*'Базовые цены за единицу'!I11,8) -> 0 | J11: =ОКРУГЛВСЕ('Форма 4'!C120*'Базовые цены за единицу'!J11,8) -> 0 | K11: =ОКРУГЛВСЕ('Форма 4'!C120*'Базовые цены за единицу'!K11,8) -> 0.0953525 | L11: =ROUND('Форма 4'!C120*'Базовые цены за единицу'!L11,0) -> 0 | M11: =ROUND('Форма 4'!C120*'Базовые цены за единицу'!M11,0) -> 0 | N11: =ROUND((C11+E11)*'Форма 4'!C131/100,0) -> 1 | O11: =ROUND((C11+E11)*'Форма 4'!C134/100,0) -> 0 | P11: =ROUND('Форма 4'!C120*'Базовые цены за единицу'!P11,0) -> 0 | Q11: =ROUND('Форма 4'!C120*'Базовые цены за единицу'!Q11,0) -> 1 | R11: =ROUND('Форма 4'!C120*'Базовые цены за единицу'!R11,0) -> 0 | S11: =ROUND('Форма 4'!C120*'Базовые цены за единицу'!S11,0) -> 1 | T11: =ROUND('Форма 4'!C120*'Базовые цены за единицу'!T11,0) -> 0 | U11: =ROUND('Форма 4'!C120*'Базовые цены за единицу'!U11,0) -> 0 | V11: =ROUND('Форма 4'!C120*'Базовые цены за единицу'!V11,0) -> 0 | X11: =ROUND('Форма 4'!C120*'Базовые цены за единицу'!X11,0) -> 0 | Y11: =IF(Определители!I11="9",ROUND((C11+E11)*(Начисления!M11/100)*('Форма 4'!C131/100),0),0) -> 0 | Z11: =IF(Определители!I11="9",ROUND((C11+E11)*(100-Начисления!M11/100)*('Форма 4'!C131/100),0),0) -> 0 | AA11: =IF(Определители!I11="9",ROUND((C11+E11)*(Начисления!M11/100)*('Форма 4'!C134/100),0),0) -> 0 | AB11: =IF(Определители!I11="9",ROUND((C11+E11)*(100-Начисления!M11/100)*('Форма 4'!C134/100),0),0) -> 0 | AC11: =IF(Определители!I11="9",ROUND(B11*Начисления!M11/100,0),0) -> 0 | AD11: =IF(Определители!I11="9",ROUND(B11*(100-Начисления!M11)/100,0),0) -> 0 | AE11: =ROUND('Форма 4'!C120*'Базовые цены за единицу'!AE11,0) -> 0 | AH11: =ROUND('Форма 4'!C120*'Базовые цены за единицу'!AH11,0) -> 0 | AI11: =ROUND('Форма 4'!C120*'Базовые цены за единицу'!AI11,0) -> 0 | AJ11: =ROUND('Форма 4'!C120*'Базовые цены за единицу'!AJ11,0) -> 0 | AK11: =ROUND('Форма 4'!C120*'Базовые цены за единицу'!AK11,0) -> 0
A12: ='Форма 4'!A141 -> 7. | B12: 558 | C12: =ROUND('Форма 4'!C141*'Базовые цены за единицу'!C12,0) -> 34 | D12: =ROUND('Форма 4'!C141*'Базовые цены за единицу'!D12,0) -> 524 | E12: =ROUND('Форма 4'!C141*'Базовые цены за единицу'!E12,0) -> 53 | F12: =ROUND('Форма 4'!C141*'Базовые цены за единицу'!F12,0) -> 0 | G12: =ROUND('Форма 4'!C141*'Базовые цены за единицу'!G12,0) -> 0 | H12: =ROUND('Форма 4'!C141*'Базовые цены за единицу'!H12,0) -> 0 | I12: =ОКРУГЛВСЕ('Форма 4'!C141*'Базовые цены за единицу'!I12,8) -> 3.496 | J12: =ОКРУГЛВСЕ('Форма 4'!C141*'Базовые цены за единицу'!J12,8) -> 0 | K12: =ОКРУГЛВСЕ('Форма 4'!C141*'Базовые цены за единицу'!K12,8) -> 3.8157 | L12: =ROUND('Форма 4'!C141*'Базовые цены за единицу'!L12,0) -> 0 | M12: =ROUND('Форма 4'!C141*'Базовые цены за единицу'!M12,0) -> 0 | N12: =ROUND((C12+E12)*'Форма 4'!C152/100,0) -> 63 | O12: =ROUND((C12+E12)*'Форма 4'!C155/100,0) -> 33 | P12: =ROUND('Форма 4'!C141*'Базовые цены за единицу'!P12,0) -> 25 | Q12: =ROUND('Форма 4'!C141*'Базовые цены за единицу'!Q12,0) -> 39 | R12: =ROUND('Форма 4'!C141*'Базовые цены за единицу'!R12,0) -> 13 | S12: =ROUND('Форма 4'!C141*'Базовые цены за единицу'!S12,0) -> 20 | T12: =ROUND('Форма 4'!C141*'Базовые цены за единицу'!T12,0) -> 0 | U12: =ROUND('Форма 4'!C141*'Базовые цены за единицу'!U12,0) -> 0 | V12: =ROUND('Форма 4'!C141*'Базовые цены за единицу'!V12,0) -> 0 | X12: =ROUND('Форма 4'!C141*'Базовые цены за единицу'!X12,0) -> 0 | Y12: =IF(Определители!I12="9",ROUND((C12+E12)*(Начисления!M12/100)*('Форма 4'!C152/100),0),0) -> 0 | Z12: =IF(Определители!I12="9",ROUND((C12+E12)*(100-Начисления!M12/100)*('Форма 4'!C152/100),0),0) -> 0 | AA12: =IF(Определители!I12="9",ROUND((C12+E12)*(Начисления!M12/100)*('Форма 4'!C155/100),0),0) -> 0 | AB12: =IF(Определители!I12="9",ROUND((C12+E12)*(100-Начисления!M12/100)*('Форма 4'!C155/100),0),0) -> 0 | AC12: =IF(Определители!I12="9",ROUND(B12*Начисления!M12/100,0),0) -> 0 | AD12: =IF(Определители!I12="9",ROUND(B12*(100-Начисления!M12)/100,0),0) -> 0 | AE12: =ROUND('Форма 4'!C141*'Базовые цены за единицу'!AE12,0) -> 0 | AH12: =ROUND('Форма 4'!C141*'Базовые цены за единицу'!AH12,0) -> 0 | AI12: =ROUND('Форма 4'!C141*'Базовые цены за единицу'!AI12,0) -> 0 | AJ12: =ROUND('Форма 4'!C141*'Базовые цены за единицу'!AJ12,0) -> 0 | AK12: =ROUND('Форма 4'!C141*'Базовые цены за единицу'!AK12,0) -> 0
A13: ='Форма 4'!A160 -> 8. | B13: 147 | C13: =ROUND('Форма 4'!C160*'Базовые цены за единицу'!C13,0) -> 64 | D13: =ROUND('Форма 4'!C160*'Базовые цены за единицу'!D13,0) -> 19 | E13: =ROUND('Форма 4'!C160*'Базовые цены за единицу'!E13,0) -> 3 | F13: =ROUND('Форма 4'!C160*'Базовые цены за единицу'!F13,0) -> 64 | G13: =ROUND('Форма 4'!C160*'Базовые цены за единицу'!G13,0) -> 0 | H13: =ROUND('Форма 4'!C160*'Базовые цены за единицу'!H13,0) -> 0 | I13: =ОКРУГЛВСЕ('Форма 4'!C160*'Базовые цены за единицу'!I13,8) -> 5.9826 | J13: =ОКРУГЛВСЕ('Форма 4'!C160*'Базовые цены за единицу'!J13,8) -> 0 | K13: =ОКРУГЛВСЕ('Форма 4'!C160*'Базовые цены за единицу'!K13,8) -> 0.1862 | L13: =ROUND('Форма 4'!C160*'Базовые цены за единицу'!L13,0) -> 0 | M13: =ROUND('Форма 4'!C160*'Базовые цены за единицу'!M13,0) -> 0 | N13: =ROUND((C13+E13)*'Форма 4'!C171/100,0) -> 63 | O13: =ROUND((C13+E13)*'Форма 4'!C174/100,0) -> 37 | P13: =ROUND('Форма 4'!C160*'Базовые цены за единицу'!P13,0) -> 61 | Q13: =ROUND('Форма 4'!C160*'Базовые цены за единицу'!Q13,0) -> 3 | R13: =ROUND('Форма 4'!C160*'Базовые цены за единицу'!R13,0) -> 36 | S13: =ROUND('Форма 4'!C160*'Базовые цены за единицу'!S13,0) -> 2 | T13: =ROUND('Форма 4'!C160*'Базовые цены за единицу'!T13,0) -> 0 | U13: =ROUND('Форма 4'!C160*'Базовые цены за единицу'!U13,0) -> 0 | V13: =ROUND('Форма 4'!C160*'Базовые цены за единицу'!V13,0) -> 0 | X13: =ROUND('Форма 4'!C160*'Базовые цены за единицу'!X13,0) -> 0 | Y13: =IF(Определители!I13="9",ROUND((C13+E13)*(Начисления!M13/100)*('Форма 4'!C171/100),0),0) -> 0 | Z13: =IF(Определители!I13="9",ROUND((C13+E13)*(100-Начисления!M13/100)*('Форма 4'!C171/100),0),0) -> 0 | AA13: =IF(Определители!I13="9",ROUND((C13+E13)*(Начисления!M13/100)*('Форма 4'!C174/100),0),0) -> 0 | AB13: =IF(Определители!I13="9",ROUND((C13+E13)*(100-Начисления!M13/100)*('Форма 4'!C174/100),0),0) -> 0 | AC13: =IF(Определители!I13="9",ROUND(B13*Начисления!M13/100,0),0) -> 0 | AD13: =IF(Определители!I13="9",ROUND(B13*(100-Начисления!M13)/100,0),0) -> 0 | AE13: =ROUND('Форма 4'!C160*'Базовые цены за единицу'!AE13,0) -> 0 | AH13: =ROUND('Форма 4'!C160*'Базовые цены за единицу'!AH13,0) -> 0 | AI13: =ROUND('Форма 4'!C160*'Базовые цены за единицу'!AI13,0) -> 0 | AJ13: =ROUND('Форма 4'!C160*'Базовые цены за единицу'!AJ13,0) -> 0 | AK13: =ROUND('Форма 4'!C160*'Базовые цены за единицу'!AK13,0) -> 0
A14: ='Форма 4'!A179 -> 9. | B14: 562 | C14: =ROUND('Форма 4'!C179*'Базовые цены за единицу'!C14,0) -> 0 | D14: =ROUND('Форма 4'!C179*'Базовые цены за единицу'!D14,0) -> 0 | E14: =ROUND('Форма 4'!C179*'Базовые цены за единицу'!E14,0) -> 0 | F14: =ROUND('Форма 4'!C179*'Базовые цены за единицу'!F14,0) -> 562 | G14: =ROUND('Форма 4'!C179*'Базовые цены за единицу'!G14,0) -> 464 | H14: =ROUND('Форма 4'!C179*'Базовые цены за единицу'!H14,0) -> 0 | I14: =ОКРУГЛВСЕ('Форма 4'!C179*'Базовые цены за единицу'!I14,8) -> 0 | J14: =ОКРУГЛВСЕ('Форма 4'!C179*'Базовые цены за единицу'!J14,8) -> 0 | K14: =ОКРУГЛВСЕ('Форма 4'!C179*'Базовые цены за единицу'!K14,8) -> 0 | L14: =ROUND('Форма 4'!C179*'Базовые цены за единицу'!L14,0) -> 2499 | M14: =ROUND('Форма 4'!C179*'Базовые цены за единицу'!M14,0) -> 0 | N14: =ROUND((C14+E14)*'Форма 4'!C191/100,0) -> 0 | O14: =ROUND((C14+E14)*'Форма 4'!C194/100,0) -> 0 | P14: =ROUND('Форма 4'!C179*'Базовые цены за единицу'!P14,0) -> 0 | Q14: =ROUND('Форма 4'!C179*'Базовые цены за единицу'!Q14,0) -> 0 | R14: =ROUND('Форма 4'!C179*'Базовые цены за единицу'!R14,0) -> 0 | S14: =ROUND('Форма 4'!C179*'Базовые цены за единицу'!S14,0) -> 0 | T14: =ROUND('Форма 4'!C179*'Базовые цены за единицу'!T14,0) -> 0 | U14: =ROUND('Форма 4'!C179*'Базовые цены за единицу'!U14,0) -> 0 | V14: =ROUND('Форма 4'!C179*'Базовые цены за единицу'!V14,0) -> 0 | X14: =ROUND('Форма 4'!C179*'Базовые цены за единицу'!X14,0) -> 0 | Y14: =IF(Определители!I14="9",ROUND((C14+E14)*(Начисления!M14/100)*('Форма 4'!C191/100),0),0) -> 0 | Z14: =IF(Определители!I14="9",ROUND((C14+E14)*(100-Начисления!M14/100)*('Форма 4'!C191/100),0),0) -> 0 | AA14: =IF(Определители!I14="9",ROUND((C14+E14)*(Начисления!M14/100)*('Форма 4'!C194/100),0),0) -> 0 | AB14: =IF(Определители!I14="9",ROUND((C14+E14)*(100-Начисления!M14/100)*('Форма 4'!C194/100),0),0) -> 0 | AC14: =IF(Определители!I14="9",ROUND(B14*Начисления!M14/100,0),0) -> 0 | AD14: =IF(Определители!I14="9",ROUND(B14*(100-Начисления!M14)/100,0),0) -> 0 | AE14: =ROUND('Форма 4'!C179*'Базовые цены за единицу'!AE14,0) -> 0 | AH14: =ROUND('Форма 4'!C179*'Базовые цены за единицу'!AH14,0) -> 0 | AI14: =ROUND('Форма 4'!C179*'Базовые цены за единицу'!AI14,0) -> 0 | AJ14: =ROUND('Форма 4'!C179*'Базовые цены за единицу'!AJ14,0) -> 0 | AK14: =ROUND('Форма 4'!C179*'Базовые цены за единицу'!AK14,0) -> 0
A15: ='Форма 4'!A198 -> 10. | B15: 347 | C15: =ROUND('Форма 4'!C198*'Базовые цены за единицу'!C15,0) -> 47 | D15: =ROUND('Форма 4'!C198*'Базовые цены за единицу'!D15,0) -> 189 | E15: =ROUND('Форма 4'!C198*'Базовые цены за единицу'!E15,0) -> 23 | F15: =ROUND('Форма 4'!C198*'Базовые цены за единицу'!F15,0) -> 111 | G15: =ROUND('Форма 4'!C198*'Базовые цены за единицу'!G15,0) -> 0 | H15: =ROUND('Форма 4'!C198*'Базовые цены за единицу'!H15,0) -> 0 | I15: =ОКРУГЛВСЕ('Форма 4'!C198*'Базовые цены за единицу'!I15,8) -> 4.1517 | J15: =ОКРУГЛВСЕ('Форма 4'!C198*'Базовые цены за единицу'!J15,8) -> 0 | K15: =ОКРУГЛВСЕ('Форма 4'!C198*'Базовые цены за единицу'!K15,8) -> 1.3167 | L15: =ROUND('Форма 4'!C198*'Базовые цены за единицу'!L15,0) -> 0 | M15: =ROUND('Форма 4'!C198*'Базовые цены за единицу'!M15,0) -> 0 | N15: =ROUND((C15+E15)*'Форма 4'!C209/100,0) -> 57 | O15: =ROUND((C15+E15)*'Форма 4'!C212/100,0) -> 51 | P15: =ROUND('Форма 4'!C198*'Базовые цены за единицу'!P15,0) -> 38 | Q15: =ROUND('Форма 4'!C198*'Базовые цены за единицу'!Q15,0) -> 18 | R15: =ROUND('Форма 4'!C198*'Базовые цены за единицу'!R15,0) -> 34 | S15: =ROUND('Форма 4'!C198*'Базовые цены за единицу'!S15,0) -> 16 | T15: =ROUND('Форма 4'!C198*'Базовые цены за единицу'!T15,0) -> 0 | U15: =ROUND('Форма 4'!C198*'Базовые цены за единицу'!U15,0) -> 0 | V15: =ROUND('Форма 4'!C198*'Базовые цены за единицу'!V15,0) -> 0 | X15: =ROUND('Форма 4'!C198*'Базовые цены за единицу'!X15,0) -> 0 | Y15: =IF(Определители!I15="9",ROUND((C15+E15)*(Начисления!M15/100)*('Форма 4'!C209/100),0),0) -> 0 | Z15: =IF(Определители!I15="9",ROUND((C15+E15)*(100-Начисления!M15/100)*('Форма 4'!C209/100),0),0) -> 0 | AA15: =IF(Определители!I15="9",ROUND((C15+E15)*(Начисления!M15/100)*('Форма 4'!C212/100),0),0) -> 0 | AB15: =IF(Определители!I15="9",ROUND((C15+E15)*(100-Начисления!M15/100)*('Форма 4'!C212/100),0),0) -> 0 | AC15: =IF(Определители!I15="9",ROUND(B15*Начисления!M15/100,0),0) -> 0 | AD15: =IF(Определители!I15="9",ROUND(B15*(100-Начисления!M15)/100,0),0) -> 0 | AE15: =ROUND('Форма 4'!C198*'Базовые цены за единицу'!AE15,0) -> 0 | AH15: =ROUND('Форма 4'!C198*'Базовые цены за единицу'!AH15,0) -> 0 | AI15: =ROUND('Форма 4'!C198*'Базовые цены за единицу'!AI15,0) -> 0 | AJ15: =ROUND('Форма 4'!C198*'Базовые цены за единицу'!AJ15,0) -> 0 | AK15: =ROUND('Форма 4'!C198*'Базовые цены за единицу'!AK15,0) -> 0
A16: ='Форма 4'!A217 -> 11. | B16: 8700 | C16: =ROUND('Форма 4'!C217*'Базовые цены за единицу'!C16,0) -> 0 | D16: =ROUND('Форма 4'!C217*'Базовые цены за единицу'!D16,0) -> 0 | E16: =ROUND('Форма 4'!C217*'Базовые цены за единицу'!E16,0) -> 0 | F16: =ROUND('Форма 4'!C217*'Базовые цены за единицу'!F16,0) -> 8700 | G16: =ROUND('Форма 4'!C217*'Базовые цены за единицу'!G16,0) -> 8587 | H16: =ROUND('Форма 4'!C217*'Базовые цены за единицу'!H16,0) -> 0 | I16: =ОКРУГЛВСЕ('Форма 4'!C217*'Базовые цены за единицу'!I16,8) -> 0 | J16: =ОКРУГЛВСЕ('Форма 4'!C217*'Базовые цены за единицу'!J16,8) -> 0 | K16: =ОКРУГЛВСЕ('Форма 4'!C217*'Базовые цены за единицу'!K16,8) -> 0 | L16: =ROUND('Форма 4'!C217*'Базовые цены за единицу'!L16,0) -> 630 | M16: =ROUND('Форма 4'!C217*'Базовые цены за единицу'!M16,0) -> 0 | N16: =ROUND((C16+E16)*'Форма 4'!C228/100,0) -> 0 | O16: =ROUND((C16+E16)*'Форма 4'!C231/100,0) -> 0 | P16: =ROUND('Форма 4'!C217*'Базовые цены за единицу'!P16,0) -> 0 | Q16: =ROUND('Форма 4'!C217*'Базовые цены за единицу'!Q16,0) -> 0 | R16: =ROUND('Форма 4'!C217*'Базовые цены за единицу'!R16,0) -> 0 | S16: =ROUND('Форма 4'!C217*'Базовые цены за единицу'!S16,0) -> 0 | T16: =ROUND('Форма 4'!C217*'Базовые цены за единицу'!T16,0) -> 0 | U16: =ROUND('Форма 4'!C217*'Базовые цены за единицу'!U16,0) -> 0 | V16: =ROUND('Форма 4'!C217*'Базовые цены за единицу'!V16,0) -> 0 | X16: =ROUND('Форма 4'!C217*'Базовые цены за единицу'!X16,0) -> 0 | Y16: =IF(Определители!I16="9",ROUND((C16+E16)*(Начисления!M16/100)*('Форма 4'!C228/100),0),0) -> 0 | Z16: =IF(Определители!I16="9",ROUND((C16+E16)*(100-Начисления!M16/100)*('Форма 4'!C228/100),0),0) -> 0 | AA16: =IF(Определители!I16="9",ROUND((C16+E16)*(Начисления!M16/100)*('Форма 4'!C231/100),0),0) -> 0 | AB16: =IF(Определители!I16="9",ROUND((C16+E16)*(100-Начисления!M16/100)*('Форма 4'!C231/100),0),0) -> 0 | AC16: =IF(Определители!I16="9",ROUND(B16*Начисления!M16/100,0),0) -> 0 | AD16: =IF(Определители!I16="9",ROUND(B16*(100-Начисления!M16)/100,0),0) -> 0 | AE16: =ROUND('Форма 4'!C217*'Базовые цены за единицу'!AE16,0) -> 0 | AH16: =ROUND('Форма 4'!C217*'Базовые цены за единицу'!AH16,0) -> 0 | AI16: =ROUND('Форма 4'!C217*'Базовые цены за единицу'!AI16,0) -> 0 | AJ16: =ROUND('Форма 4'!C217*'Базовые цены за единицу'!AJ16,0) -> 0 | AK16: =ROUND('Форма 4'!C217*'Базовые цены за единицу'!AK16,0) -> 0
A17: ='Форма 4'!A235 -> 12. | B17: 133 | C17: =ROUND('Форма 4'!C235*'Базовые цены за единицу'!C17,0) -> 29 | D17: =ROUND('Форма 4'!C235*'Базовые цены за единицу'!D17,0) -> 4 | E17: =ROUND('Форма 4'!C235*'Базовые цены за единицу'!E17,0) -> 0 | F17: =ROUND('Форма 4'!C235*'Базовые цены за единицу'!F17,0) -> 100 | G17: =ROUND('Форма 4'!C235*'Базовые цены за единицу'!G17,0) -> 0 | H17: =ROUND('Форма 4'!C235*'Базовые цены за единицу'!H17,0) -> 0 | I17: =ОКРУГЛВСЕ('Форма 4'!C235*'Базовые цены за единицу'!I17,8) -> 2.124 | J17: =ОКРУГЛВСЕ('Форма 4'!C235*'Базовые цены за единицу'!J17,8) -> 0 | K17: =ОКРУГЛВСЕ('Форма 4'!C235*'Базовые цены за единицу'!K17,8) -> 0.004 | L17: =ROUND('Форма 4'!C235*'Базовые цены за единицу'!L17,0) -> 0 | M17: =ROUND('Форма 4'!C235*'Базовые цены за единицу'!M17,0) -> 0 | N17: =ROUND((C17+E17)*'Форма 4'!C247/100,0) -> 23 | O17: =ROUND((C17+E17)*'Форма 4'!C250/100,0) -> 17 | P17: =ROUND('Форма 4'!C235*'Базовые цены за единицу'!P17,0) -> 23 | Q17: =ROUND('Форма 4'!C235*'Базовые цены за единицу'!Q17,0) -> 0 | R17: =ROUND('Форма 4'!C235*'Базовые цены за единицу'!R17,0) -> 17 | S17: =ROUND('Форма 4'!C235*'Базовые цены за единицу'!S17,0) -> 0 | T17: =ROUND('Форма 4'!C235*'Базовые цены за единицу'!T17,0) -> 0 | U17: =ROUND('Форма 4'!C235*'Базовые цены за единицу'!U17,0) -> 0 | V17: =ROUND('Форма 4'!C235*'Базовые цены за единицу'!V17,0) -> 0 | X17: =ROUND('Форма 4'!C235*'Базовые цены за единицу'!X17,0) -> 0 | Y17: =IF(Определители!I17="9",ROUND((C17+E17)*(Начисления!M17/100)*('Форма 4'!C247/100),0),0) -> 0 | Z17: =IF(Определители!I17="9",ROUND((C17+E17)*(100-Начисления!M17/100)*('Форма 4'!C247/100),0),0) -> 0 | AA17: =IF(Определители!I17="9",ROUND((C17+E17)*(Начисления!M17/100)*('Форма 4'!C250/100),0),0) -> 0 | AB17: =IF(Определители!I17="9",ROUND((C17+E17)*(100-Начисления!M17/100)*('Форма 4'!C250/100),0),0) -> 0 | AC17: =IF(Определители!I17="9",ROUND(B17*Начисления!M17/100,0),0) -> 0 | AD17: =IF(Определители!I17="9",ROUND(B17*(100-Начисления!M17)/100,0),0) -> 0 | AE17: =ROUND('Форма 4'!C235*'Базовые цены за единицу'!AE17,0) -> 0 | AH17: =ROUND('Форма 4'!C235*'Базовые цены за единицу'!AH17,0) -> 0 | AI17: =ROUND('Форма 4'!C235*'Базовые цены за единицу'!AI17,0) -> 0 | AJ17: =ROUND('Форма 4'!C235*'Базовые цены за единицу'!AJ17,0) -> 0 | AK17: =ROUND('Форма 4'!C235*'Базовые цены за единицу'!AK17,0) -> 0
A18: ='Форма 4'!A255 -> 13. | B18: 176 | C18: =ROUND('Форма 4'!C255*'Базовые цены за единицу'!C18,0) -> 18 | D18: =ROUND('Форма 4'!C255*'Базовые цены за единицу'!D18,0) -> 3 | E18: =ROUND('Форма 4'!C255*'Базовые цены за единицу'!E18,0) -> 0 | F18: =ROUND('Форма 4'!C255*'Базовые цены за единицу'!F18,0) -> 155 | G18: =ROUND('Форма 4'!C255*'Базовые цены за единицу'!G18,0) -> 0 | H18: =ROUND('Форма 4'!C255*'Базовые цены за единицу'!H18,0) -> 0 | I18: =ОКРУГЛВСЕ('Форма 4'!C255*'Базовые цены за единицу'!I18,8) -> 1.532 | J18: =ОКРУГЛВСЕ('Форма 4'!C255*'Базовые цены за единицу'!J18,8) -> 0 | K18: =ОКРУГЛВСЕ('Форма 4'!C255*'Базовые цены за единицу'!K18,8) -> 0.004 | L18: =ROUND('Форма 4'!C255*'Базовые цены за единицу'!L18,0) -> 0 | M18: =ROUND('Форма 4'!C255*'Базовые цены за единицу'!M18,0) -> 0 | N18: =ROUND((C18+E18)*'Форма 4'!C267/100,0) -> 15 | O18: =ROUND((C18+E18)*'Форма 4'!C270/100,0) -> 11 | P18: =ROUND('Форма 4'!C255*'Базовые цены за единицу'!P18,0) -> 14 | Q18: =ROUND('Форма 4'!C255*'Базовые цены за единицу'!Q18,0) -> 0 | R18: =ROUND('Форма 4'!C255*'Базовые цены за единицу'!R18,0) -> 10 | S18: =ROUND('Форма 4'!C255*'Базовые цены за единицу'!S18,0) -> 0 | T18: =ROUND('Форма 4'!C255*'Базовые цены за единицу'!T18,0) -> 0 | U18: =ROUND('Форма 4'!C255*'Базовые цены за единицу'!U18,0) -> 0 | V18: =ROUND('Форма 4'!C255*'Базовые цены за единицу'!V18,0) -> 0 | X18: =ROUND('Форма 4'!C255*'Базовые цены за единицу'!X18,0) -> 0 | Y18: =IF(Определители!I18="9",ROUND((C18+E18)*(Начисления!M18/100)*('Форма 4'!C267/100),0),0) -> 0 | Z18: =IF(Определители!I18="9",ROUND((C18+E18)*(100-Начисления!M18/100)*('Форма 4'!C267/100),0),0) -> 0 | AA18: =IF(Определители!I18="9",ROUND((C18+E18)*(Начисления!M18/100)*('Форма 4'!C270/100),0),0) -> 0 | AB18: =IF(Определители!I18="9",ROUND((C18+E18)*(100-Начисления!M18/100)*('Форма 4'!C270/100),0),0) -> 0 | AC18: =IF(Определители!I18="9",ROUND(B18*Начисления!M18/100,0),0) -> 0 | AD18: =IF(Определители!I18="9",ROUND(B18*(100-Начисления!M18)/100,0),0) -> 0 | AE18: =ROUND('Форма 4'!C255*'Базовые цены за единицу'!AE18,0) -> 0 | AH18: =ROUND('Форма 4'!C255*'Базовые цены за единицу'!AH18,0) -> 0 | AI18: =ROUND('Форма 4'!C255*'Базовые цены за единицу'!AI18,0) -> 0 | AJ18: =ROUND('Форма 4'!C255*'Базовые цены за единицу'!AJ18,0) -> 0 | AK18: =ROUND('Форма 4'!C255*'Базовые цены за единицу'!AK18,0) -> 0
A19: ='Форма 4'!A275 -> 14. | B19: 5479 | C19: =ROUND('Форма 4'!C275*'Базовые цены за единицу'!C19,0) -> 1395 | D19: =ROUND('Форма 4'!C275*'Базовые цены за единицу'!D19,0) -> 2899 | E19: =ROUND('Форма 4'!C275*'Базовые цены за единицу'!E19,0) -> 276 | F19: =ROUND('Форма 4'!C275*'Базовые цены за единицу'!F19,0) -> 1185 | G19: =ROUND('Форма 4'!C275*'Базовые цены за единицу'!G19,0) -> 0 | H19: =ROUND('Форма 4'!C275*'Базовые цены за единицу'!H19,0) -> 0 | I19: =ОКРУГЛВСЕ('Форма 4'!C275*'Базовые цены за единицу'!I19,8) -> 114.75 | J19: =ОКРУГЛВСЕ('Форма 4'!C275*'Базовые цены за единицу'!J19,8) -> 0 | K19: =ОКРУГЛВСЕ('Форма 4'!C275*'Базовые цены за единицу'!K19,8) -> 19.4625 | L19: =ROUND('Форма 4'!C275*'Базовые цены за единицу'!L19,0) -> 0 | M19: =ROUND('Форма 4'!C275*'Базовые цены за единицу'!M19,0) -> 0 | N19: =ROUND((C19+E19)*'Форма 4'!C286/100,0) -> 1955 | O19: =ROUND((C19+E19)*'Форма 4'!C289/100,0) -> 1264 | P19: =ROUND('Форма 4'!C275*'Базовые цены за единицу'!P19,0) -> 1633 | Q19: =ROUND('Форма 4'!C275*'Базовые цены за единицу'!Q19,0) -> 323 | R19: =ROUND('Форма 4'!C275*'Базовые цены за единицу'!R19,0) -> 1056 | S19: =ROUND('Форма 4'!C275*'Базовые цены за единицу'!S19,0) -> 209 | T19: =ROUND('Форма 4'!C275*'Базовые цены за единицу'!T19,0) -> 0 | U19: =ROUND('Форма 4'!C275*'Базовые цены за единицу'!U19,0) -> 0 | V19: =ROUND('Форма 4'!C275*'Базовые цены за единицу'!V19,0) -> 0 | X19: =ROUND('Форма 4'!C275*'Базовые цены за единицу'!X19,0) -> 0 | Y19: =IF(Определители!I19="9",ROUND((C19+E19)*(Начисления!M19/100)*('Форма 4'!C286/100),0),0) -> 0 | Z19: =IF(Определители!I19="9",ROUND((C19+E19)*(100-Начисления!M19/100)*('Форма 4'!C286/100),0),0) -> 0 | AA19: =IF(Определители!I19="9",ROUND((C19+E19)*(Начисления!M19/100)*('Форма 4'!C289/100),0),0) -> 0 | AB19: =IF(Определители!I19="9",ROUND((C19+E19)*(100-Начисления!M19/100)*('Форма 4'!C289/100),0),0) -> 0 | AC19: =IF(Определители!I19="9",ROUND(B19*Начисления!M19/100,0),0) -> 0 | AD19: =IF(Определители!I19="9",ROUND(B19*(100-Начисления!M19)/100,0),0) -> 0 | AE19: =ROUND('Форма 4'!C275*'Базовые цены за единицу'!AE19,0) -> 0 | AH19: =ROUND('Форма 4'!C275*'Базовые цены за единицу'!AH19,0) -> 0 | AI19: =ROUND('Форма 4'!C275*'Базовые цены за единицу'!AI19,0) -> 0 | AJ19: =ROUND('Форма 4'!C275*'Базовые цены за единицу'!AJ19,0) -> 0 | AK19: =ROUND('Форма 4'!C275*'Базовые цены за единицу'!AK19,0) -> 0
A20: ='Форма 4'!A294 -> 15. | B20: 13812 | C20: =ROUND('Форма 4'!C294*'Базовые цены за единицу'!C20,0) -> 0 | D20: =ROUND('Форма 4'!C294*'Базовые цены за единицу'!D20,0) -> 0 | E20: =ROUND('Форма 4'!C294*'Базовые цены за единицу'!E20,0) -> 0 | F20: =ROUND('Форма 4'!C294*'Базовые цены за единицу'!F20,0) -> 13812 | G20: =ROUND('Форма 4'!C294*'Базовые цены за единицу'!G20,0) -> 13420 | H20: =ROUND('Форма 4'!C294*'Базовые цены за единицу'!H20,0) -> 0 | I20: =ОКРУГЛВСЕ('Форма 4'!C294*'Базовые цены за единицу'!I20,8) -> 0 | J20: =ОКРУГЛВСЕ('Форма 4'!C294*'Базовые цены за единицу'!J20,8) -> 0 | K20: =ОКРУГЛВСЕ('Форма 4'!C294*'Базовые цены за единицу'!K20,8) -> 0 | L20: =ROUND('Форма 4'!C294*'Базовые цены за единицу'!L20,0) -> 2118 | M20: =ROUND('Форма 4'!C294*'Базовые цены за единицу'!M20,0) -> 0 | N20: =ROUND((C20+E20)*'Форма 4'!C306/100,0) -> 0 | O20: =ROUND((C20+E20)*'Форма 4'!C309/100,0) -> 0 | P20: =ROUND('Форма 4'!C294*'Базовые цены за единицу'!P20,0) -> 0 | Q20: =ROUND('Форма 4'!C294*'Базовые цены за единицу'!Q20,0) -> 0 | R20: =ROUND('Форма 4'!C294*'Базовые цены за единицу'!R20,0) -> 0 | S20: =ROUND('Форма 4'!C294*'Базовые цены за единицу'!S20,0) -> 0 | T20: =ROUND('Форма 4'!C294*'Базовые цены за единицу'!T20,0) -> 0 | U20: =ROUND('Форма 4'!C294*'Базовые цены за единицу'!U20,0) -> 0 | V20: =ROUND('Форма 4'!C294*'Базовые цены за единицу'!V20,0) -> 0 | X20: =ROUND('Форма 4'!C294*'Базовые цены за единицу'!X20,0) -> 0 | Y20: =IF(Определители!I20="9",ROUND((C20+E20)*(Начисления!M20/100)*('Форма 4'!C306/100),0),0) -> 0 | Z20: =IF(Определители!I20="9",ROUND((C20+E20)*(100-Начисления!M20/100)*('Форма 4'!C306/100),0),0) -> 0 | AA20: =IF(Определители!I20="9",ROUND((C20+E20)*(Начисления!M20/100)*('Форма 4'!C309/100),0),0) -> 0 | AB20: =IF(Определители!I20="9",ROUND((C20+E20)*(100-Начисления!M20/100)*('Форма 4'!C309/100),0),0) -> 0 | AC20: =IF(Определители!I20="9",ROUND(B20*Начисления!M20/100,0),0) -> 0 | AD20: =IF(Определители!I20="9",ROUND(B20*(100-Начисления!M20)/100,0),0) -> 0 | AE20: =ROUND('Форма 4'!C294*'Базовые цены за единицу'!AE20,0) -> 0 | AH20: =ROUND('Форма 4'!C294*'Базовые цены за единицу'!AH20,0) -> 0 | AI20: =ROUND('Форма 4'!C294*'Базовые цены за единицу'!AI20,0) -> 0 | AJ20: =ROUND('Форма 4'!C294*'Базовые цены за единицу'!AJ20,0) -> 0 | AK20: =ROUND('Форма 4'!C294*'Базовые цены за единицу'!AK20,0) -> 0
A21: ='Форма 4'!A313 -> 16. | B21: 761 | C21: =ROUND('Форма 4'!C313*'Базовые цены за единицу'!C21,0) -> 0 | D21: =ROUND('Форма 4'!C313*'Базовые цены за единицу'!D21,0) -> 0 | E21: =ROUND('Форма 4'!C313*'Базовые цены за единицу'!E21,0) -> 0 | F21: =ROUND('Форма 4'!C313*'Базовые цены за единицу'!F21,0) -> 761 | G21: =ROUND('Форма 4'!C313*'Базовые цены за единицу'!G21,0) -> 743 | H21: =ROUND('Форма 4'!C313*'Базовые цены за единицу'!H21,0) -> 0 | I21: =ОКРУГЛВСЕ('Форма 4'!C313*'Базовые цены за единицу'!I21,8) -> 0 | J21: =ОКРУГЛВСЕ('Форма 4'!C313*'Базовые цены за единицу'!J21,8) -> 0 | K21: =ОКРУГЛВСЕ('Форма 4'!C313*'Базовые цены за единицу'!K21,8) -> 0 | L21: =ROUND('Форма 4'!C313*'Базовые цены за единицу'!L21,0) -> 26 | M21: =ROUND('Форма 4'!C313*'Базовые цены за единицу'!M21,0) -> 0 | N21: =ROUND((C21+E21)*'Форма 4'!C324/100,0) -> 0 | O21: =ROUND((C21+E21)*'Форма 4'!C327/100,0) -> 0 | P21: =ROUND('Форма 4'!C313*'Базовые цены за единицу'!P21,0) -> 0 | Q21: =ROUND('Форма 4'!C313*'Базовые цены за единицу'!Q21,0) -> 0 | R21: =ROUND('Форма 4'!C313*'Базовые цены за единицу'!R21,0) -> 0 | S21: =ROUND('Форма 4'!C313*'Базовые цены за единицу'!S21,0) -> 0 | T21: =ROUND('Форма 4'!C313*'Базовые цены за единицу'!T21,0) -> 0 | U21: =ROUND('Форма 4'!C313*'Базовые цены за единицу'!U21,0) -> 0 | V21: =ROUND('Форма 4'!C313*'Базовые цены за единицу'!V21,0) -> 0 | X21: =ROUND('Форма 4'!C313*'Базовые цены за единицу'!X21,0) -> 0 | Y21: =IF(Определители!I21="9",ROUND((C21+E21)*(Начисления!M21/100)*('Форма 4'!C324/100),0),0) -> 0 | Z21: =IF(Определители!I21="9",ROUND((C21+E21)*(100-Начисления!M21/100)*('Форма 4'!C324/100),0),0) -> 0 | AA21: =IF(Определители!I21="9",ROUND((C21+E21)*(Начисления!M21/100)*('Форма 4'!C327/100),0),0) -> 0 | AB21: =IF(Определители!I21="9",ROUND((C21+E21)*(100-Начисления!M21/100)*('Форма 4'!C327/100),0),0) -> 0 | AC21: =IF(Определители!I21="9",ROUND(B21*Начисления!M21/100,0),0) -> 0 | AD21: =IF(Определители!I21="9",ROUND(B21*(100-Начисления!M21)/100,0),0) -> 0 | AE21: =ROUND('Форма 4'!C313*'Базовые цены за единицу'!AE21,0) -> 0 | AH21: =ROUND('Форма 4'!C313*'Базовые цены за единицу'!AH21,0) -> 0 | AI21: =ROUND('Форма 4'!C313*'Базовые цены за единицу'!AI21,0) -> 0 | AJ21: =ROUND('Форма 4'!C313*'Базовые цены за единицу'!AJ21,0) -> 0 | AK21: =ROUND('Форма 4'!C313*'Базовые цены за единицу'!AK21,0) -> 0
A22: ='Форма 4'!A331 -> 17. | B22: 149 | C22: =ROUND('Форма 4'!C331*'Базовые цены за единицу'!C22,0) -> 0 | D22: =ROUND('Форма 4'!C331*'Базовые цены за единицу'!D22,0) -> 0 | E22: =ROUND('Форма 4'!C331*'Базовые цены за единицу'!E22,0) -> 0 | F22: =ROUND('Форма 4'!C331*'Базовые цены за единицу'!F22,0) -> 149 | G22: =ROUND('Форма 4'!C331*'Базовые цены за единицу'!G22,0) -> 146 | H22: =ROUND('Форма 4'!C331*'Базовые цены за единицу'!H22,0) -> 0 | I22: =ОКРУГЛВСЕ('Форма 4'!C331*'Базовые цены за единицу'!I22,8) -> 0 | J22: =ОКРУГЛВСЕ('Форма 4'!C331*'Базовые цены за единицу'!J22,8) -> 0 | K22: =ОКРУГЛВСЕ('Форма 4'!C331*'Базовые цены за единицу'!K22,8) -> 0 | L22: =ROUND('Форма 4'!C331*'Базовые цены за единицу'!L22,0) -> 0 | M22: =ROUND('Форма 4'!C331*'Базовые цены за единицу'!M22,0) -> 0 | N22: =ROUND((C22+E22)*'Форма 4'!C342/100,0) -> 0 | O22: =ROUND((C22+E22)*'Форма 4'!C345/100,0) -> 0 | P22: =ROUND('Форма 4'!C331*'Базовые цены за единицу'!P22,0) -> 0 | Q22: =ROUND('Форма 4'!C331*'Базовые цены за единицу'!Q22,0) -> 0 | R22: =ROUND('Форма 4'!C331*'Базовые цены за единицу'!R22,0) -> 0 | S22: =ROUND('Форма 4'!C331*'Базовые цены за единицу'!S22,0) -> 0 | T22: =ROUND('Форма 4'!C331*'Базовые цены за единицу'!T22,0) -> 0 | U22: =ROUND('Форма 4'!C331*'Базовые цены за единицу'!U22,0) -> 0 | V22: =ROUND('Форма 4'!C331*'Базовые цены за единицу'!V22,0) -> 0 | X22: =ROUND('Форма 4'!C331*'Базовые цены за единицу'!X22,0) -> 0 | Y22: =IF(Определители!I22="9",ROUND((C22+E22)*(Начисления!M22/100)*('Форма 4'!C342/100),0),0) -> 0 | Z22: =IF(Определители!I22="9",ROUND((C22+E22)*(100-Начисления!M22/100)*('Форма 4'!C342/100),0),0) -> 0 | AA22: =IF(Определители!I22="9",ROUND((C22+E22)*(Начисления!M22/100)*('Форма 4'!C345/100),0),0) -> 0 | AB22: =IF(Определители!I22="9",ROUND((C22+E22)*(100-Начисления!M22/100)*('Форма 4'!C345/100),0),0) -> 0 | AC22: =IF(Определители!I22="9",ROUND(B22*Начисления!M22/100,0),0) -> 0 | AD22: =IF(Определители!I22="9",ROUND(B22*(100-Начисления!M22)/100,0),0) -> 0 | AE22: =ROUND('Форма 4'!C331*'Базовые цены за единицу'!AE22,0) -> 0 | AH22: =ROUND('Форма 4'!C331*'Базовые цены за единицу'!AH22,0) -> 0 | AI22: =ROUND('Форма 4'!C331*'Базовые цены за единицу'!AI22,0) -> 0 | AJ22: =ROUND('Форма 4'!C331*'Базовые цены за единицу'!AJ22,0) -> 0 | AK22: =ROUND('Форма 4'!C331*'Базовые цены за единицу'!AK22,0) -> 0
A23: ='Форма 4'!A349 -> 18. | B23: 232 | C23: =ROUND('Форма 4'!C349*'Базовые цены за единицу'!C23,0) -> 50 | D23: =ROUND('Форма 4'!C349*'Базовые цены за единицу'!D23,0) -> 7 | E23: =ROUND('Форма 4'!C349*'Базовые цены за единицу'!E23,0) -> 0 | F23: =ROUND('Форма 4'!C349*'Базовые цены за единицу'!F23,0) -> 175 | G23: =ROUND('Форма 4'!C349*'Базовые цены за единицу'!G23,0) -> 0 | H23: =ROUND('Форма 4'!C349*'Базовые цены за единицу'!H23,0) -> 0 | I23: =ОКРУГЛВСЕ('Форма 4'!C349*'Базовые цены за единицу'!I23,8) -> 3.7098315 | J23: =ОКРУГЛВСЕ('Форма 4'!C349*'Базовые цены за единицу'!J23,8) -> 0 | K23: =ОКРУГЛВСЕ('Форма 4'!C349*'Базовые цены за единицу'!K23,8) -> 0.0069865 | L23: =ROUND('Форма 4'!C349*'Базовые цены за единицу'!L23,0) -> 0 | M23: =ROUND('Форма 4'!C349*'Базовые цены за единицу'!M23,0) -> 0 | N23: =ROUND((C23+E23)*'Форма 4'!C361/100,0) -> 41 | O23: =ROUND((C23+E23)*'Форма 4'!C364/100,0) -> 30 | P23: =ROUND('Форма 4'!C349*'Базовые цены за единицу'!P23,0) -> 40 | Q23: =ROUND('Форма 4'!C349*'Базовые цены за единицу'!Q23,0) -> 0 | R23: =ROUND('Форма 4'!C349*'Базовые цены за единицу'!R23,0) -> 30 | S23: =ROUND('Форма 4'!C349*'Базовые цены за единицу'!S23,0) -> 0 | T23: =ROUND('Форма 4'!C349*'Базовые цены за единицу'!T23,0) -> 0 | U23: =ROUND('Форма 4'!C349*'Базовые цены за единицу'!U23,0) -> 0 | V23: =ROUND('Форма 4'!C349*'Базовые цены за единицу'!V23,0) -> 0 | X23: =ROUND('Форма 4'!C349*'Базовые цены за единицу'!X23,0) -> 0 | Y23: =IF(Определители!I23="9",ROUND((C23+E23)*(Начисления!M23/100)*('Форма 4'!C361/100),0),0) -> 0 | Z23: =IF(Определители!I23="9",ROUND((C23+E23)*(100-Начисления!M23/100)*('Форма 4'!C361/100),0),0) -> 0 | AA23: =IF(Определители!I23="9",ROUND((C23+E23)*(Начисления!M23/100)*('Форма 4'!C364/100),0),0) -> 0 | AB23: =IF(Определители!I23="9",ROUND((C23+E23)*(100-Начисления!M23/100)*('Форма 4'!C364/100),0),0) -> 0 | AC23: =IF(Определители!I23="9",ROUND(B23*Начисления!M23/100,0),0) -> 0 | AD23: =IF(Определители!I23="9",ROUND(B23*(100-Начисления!M23)/100,0),0) -> 0 | AE23: =ROUND('Форма 4'!C349*'Базовые цены за единицу'!AE23,0) -> 0 | AH23: =ROUND('Форма 4'!C349*'Базовые цены за единицу'!AH23,0) -> 0 | AI23: =ROUND('Форма 4'!C349*'Базовые цены за единицу'!AI23,0) -> 0 | AJ23: =ROUND('Форма 4'!C349*'Базовые цены за единицу'!AJ23,0) -> 0 | AK23: =ROUND('Форма 4'!C349*'Базовые цены за единицу'!AK23,0) -> 0
A24: ='Форма 4'!A369 -> 19. | B24: 623 | C24: =ROUND('Форма 4'!C369*'Базовые цены за единицу'!C24,0) -> 345 | D24: =ROUND('Форма 4'!C369*'Базовые цены за единицу'!D24,0) -> 0 | E24: =ROUND('Форма 4'!C369*'Базовые цены за единицу'!E24,0) -> 0 | F24: =ROUND('Форма 4'!C369*'Базовые цены за единицу'!F24,0) -> 278 | G24: =ROUND('Форма 4'!C369*'Базовые цены за единицу'!G24,0) -> 0 | H24: =ROUND('Форма 4'!C369*'Базовые цены за единицу'!H24,0) -> 0 | I24: =ОКРУГЛВСЕ('Форма 4'!C369*'Базовые цены за единицу'!I24,8) -> 30.415806 | J24: =ОКРУГЛВСЕ('Форма 4'!C369*'Базовые цены за единицу'!J24,8) -> 0 | K24: =ОКРУГЛВСЕ('Форма 4'!C369*'Базовые цены за единицу'!K24,8) -> 0 | L24: =ROUND('Форма 4'!C369*'Базовые цены за единицу'!L24,0) -> 0 | M24: =ROUND('Форма 4'!C369*'Базовые цены за единицу'!M24,0) -> 0 | N24: =ROUND((C24+E24)*'Форма 4'!C382/100,0) -> 311 | O24: =ROUND((C24+E24)*'Форма 4'!C385/100,0) -> 205 | P24: =ROUND('Форма 4'!C369*'Базовые цены за единицу'!P24,0) -> 310 | Q24: =ROUND('Форма 4'!C369*'Базовые цены за единицу'!Q24,0) -> 0 | R24: =ROUND('Форма 4'!C369*'Базовые цены за единицу'!R24,0) -> 205 | S24: =ROUND('Форма 4'!C369*'Базовые цены за единицу'!S24,0) -> 0 | T24: =ROUND('Форма 4'!C369*'Базовые цены за единицу'!T24,0) -> 0 | U24: =ROUND('Форма 4'!C369*'Базовые цены за единицу'!U24,0) -> 0 | V24: =ROUND('Форма 4'!C369*'Базовые цены за единицу'!V24,0) -> 0 | X24: =ROUND('Форма 4'!C369*'Базовые цены за единицу'!X24,0) -> 0 | Y24: =IF(Определители!I24="9",ROUND((C24+E24)*(Начисления!M24/100)*('Форма 4'!C382/100),0),0) -> 0 | Z24: =IF(Определители!I24="9",ROUND((C24+E24)*(100-Начисления!M24/100)*('Форма 4'!C382/100),0),0) -> 0 | AA24: =IF(Определители!I24="9",ROUND((C24+E24)*(Начисления!M24/100)*('Форма 4'!C385/100),0),0) -> 0 | AB24: =IF(Определители!I24="9",ROUND((C24+E24)*(100-Начисления!M24/100)*('Форма 4'!C385/100),0),0) -> 0 | AC24: =IF(Определители!I24="9",ROUND(B24*Начисления!M24/100,0),0) -> 0 | AD24: =IF(Определители!I24="9",ROUND(B24*(100-Начисления!M24)/100,0),0) -> 0 | AE24: =ROUND('Форма 4'!C369*'Базовые цены за единицу'!AE24,0) -> 0 | AH24: =ROUND('Форма 4'!C369*'Базовые цены за единицу'!AH24,0) -> 0 | AI24: =ROUND('Форма 4'!C369*'Базовые цены за единицу'!AI24,0) -> 0 | AJ24: =ROUND('Форма 4'!C369*'Базовые цены за единицу'!AJ24,0) -> 0 | AK24: =ROUND('Форма 4'!C369*'Базовые цены за единицу'!AK24,0) -> 0
A25: ='Форма 4'!A390 -> 20. | B25: 9341 | C25: =ROUND('Форма 4'!C390*'Базовые цены за единицу'!C25,0) -> 0 | D25: =ROUND('Форма 4'!C390*'Базовые цены за единицу'!D25,0) -> 0 | E25: =ROUND('Форма 4'!C390*'Базовые цены за единицу'!E25,0) -> 0 | F25: =ROUND('Форма 4'!C390*'Базовые цены за единицу'!F25,0) -> 9341 | G25: =ROUND('Форма 4'!C390*'Базовые цены за единицу'!G25,0) -> 7159 | H25: =ROUND('Форма 4'!C390*'Базовые цены за единицу'!H25,0) -> 0 | I25: =ОКРУГЛВСЕ('Форма 4'!C390*'Базовые цены за единицу'!I25,8) -> 0 | J25: =ОКРУГЛВСЕ('Форма 4'!C390*'Базовые цены за единицу'!J25,8) -> 0 | K25: =ОКРУГЛВСЕ('Форма 4'!C390*'Базовые цены за единицу'!K25,8) -> 0 | L25: =ROUND('Форма 4'!C390*'Базовые цены за единицу'!L25,0) -> 0 | M25: =ROUND('Форма 4'!C390*'Базовые цены за единицу'!M25,0) -> 0 | N25: =ROUND((C25+E25)*'Форма 4'!C402/100,0) -> 0 | O25: =ROUND((C25+E25)*'Форма 4'!C405/100,0) -> 0 | P25: =ROUND('Форма 4'!C390*'Базовые цены за единицу'!P25,0) -> 0 | Q25: =ROUND('Форма 4'!C390*'Базовые цены за единицу'!Q25,0) -> 0 | R25: =ROUND('Форма 4'!C390*'Базовые цены за единицу'!R25,0) -> 0 | S25: =ROUND('Форма 4'!C390*'Базовые цены за единицу'!S25,0) -> 0 | T25: =ROUND('Форма 4'!C390*'Базовые цены за единицу'!T25,0) -> 0 | U25: =ROUND('Форма 4'!C390*'Базовые цены за единицу'!U25,0) -> 0 | V25: =ROUND('Форма 4'!C390*'Базовые цены за единицу'!V25,0) -> 0 | X25: =ROUND('Форма 4'!C390*'Базовые цены за единицу'!X25,0) -> 0 | Y25: =IF(Определители!I25="9",ROUND((C25+E25)*(Начисления!M25/100)*('Форма 4'!C402/100),0),0) -> 0 | Z25: =IF(Определители!I25="9",ROUND((C25+E25)*(100-Начисления!M25/100)*('Форма 4'!C402/100),0),0) -> 0 | AA25: =IF(Определители!I25="9",ROUND((C25+E25)*(Начисления!M25/100)*('Форма 4'!C405/100),0),0) -> 0 | AB25: =IF(Определители!I25="9",ROUND((C25+E25)*(100-Начисления!M25/100)*('Форма 4'!C405/100),0),0) -> 0 | AC25: =IF(Определители!I25="9",ROUND(B25*Начисления!M25/100,0),0) -> 0 | AD25: =IF(Определители!I25="9",ROUND(B25*(100-Начисления!M25)/100,0),0) -> 0 | AE25: =ROUND('Форма 4'!C390*'Базовые цены за единицу'!AE25,0) -> 0 | AH25: =ROUND('Форма 4'!C390*'Базовые цены за единицу'!AH25,0) -> 0 | AI25: =ROUND('Форма 4'!C390*'Базовые цены за единицу'!AI25,0) -> 0 | AJ25: =ROUND('Форма 4'!C390*'Базовые цены за единицу'!AJ25,0) -> 0 | AK25: =ROUND('Форма 4'!C390*'Базовые цены за единицу'!AK25,0) -> 0
A26: ='Форма 4'!A409 -> 21. | B26: 2309 | C26: =ROUND('Форма 4'!C409*'Базовые цены за единицу'!C26,0) -> 2105 | D26: =ROUND('Форма 4'!C409*'Базовые цены за единицу'!D26,0) -> 118 | E26: =ROUND('Форма 4'!C409*'Базовые цены за единицу'!E26,0) -> 0 | F26: =ROUND('Форма 4'!C409*'Базовые цены за единицу'!F26,0) -> 86 | G26: =ROUND('Форма 4'!C409*'Базовые цены за единицу'!G26,0) -> 0 | H26: =ROUND('Форма 4'!C409*'Базовые цены за единицу'!H26,0) -> 0 | I26: =ОКРУГЛВСЕ('Форма 4'!C409*'Базовые цены за единицу'!I26,8) -> 175.0035 | J26: =ОКРУГЛВСЕ('Форма 4'!C409*'Базовые цены за единицу'!J26,8) -> 0 | K26: =ОКРУГЛВСЕ('Форма 4'!C409*'Базовые цены за единицу'!K26,8) -> 0 | L26: =ROUND('Форма 4'!C409*'Базовые цены за единицу'!L26,0) -> 0 | M26: =ROUND('Форма 4'!C409*'Базовые цены за единицу'!M26,0) -> 0 | N26: =ROUND((C26+E26)*'Форма 4'!C422/100,0) -> 1895 | O26: =ROUND((C26+E26)*'Форма 4'!C425/100,0) -> 1252 | P26: =ROUND('Форма 4'!C409*'Базовые цены за единицу'!P26,0) -> 1895 | Q26: =ROUND('Форма 4'!C409*'Базовые цены за единицу'!Q26,0) -> 0 | R26: =ROUND('Форма 4'!C409*'Базовые цены за единицу'!R26,0) -> 1253 | S26: =ROUND('Форма 4'!C409*'Базовые цены за единицу'!S26,0) -> 0 | T26: =ROUND('Форма 4'!C409*'Базовые цены за единицу'!T26,0) -> 0 | U26: =ROUND('Форма 4'!C409*'Базовые цены за единицу'!U26,0) -> 0 | V26: =ROUND('Форма 4'!C409*'Базовые цены за единицу'!V26,0) -> 0 | X26: =ROUND('Форма 4'!C409*'Базовые цены за единицу'!X26,0) -> 0 | Y26: =IF(Определители!I26="9",ROUND((C26+E26)*(Начисления!M26/100)*('Форма 4'!C422/100),0),0) -> 0 | Z26: =IF(Определители!I26="9",ROUND((C26+E26)*(100-Начисления!M26/100)*('Форма 4'!C422/100),0),0) -> 0 | AA26: =IF(Определители!I26="9",ROUND((C26+E26)*(Начисления!M26/100)*('Форма 4'!C425/100),0),0) -> 0 | AB26: =IF(Определители!I26="9",ROUND((C26+E26)*(100-Начисления!M26/100)*('Форма 4'!C425/100),0),0) -> 0 | AC26: =IF(Определители!I26="9",ROUND(B26*Начисления!M26/100,0),0) -> 0 | AD26: =IF(Определители!I26="9",ROUND(B26*(100-Начисления!M26)/100,0),0) -> 0 | AE26: =ROUND('Форма 4'!C409*'Базовые цены за единицу'!AE26,0) -> 0 | AH26: =ROUND('Форма 4'!C409*'Базовые цены за единицу'!AH26,0) -> 0 | AI26: =ROUND('Форма 4'!C409*'Базовые цены за единицу'!AI26,0) -> 0 | AJ26: =ROUND('Форма 4'!C409*'Базовые цены за единицу'!AJ26,0) -> 0 | AK26: =ROUND('Форма 4'!C409*'Базовые цены за единицу'!AK26,0) -> 0
A27: ='Форма 4'!A430 -> 22. | B27: 2459 | C27: =ROUND('Форма 4'!C430*'Базовые цены за единицу'!C27,0) -> 0 | D27: =ROUND('Форма 4'!C430*'Базовые цены за единицу'!D27,0) -> 0 | E27: =ROUND('Форма 4'!C430*'Базовые цены за единицу'!E27,0) -> 0 | F27: =ROUND('Форма 4'!C430*'Базовые цены за единицу'!F27,0) -> 2459 | G27: =ROUND('Форма 4'!C430*'Базовые цены за единицу'!G27,0) -> 2407 | H27: =ROUND('Форма 4'!C430*'Базовые цены за единицу'!H27,0) -> 0 | I27: =ОКРУГЛВСЕ('Форма 4'!C430*'Базовые цены за единицу'!I27,8) -> 0 | J27: =ОКРУГЛВСЕ('Форма 4'!C430*'Базовые цены за единицу'!J27,8) -> 0 | K27: =ОКРУГЛВСЕ('Форма 4'!C430*'Базовые цены за единицу'!K27,8) -> 0 | L27: =ROUND('Форма 4'!C430*'Базовые цены за единицу'!L27,0) -> 51 | M27: =ROUND('Форма 4'!C430*'Базовые цены за единицу'!M27,0) -> 0 | N27: =ROUND((C27+E27)*'Форма 4'!C442/100,0) -> 0 | O27: =ROUND((C27+E27)*'Форма 4'!C445/100,0) -> 0 | P27: =ROUND('Форма 4'!C430*'Базовые цены за единицу'!P27,0) -> 0 | Q27: =ROUND('Форма 4'!C430*'Базовые цены за единицу'!Q27,0) -> 0 | R27: =ROUND('Форма 4'!C430*'Базовые цены за единицу'!R27,0) -> 0 | S27: =ROUND('Форма 4'!C430*'Базовые цены за единицу'!S27,0) -> 0 | T27: =ROUND('Форма 4'!C430*'Базовые цены за единицу'!T27,0) -> 0 | U27: =ROUND('Форма 4'!C430*'Базовые цены за единицу'!U27,0) -> 0 | V27: =ROUND('Форма 4'!C430*'Базовые цены за единицу'!V27,0) -> 0 | X27: =ROUND('Форма 4'!C430*'Базовые цены за единицу'!X27,0) -> 0 | Y27: =IF(Определители!I27="9",ROUND((C27+E27)*(Начисления!M27/100)*('Форма 4'!C442/100),0),0) -> 0 | Z27: =IF(Определители!I27="9",ROUND((C27+E27)*(100-Начисления!M27/100)*('Форма 4'!C442/100),0),0) -> 0 | AA27: =IF(Определители!I27="9",ROUND((C27+E27)*(Начисления!M27/100)*('Форма 4'!C445/100),0),0) -> 0 | AB27: =IF(Определители!I27="9",ROUND((C27+E27)*(100-Начисления!M27/100)*('Форма 4'!C445/100),0),0) -> 0 | AC27: =IF(Определители!I27="9",ROUND(B27*Начисления!M27/100,0),0) -> 0 | AD27: =IF(Определители!I27="9",ROUND(B27*(100-Начисления!M27)/100,0),0) -> 0 | AE27: =ROUND('Форма 4'!C430*'Базовые цены за единицу'!AE27,0) -> 0 | AH27: =ROUND('Форма 4'!C430*'Базовые цены за единицу'!AH27,0) -> 0 | AI27: =ROUND('Форма 4'!C430*'Базовые цены за единицу'!AI27,0) -> 0 | AJ27: =ROUND('Форма 4'!C430*'Базовые цены за единицу'!AJ27,0) -> 0 | AK27: =ROUND('Форма 4'!C430*'Базовые цены за единицу'!AK27,0) -> 0

Sheet Начисления
B1: Н1 | C1: Н2 | D1: Н3 | E1: Н4 | F1: Н5 | G1: Н6 | H1: Н7 | I1: Н8 | J1: Н9 | K1: Н10 | L1: Н11 | M1: Н12 | N1: Н13 | O1: Н14 | P1: Н15 | Q1: Н16 | R1: Н17 | S1: Н18 | T1: Н19 | U1: Н20 | V1: Н21 | W1: Н22 | X1: Н23 | Y1: Н24 | Z1: Н25 | AA1: Н26 | AB1: Н27 | AC1: Н28 | AD1: Н29 | AE1: Н30 | AF1: Н31 | AG1: Н32 | AH1: Н33 | AI1: Н34 | AJ1: Н35 | AK1: Н36 | AL1: Н37 | AM1: Н38 | AN1: Н39 | AO1: Н40 | AP1: Н41 | AQ1: Н42 | AR1: Н43 | AS1: Н44 | AT1: Н45 | AU1: Н46 | AV1: Н47 | AW1: Н48 | AX1: Н49
B3: N = < 209.15 * 209-08 * 5295.20 >
B4: Замена теплотрассы с. Демарино ул. Ленина
A6: ='Форма 4'!A26 -> 1. | B6: 1 | C6: 1 | D6: 1 | E6: 1 | F6: 1 | G6: 1 | H6: 1 | I6: 1 | J6: 1 | K6: 0 | L6: 0 | M6: 100 | N6: 0 | O6: 0 | P6: 1 | Q6: 1 | R6: 0 | S6: 0 | T6: 1 | U6: 0 | V6: 0 | W6: 0 | X6: 0 | Y6: 0 | Z6: 0 | AA6: 0 | AB6: 0 | AC6: 0 | AD6: 0 | AE6: 0 | AF6: 0 | AG6: 1.7 | AH6: 1.6 | AI6: 1.29 | AJ6: 0.092 | AK6: 0.18 | AL6: 1 | AM6: 1 | AN6: 0.2 | AO6: 1.5 | AP6: 1 | AQ6: 1 | AR6: 1 | AS6: 1 | AT6: 1 | AU6: 100 | AV6: 1 | AW6: 1 | AX6: 1
A7: ='Форма 4'!A45 -> 2. | B7: 1 | C7: 1 | D7: 1 | E7: 1 | F7: 1.2 | G7: 1 | H7: 1 | I7: 1 | J7: 1 | K7: 0 | L7: 0 | M7: 100 | N7: 0 | O7: 0 | P7: 1 | Q7: 1 | R7: 0 | S7: 0 | T7: 1 | U7: 0 | V7: 0 | W7: 0 | X7: 0 | Y7: 0 | Z7: 0 | AA7: 0 | AB7: 0 | AC7: 0 | AD7: 0 | AE7: 0 | AF7: 0 | AG7: 1.7 | AH7: 1.6 | AI7: 1.29 | AJ7: 0.092 | AK7: 0.18 | AL7: 1 | AM7: 1 | AN7: 0.2 | AO7: 1.5 | AP7: 1 | AQ7: 1 | AR7: 1 | AS7: 1 | AT7: 1 | AU7: 100 | AV7: 1 | AW7: 1 | AX7: 1
A8: ='Форма 4'!A64 -> 3. | B8: 1 | C8: 1 | D8: 0.6 | E8: 0.6 | F8: 0.6 | G8: 1 | H8: 1 | I8: 1 | J8: 1 | K8: 0 | L8: 0 | M8: 100 | N8: 0 | O8: 0 | P8: 1 | Q8: 1 | R8: 0 | S8: 0 | T8: 1 | U8: 0 | V8: 0 | W8: 0 | X8: 0 | Y8: 0 | Z8: 0 | AA8: 0 | AB8: 0 | AC8: 0 | AD8: 0 | AE8: 0 | AF8: 0 | AG8: 1.7 | AH8: 1.6 | AI8: 1.29 | AJ8: 0.092 | AK8: 0.18 | AL8: 1 | AM8: 1 | AN8: 0.2 | AO8: 1.5 | AP8: 1 | AQ8: 1 | AR8: 1 | AS8: 1 | AT8: 1 | AU8: 100 | AV8: 1 | AW8: 0 | AX8: 1
A9: ='Форма 4'!A83 -> 4. | B9: 1 | C9: 1 | D9: 1 | E9: 1 | F9: 1 | G9: 1 | H9: 1 | I9: 1 | J9: 1 | K9: 0 | L9: 0 | M9: 100 | N9: 0 | O9: 0 | P9: 1 | Q9: 1 | R9: 0 | S9: 0 | T9: 1 | U9: 0 | V9: 0 | W9: 0 | X9: 0 | Y9: 0 | Z9: 0 | AA9: 0 | AB9: 0 | AC9: 0 | AD9: 0 | AE9: 0 | AF9: 0 | AG9: 1.7 | AH9: 1.6 | AI9: 1.29 | AJ9: 0.092 | AK9: 0.18 | AL9: 1 | AM9: 1 | AN9: 0.2 | AO9: 1.5 | AP9: 1 | AQ9: 1 | AR9: 1 | AS9: 1 | AT9: 1 | AU9: 100 | AV9: 1 | AW9: 1 | AX9: 1
A10: ='Форма 4'!A102 -> 5. | B10: 1 | C10: 1 | D10: 1 | E10: 1 | F10: 1 | G10: 1 | H10: 1 | I10: 1 | J10: 1 | K10: 0 | L10: 0 | M10: 100 | N10: 0 | O10: 0 | P10: 1 | Q10: 1 | R10: 0 | S10: 0 | T10: 1 | U10: 0 | V10: 0 | W10: 0 | X10: 0 | Y10: 0 | Z10: 0 | AA10: 0 | AB10: 0 | AC10: 0 | AD10: 0 | AE10: 0 | AF10: 0 | AG10: 1.7 | AH10: 1.6 | AI10: 1.29 | AJ10: 0.092 | AK10: 0.18 | AL10: 1 | AM10: 1 | AN10: 0.2 | AO10: 1.5 | AP10: 1 | AQ10: 1 | AR10: 1 | AS10: 1 | AT10: 1 | AU10: 100 | AV10: 1 | AW10: 1 | AX10: 1
A11: ='Форма 4'!A120 -> 6. | B11: 1 | C11: 1 | D11: 1 | E11: 1 | F11: 1 | G11: 1 | H11: 1 | I11: 1 | J11: 1 | K11: 0 | L11: 0 | M11: 100 | N11: 0 | O11: 0 | P11: 1 | Q11: 1 | R11: 0 | S11: 0 | T11: 1 | U11: 0 | V11: 0 | W11: 0 | X11: 0 | Y11: 0 | Z11: 0 | AA11: 0 | AB11: 0 | AC11: 0 | AD11: 0 | AE11: 0 | AF11: 0 | AG11: 1.7 | AH11: 1.6 | AI11: 1.29 | AJ11: 0.092 | AK11: 0.18 | AL11: 1 | AM11: 1 | AN11: 0.2 | AO11: 1.5 | AP11: 1 | AQ11: 1 | AR11: 1 | AS11: 1 | AT11: 1 | AU11: 100 | AV11: 1 | AW11: 1 | AX11: 1
A12: ='Форма 4'!A141 -> 7. | B12: 1 | C12: 1 | D12: 1 | E12: 1 | F12: 1 | G12: 1 | H12: 1 | I12: 1 | J12: 1 | K12: 0 | L12: 0 | M12: 100 | N12: 0 | O12: 0 | P12: 1 | Q12: 1 | R12: 0 | S12: 0 | T12: 1 | U12: 0 | V12: 0 | W12: 0 | X12: 0 | Y12: 0 | Z12: 0 | AA12: 0 | AB12: 0 | AC12: 0 | AD12: 0 | AE12: 0 | AF12: 0 | AG12: 1.7 | AH12: 1.6 | AI12: 1.29 | AJ12: 0.092 | AK12: 0.18 | AL12: 1 | AM12: 1 | AN12: 0.2 | AO12: 1.5 | AP12: 1 | AQ12: 1 | AR12: 1 | AS12: 1 | AT12: 1 | AU12: 100 | AV12: 1 | AW12: 1 | AX12: 1
A13: ='Форма 4'!A160 -> 8. | B13: 1 | C13: 1 | D13: 1 | E13: 1 | F13: 1 | G13: 1 | H13: 1 | I13: 1 | J13: 1 | K13: 0 | L13: 0 | M13: 100 | N13: 0 | O13: 0 | P13: 1 | Q13: 1 | R13: 0 | S13: 0 | T13: 1 | U13: 0 | V13: 0 | W13: 0 | X13: 0 | Y13: 0 | Z13: 0 | AA13: 0 | AB13: 0 | AC13: 0 | AD13: 0 | AE13: 0 | AF13: 0 | AG13: 1.7 | AH13: 1.6 | AI13: 1.29 | AJ13: 0.092 | AK13: 0.18 | AL13: 1 | AM13: 1 | AN13: 0.2 | AO13: 1.5 | AP13: 1 | AQ13: 1 | AR13: 1 | AS13: 1 | AT13: 1 | AU13: 100 | AV13: 1 | AW13: 1 | AX13: 1
A14: ='Форма 4'!A179 -> 9. | B14: 1 | C14: 1 | D14: 1 | E14: 1 | F14: 1 | G14: 1 | H14: 1 | I14: 1 | J14: 1 | K14: 0 | L14: 0 | M14: 100 | N14: 0 | O14: 0 | P14: 1 | Q14: 1 | R14: 0 | S14: 0 | T14: 1 | U14: 0 | V14: 0 | W14: 0 | X14: 0 | Y14: 0 | Z14: 0 | AA14: 0 | AB14: 0 | AC14: 0 | AD14: 0 | AE14: 0 | AF14: 0 | AG14: 1.7 | AH14: 1.6 | AI14: 1.29 | AJ14: 0.092 | AK14: 0.18 | AL14: 1 | AM14: 1 | AN14: 0.2 | AO14: 1.5 | AP14: 1 | AQ14: 1 | AR14: 1 | AS14: 1 | AT14: 1 | AU14: 100 | AV14: 1 | AW14: 1 | AX14: 1
A15: ='Форма 4'!A198 -> 10. | B15: 1 | C15: 1 | D15: 1 | E15: 1 | F15: 1 | G15: 1 | H15: 1 | I15: 1 | J15: 1 | K15: 0 | L15: 0 | M15: 100 | N15: 0 | O15: 0 | P15: 1 | Q15: 1 | R15: 0 | S15: 0 | T15: 1 | U15: 0 | V15: 0 | W15: 0 | X15: 0 | Y15: 0 | Z15: 0 | AA15: 0 | AB15: 0 | AC15: 0 | AD15: 0 | AE15: 0 | AF15: 0 | AG15: 1.7 | AH15: 1.6 | AI15: 1.29 | AJ15: 0.092 | AK15: 0.18 | AL15: 1 | AM15: 1 | AN15: 0.2 | AO15: 1.5 | AP15: 1 | AQ15: 1 | AR15: 1 | AS15: 1 | AT15: 1 | AU15: 100 | AV15: 1 | AW15: 1 | AX15: 1
A16: ='Форма 4'!A217 -> 11. | B16: 1 | C16: 1 | D16: 1 | E16: 1 | F16: 1 | G16: 1 | H16: 1 | I16: 1 | J16: 1 | K16: 0 | L16: 0 | M16: 100 | N16: 0 | O16: 0 | P16: 1 | Q16: 1 | R16: 0 | S16: 0 | T16: 1 | U16: 0 | V16: 0 | W16: 0 | X16: 0 | Y16: 0 | Z16: 0 | AA16: 0 | AB16: 0 | AC16: 0 | AD16: 0 | AE16: 0 | AF16: 0 | AG16: 1.7 | AH16: 1.6 | AI16: 1.29 | AJ16: 0.092 | AK16: 0.18 | AL16: 1 | AM16: 1 | AN16: 0.2 | AO16: 1.5 | AP16: 1 | AQ16: 1 | AR16: 1 | AS16: 1 | AT16: 1 | AU16: 100 | AV16: 1 | AW16: 1 | AX16: 1
A17: ='Форма 4'!A235 -> 12. | B17: 1 | C17: 1 | D17: 1 | E17: 1 | F17: 1 | G17: 1 | H17: 1 | I17: 1 | J17: 1 | K17: 0 | L17: 0 | M17: 100 | N17: 0 | O17: 0 | P17: 1 | Q17: 1 | R17: 0 | S17: 0 | T17: 1 | U17: 0 | V17: 0 | W17: 0 | X17: 0 | Y17: 0 | Z17: 0 | AA17: 0 | AB17: 0 | AC17: 0 | AD17: 0 | AE17: 0 | AF17: 0 | AG17: 1.7 | AH17: 1.6 | AI17: 1.29 | AJ17: 0.092 | AK17: 0.18 | AL17: 1 | AM17: 1 | AN17: 0.2 | AO17: 1.5 | AP17: 1 | AQ17: 1 | AR17: 1 | AS17: 1 | AT17: 1 | AU17: 100 | AV17: 1 | AW17: 1 | AX17: 1
A18: ='Форма 4'!A255 -> 13. | B18: 1 | C18: 1 | D18: 1 | E18: 1 | F18: 1 | G18: 1 | H18: 1 | I18: 1 | J18: 1 | K18: 0 | L18: 0 | M18: 100 | N18: 0 | O18: 0 | P18: 1 | Q18: 1 | R18: 0 | S18: 0 | T18: 1 | U18: 0 | V18: 0 | W18: 0 | X18: 0 | Y18: 0 | Z18: 0 | AA18: 0 | AB18: 0 | AC18: 0 | AD18: 0 | AE18: 0 | AF18: 0 | AG18: 1.7 | AH18: 1.6 | AI18: 1.29 | AJ18: 0.092 | AK18: 0.18 | AL18: 1 | AM18: 1 | AN18: 0.2 | AO18: 1.5 | AP18: 1 | AQ18: 1 | AR18: 1 | AS18: 1 | AT18: 1 | AU18: 100 | AV18: 1 | AW18: 1 | AX18: 1
A19: ='Форма 4'!A275 -> 14. | B19: 1 | C19: 1 | D19: 1 | E19: 1 | F19: 1 | G19: 1 | H19: 1 | I19: 1 | J19: 1 | K19: 0 | L19: 0 | M19: 100 | N19: 0 | O19: 0 | P19: 1 | Q19: 1 | R19: 0 | S19: 0 | T19: 1 | U19: 0 | V19: 0 | W19: 0 | X19: 0 | Y19: 0 | Z19: 0 | AA19: 0 | AB19: 0 | AC19: 0 | AD19: 0 | AE19: 0 | AF19: 0 | AG19: 1.7 | AH19: 1.6 | AI19: 1.29 | AJ19: 0.092 | AK19: 0.18 | AL19: 1 | AM19: 1 | AN19: 0.2 | AO19: 1.5 | AP19: 1 | AQ19: 1 | AR19: 1 | AS19: 1 | AT19: 1 | AU19: 100 | AV19: 1 | AW19: 1 | AX19: 1
A20: ='Форма 4'!A294 -> 15. | B20: 1 | C20: 1 | D20: 1 | E20: 1 | F20: 1 | G20: 1 | H20: 1 | I20: 1 | J20: 1 | K20: 0 | L20: 0 | M20: 100 | N20: 0 | O20: 0 | P20: 1 | Q20: 1 | R20: 0 | S20: 0 | T20: 1 | U20: 0 | V20: 0 | W20: 0 | X20: 0 | Y20: 0 | Z20: 0 | AA20: 0 | AB20: 0 | AC20: 0 | AD20: 0 | AE20: 0 | AF20: 0 | AG20: 1.7 | AH20: 1.6 | AI20: 1.29 | AJ20: 0.092 | AK20: 0.18 | AL20: 1 | AM20: 1 | AN20: 0.2 | AO20: 1.5 | AP20: 1 | AQ20: 1 | AR20: 1 | AS20: 1 | AT20: 1 | AU20: 100 | AV20: 1 | AW20: 1 | AX20: 1
A21: ='Форма 4'!A313 -> 16. | B21: 1 | C21: 1 | D21: 1 | E21: 1 | F21: 1 | G21: 1 | H21: 1 | I21: 1 | J21: 1 | K21: 0 | L21: 0 | M21: 100 | N21: 0 | O21: 0 | P21: 1 | Q21: 1 | R21: 0 | S21: 0 | T21: 1 | U21: 0 | V21: 0 | W21: 0 | X21: 0 | Y21: 0 | Z21: 0 | AA21: 0 | AB21: 0 | AC21: 0 | AD21: 0 | AE21: 0 | AF21: 0 | AG21: 1.7 | AH21: 1.6 | AI21: 1.29 | AJ21: 0.092 | AK21: 0.18 | AL21: 1 | AM21: 1 | AN21: 0.2 | AO21: 1.5 | AP21: 1 | AQ21: 1 | AR21: 1 | AS21: 1 | AT21: 1 | AU21: 100 | AV21: 1 | AW21: 1 | AX21: 1
A22: ='Форма 4'!A331 -> 17. | B22: 1 | C22: 1 | D22: 1 | E22: 1 | F22: 1 | G22: 1 | H22: 1 | I22: 1 | J22: 1 | K22: 0 | L22: 0 | M22: 100 | N22: 0 | O22: 0 | P22: 1 | Q22: 1 | R22: 0 | S22: 0 | T22: 1 | U22: 0 | V22: 0 | W22: 0 | X22: 0 | Y22: 0 | Z22: 0 | AA22: 0 | AB22: 0 | AC22: 0 | AD22: 0 | AE22: 0 | AF22: 0 | AG22: 1.7 | AH22: 1.6 | AI22: 1.29 | AJ22: 0.092 | AK22: 0.18 | AL22: 1 | AM22: 1 | AN22: 0.2 | AO22: 1.5 | AP22: 1 | AQ22: 1 | AR22: 1 | AS22: 1 | AT22: 1 | AU22: 100 | AV22: 1 | AW22: 1 | AX22: 1
A23: ='Форма 4'!A349 -> 18. | B23: 1 | C23: 1 | D23: 1 | E23: 1 | F23: 1 | G23: 1 | H23: 1 | I23: 1 | J23: 1 | K23: 0 | L23: 0 | M23: 100 | N23: 0 | O23: 0 | P23: 1 | Q23: 1 | R23: 0 | S23: 0 | T23: 1 | U23: 0 | V23: 0 | W23: 0 | X23: 0 | Y23: 0 | Z23: 0 | AA23: 0 | AB23: 0 | AC23: 0 | AD23: 0 | AE23: 0 | AF23: 0 | AG23: 1.7 | AH23: 1.6 | AI23: 1.29 | AJ23: 0.092 | AK23: 0.18 | AL23: 1 | AM23: 1 | AN23: 0.2 | AO23: 1.5 | AP23: 1 | AQ23: 1 | AR23: 1 | AS23: 1 | AT23: 1 | AU23: 100 | AV23: 1 | AW23: 1 | AX23: 1
A24: ='Форма 4'!A369 -> 19. | B24: 1 | C24: 1 | D24: 1 | E24: 1 | F24: 0.25 | G24: 1 | H24: 1 | I24: 1 | J24: 1 | K24: 0 | L24: 0 | M24: 100 | N24: 0 | O24: 0 | P24: 1 | Q24: 1 | R24: 0 | S24: 0 | T24: 1 | U24: 0 | V24: 0 | W24: 0 | X24: 0 | Y24: 0 | Z24: 0 | AA24: 0 | AB24: 0 | AC24: 0 | AD24: 0 | AE24: 0 | AF24: 0 | AG24: 1.7 | AH24: 1.6 | AI24: 1.29 | AJ24: 0.092 | AK24: 0.18 | AL24: 1 | AM24: 1 | AN24: 0.2 | AO24: 1.5 | AP24: 1 | AQ24: 1 | AR24: 1 | AS24: 1 | AT24: 1 | AU24: 100 | AV24: 1 | AW24: 1 | AX24: 1
A25: ='Форма 4'!A390 -> 20. | B25: 1 | C25: 1 | D25: 1 | E25: 1 | F25: 1 | G25: 1 | H25: 1 | I25: 1 | J25: 1 | K25: 0 | L25: 0 | M25: 100 | N25: 0 | O25: 0 | P25: 1 | Q25: 1 | R25: 0 | S25: 0 | T25: 1 | U25: 0 | V25: 0 | W25: 0 | X25: 0 | Y25: 0 | Z25: 0 | AA25: 0 | AB25: 0 | AC25: 0 | AD25: 0 | AE25: 0 | AF25: 0 | AG25: 1.7 | AH25: 1.6 | AI25: 1.29 | AJ25: 0.092 | AK25: 0.18 | AL25: 1 | AM25: 1 | AN25: 0.2 | AO25: 1.5 | AP25: 1 | AQ25: 1 | AR25: 1 | AS25: 1 | AT25: 1 | AU25: 100 | AV25: 1 | AW25: 1 | AX25: 1
A26: ='Форма 4'!A409 -> 21. | B26: 1 | C26: 1 | D26: 1 | E26: 1 | F26: 1 | G26: 1 | H26: 1 | I26: 1 | J26: 1 | K26: 0 | L26: 0 | M26: 100 | N26: 0 | O26: 0 | P26: 1 | Q26: 1 | R26: 0 | S26: 0 | T26: 1 | U26: 0 | V26: 0 | W26: 0 | X26: 0 | Y26: 0 | Z26: 0 | AA26: 0 | AB26: 0 | AC26: 0 | AD26: 0 | AE26: 0 | AF26: 0 | AG26: 1.7 | AH26: 1.6 | AI26: 1.29 | AJ26: 0.092 | AK26: 0.18 | AL26: 1 | AM26: 1 | AN26: 0.2 | AO26: 1.5 | AP26: 1 | AQ26: 1 | AR26: 1 | AS26: 1 | AT26: 1 | AU26: 100 | AV26: 1 | AW26: 1 | AX26: 1
A27: ='Форма 4'!A430 -> 22. | B27: 1 | C27: 1 | D27: 1 | E27: 1 | F27: 1 | G27: 1 | H27: 1 | I27: 1 | J27: 1 | K27: 0 | L27: 0 | M27: 100 | N27: 0 | O27: 0 | P27: 1 | Q27: 1 | R27: 0 | S27: 0 | T27: 1 | U27: 0 | V27: 0 | W27: 0 | X27: 0 | Y27: 0 | Z27: 0 | AA27: 0 | AB27: 0 | AC27: 0 | AD27: 0 | AE27: 0 | AF27: 0 | AG27: 1.7 | AH27: 1.6 | AI27: 1.29 | AJ27: 0.092 | AK27: 0.18 | AL27: 1 | AM27: 1 | AN27: 0.2 | AO27: 1.5 | AP27: 1 | AQ27: 1 | AR27: 1 | AS27: 1 | AT27: 1 | AU27: 100 | AV27: 1 | AW27: 1 | AX27: 1

Sheet Определители
B1: О0 | C1: О1 | D1: О2 | E1: О3 | F1: О4 | G1: О5 | H1: О6 | I1: О7 | J1: О8
B3: N = < 209.15 * 209-08 * 5295.20 >
B4: Замена теплотрассы с. Демарино ул. Ленина
A6: ='Форма 4'!A26 -> 1. | B6: 1 | C6: 1 | F6: 0 | I6: 2
A7: ='Форма 4'!A45 -> 2. | B7: 1 | C7: 1 | F7: 0 | I7: 2
A8: ='Форма 4'!A64 -> 3. | B8: 1 | C8: 1 | F8: 0 | I8: 2
A9: ='Форма 4'!A83 -> 4. | B9: 1 | C9: 1 | F9: 0 | I9: 2
A10: ='Форма 4'!A102 -> 5. | B10: 1 | C10: 1 | F10: 2 | G10: 1 | I10: 4
A11: ='Форма 4'!A120 -> 6. | B11: 1 | C11: 1 | F11: 0 | I11: 2
A12: ='Форма 4'!A141 -> 7. | B12: 1 | C12: 1 | F12: 0 | I12: 2
A13: ='Форма 4'!A160 -> 8. | B13: 1 | C13: 1 | F13: 0 | I13: 2
A14: ='Форма 4'!A179 -> 9. | B14: 1 | C14: 1 | F14: 0 | G14: 1 | I14: 2 | J14: 1
A15: ='Форма 4'!A198 -> 10. | B15: 1 | C15: 1 | F15: 1 | I15: 3
A16: ='Форма 4'!A217 -> 11. | B16: 1 | C16: 1 | F16: 1 | G16: 1 | I16: 3
A17: ='Форма 4'!A235 -> 12. | B17: 1 | C17: 1 | F17: 0 | I17: 2
A18: ='Форма 4'!A255 -> 13. | B18: 1 | C18: 1 | F18: 0 | I18: 2
A19: ='Форма 4'!A275 -> 14. | B19: 1 | C19: 1 | F19: 0 | I19: 2
A20: ='Форма 4'!A294 -> 15. | B20: 1 | C20: 1 | F20: 2 | G20: 1 | I20: 4
A21: ='Форма 4'!A313 -> 16. | B21: 1 | F21: 0 | G21: 1 | I21: 1 | J21: 1
A22: ='Форма 4'!A331 -> 17. | B22: 1 | F22: 0 | G22: 1 | I22: 1 | J22: 1
A23: ='Форма 4'!A349 -> 18. | B23: 1 | C23: 1 | F23: 0 | I23: 2
A24: ='Форма 4'!A369 -> 19. | B24: 1 | C24: 1 | F24: 0 | I24: 2
A25: ='Форма 4'!A390 -> 20. | B25: 1 | C25: 1 | F25: 0 | G25: 1 | I25: 2
A26: ='Форма 4'!A409 -> 21. | B26: 1 | C26: 1 | F26: 0 | I26: 2
A27: ='Форма 4'!A430 -> 22. | B27: 1 | C27: 1 | F27: 0 | G27: 1 | I27: 2

Sheet Базовые концовки
B3: N = < 209.15 * 209-08 * 5295.20 >
B4: Замена теплотрассы с. Демарино ул. Ленина
B6: Наименование | C6: Вид | D6: Значение | E6: ЕИ | F6: Z1 | G6: Z2 | H6: Z3 | I6: Z4 | J6: Z5 | K6: Z6 | L6: Z7 | M6: Z8
A7: 1 | B7: . ИТОГО ПО СМЕТЕ | C7: А | D7: 0 | F7: =ROUND(SUM('Базовые цены с учетом расхода'!B6:B27),0) -> 70096 | G7: =ROUND(SUM('Базовые цены с учетом расхода'!C6:C27),0) -> 4986 | H7: =ROUND(SUM('Базовые цены с учетом расхода'!D6:D27),0) -> 5306 | I7: =ROUND(SUM('Базовые цены с учетом расхода'!E6:E27),0) -> 488 | J7: =ROUND(SUM('Базовые цены с учетом расхода'!I6:I27),8) -> 414.4874895 | K7: =ROUND(SUM('Базовые цены с учетом расхода'!K6:K27),8) -> 34.2138625 | L7: =ROUND(SUM('Базовые цены с учетом расхода'!F6:F27),0) -> 59804 | N7: 1
A8: 2 | B8: СТОИМОСТЬ ОБОРУДОВАНИЯ - | C8: Б | D8: 0 | F8: =ROUND(SUMIF(Определители!I6:I27,"= ",'Базовые цены с учетом расхода'!B6:B27),0) -> 0 | G8: =ROUND(SUMIF(Определители!I6:I27,"= ",'Базовые цены с учетом расхода'!C6:C27),0) -> 0 | H8: =ROUND(SUMIF(Определители!I6:I27,"= ",'Базовые цены с учетом расхода'!D6:D27),0) -> 0 | I8: =ROUND(SUMIF(Определители!I6:I27,"= ",'Базовые цены с учетом расхода'!E6:E27),0) -> 0 | J8: =ROUND(SUMIF(Определители!I6:I27,"= ",'Базовые цены с учетом расхода'!I6:I27),8) -> 0 | K8: =ROUND(SUMIF(Определители!I6:I27,"= ",'Базовые цены с учетом расхода'!K6:K27),8) -> 0 | L8: =ROUND(SUMIF(Определители!I6:I27,"= ",'Базовые цены с учетом расхода'!F6:F27),0) -> 0 | N8: 2
A9: 3 | B9: . ЗАПАСНЫЕ ЧАСТИ - | C9: Б | D9: 0 | F9: =ROUND(СУММПРОИЗВЕСЛИ(0.01,Определители!I6:I27," ",'Базовые цены с учетом расхода'!B6:B27,Начисления!X6:X27,0),0) -> 0 | N9: 3
A10: 4 | B10: . ТАРА И УПАКОВКА - | C10: Б | D10: 0 | F10: =ROUND(СУММПРОИЗВЕСЛИ(0.01,Определители!I6:I27," ",'Базовые цены с учетом расхода'!B6:B27,Начисления!Y6:Y27,0),0) -> 0 | N10: 4
A11: 5 | B11: . ТРАНСПОРТНЫЕ РАСХОДЫ - | C11: Б | D11: 0 | F11: =ROUND(ТРАНСПРАСХОД(Определители!B6:B27,Определители!H6:H27,Определители!I6:I27,'Базовые цены с учетом расхода'!B6:B27,Начисления!Z6:Z27,Начисления!AA6:AA27),0) -> 0 | N11: 5
A12: 6 | B12: . КОМПЛЕКТАЦИЯ - | C12: Б | D12: 0 | F12: =ROUND(СУММПРОИЗВЕСЛИ(0.01,Определители!I6:I27," ",'Базовые цены с учетом расхода'!B6:B27,Начисления!AC6:AC27,0),0) -> 0 | N12: 6
A13: 7 | B13: . НАЦЕНКА СНАБА - | C13: Б | D13: 0 | F13: =ROUND(СУММПРОИЗВЕСЛИ(0.01,Определители!I6:I27," ",'Базовые цены с учетом расхода'!B6:B27,Начисления!AF6:AF27,0),0) -> 0 | N13: 7
A14: 8 | B14: . ЗАГОТОВИТЕЛЬНО-СКЛАДСКИЕ РАСХОДЫ - | C14: Б | D14: 0 | F14: =ROUND(ЗАГОТСКЛАДРАСХОД(Определители!B6:B27,Определители!H6:H27,Определители!I6:I27,'Базовые цены с учетом расхода'!B6:B27,Начисления!X6:X27,Начисления!Y6:Y27,Начисления!Z6:Z27,Начисления!AA6:AA27,Начисления!AB6:AB27,Начисления!AC6:AC27,Начисления!AF6:AF27),0) -> 0 | N14: 8
A15: 9 | B15: . ШЕФМОНТАЖ ПО ОБОРУДОВАНИЮ - | C15: Б | D15: 0 | F15: =ROUND(СУММПРОИЗВЕСЛИ(1,Определители!I6:I27," ",'Базовые цены с учетом расхода'!M6:M27,Начисления!I6:I27,0),0) -> 0 | N15: 9
A16: 10 | B16: . ШЕФМОНТАЖ - | C16: ! | D16: 0 | F16: =ROUND((F15+F26+F46),0) -> 0 | N16: 10
A17: 11 | B17: ВСЕГО, СТОИМОСТЬ ОБОРУДОВАНИЯ - | C17: ! | D17: 0 | F17: =ROUND((F8+F9+F10+F11+F12+F13+F14+F16),0) -> 0 | N17: 11
A18: 12 | B18: СТОИМОСТЬ МОНТАЖНЫХ РАБОТ - | C18: Б | D18: 0 | F18: =ROUND(SUMIF(Определители!I6:I27,"=1",'Базовые цены с учетом расхода'!B6:B27),0) -> 910 | G18: =ROUND(SUMIF(Определители!I6:I27,"=1",'Базовые цены с учетом расхода'!C6:C27),0) -> 0 | H18: =ROUND(SUMIF(Определители!I6:I27,"=1",'Базовые цены с учетом расхода'!D6:D27),0) -> 0 | I18: =ROUND(SUMIF(Определители!I6:I27,"=1",'Базовые цены с учетом расхода'!E6:E27),0) -> 0 | J18: =ROUND(SUMIF(Определители!I6:I27,"=1",'Базовые цены с учетом расхода'!I6:I27),8) -> 0 | K18: =ROUND(SUMIF(Определители!I6:I27,"=1",'Базовые цены с учетом расхода'!K6:K27),8) -> 0 | L18: =ROUND(SUMIF(Определители!I6:I27,"=1",'Базовые цены с учетом расхода'!F6:F27),0) -> 910 | N18: 12
A19: 13 | B19: . В ТОМ ЧИСЛЕ: | C19: Б | D19: 0 | N19: 13
A20: 14 | B20: . ОТКЛОНЕНИЕ ПО ЗАРАБОТНОЙ ПЛАТЕ - | C20: Б | D20: 0 | G20: =ROUND(SUMIF(Определители!I6:I27,"=1",'Базовые цены с учетом расхода'!T6:T27),0) -> 0 | N20: 14
A21: 15 | B21: . КОСВЕННЫЕ РАСХОДЫ - | C21: Б | D21: 0 | F21: =ROUND(SUMIF(Определители!I6:I27,"=1",'Базовые цены с учетом расхода'!U6:U27),0) -> 0 | N21: 15
A22: 16 | B22: . МАТЕРИАЛЬНЫЕ РЕСУРСЫ НЕ УЧТЕННЫЕ В РАСЦЕНКАХ - | C22: Б | D22: 0 | F22: =ROUND(СУММЕСЛИ2(Определители!I6:I27,"1",Определители!G6:G27,"1",'Базовые цены с учетом расхода'!B6:B27),0) -> 910 | N22: 16
A23: 17 | B23: . СТОИМОСТЬ ВОЗВРАЩАЕМЫХ МАТЕРИАЛОВ - | C23: Б | D23: 0 | F23: =ROUND(SUMIF(Определители!I6:I27,"=1",'Базовые цены с учетом расхода'!H6:H27),0) -> 0 | N23: 17
A24: 18 | B24: . НАКЛАДНЫЕ РАСХОДЫ - | C24: Б | D24: 0 | F24: =ROUND(SUMIF(Определители!I6:I27,"=1",'Базовые цены с учетом расхода'!N6:N27),0) -> 0 | N24: 18
A25: 19 | B25: . СМЕТНАЯ ПРИБЫЛЬ - | C25: Б | D25: 0 | F25: =ROUND(SUMIF(Определители!I6:I27,"=1",'Базовые цены с учетом расхода'!O6:O27),0) -> 0 | N25: 19
A26: 20 | B26: . ШЕФМОНТАЖ - | C26: Б | D26: 0 | F26: =ROUND(СУММПРОИЗВЕСЛИ(1,Определители!I6:I27," ",'Базовые цены с учетом расхода'!M6:M27,Начисления!I6:I27,0),0) -> 0 | N26: 20
A27: 21 | B27: ВСЕГО, СТОИМОСТЬ МОНТАЖНЫХ РАБОТ - | C27: ! | D27: 0 | F27: =ROUND((F18+F24+F25),0) -> 910 | N27: 21
A28: 22 | B28: СТОИМОСТЬ ОБЩЕСТРОИТЕЛЬНЫХ РАБОТ - | C28: Б | D28: 0 | F28: =ROUND(SUMIF(Определители!I6:I27,"=2",'Базовые цены с учетом расхода'!B6:B27),0) -> 27713 | G28: =ROUND(SUMIF(Определители!I6:I27,"=2",'Базовые цены с учетом расхода'!C6:C27),0) -> 4939 | H28: =ROUND(SUMIF(Определители!I6:I27,"=2",'Базовые цены с учетом расхода'!D6:D27),0) -> 5117 | I28: =ROUND(SUMIF(Определители!I6:I27,"=2",'Базовые цены с учетом расхода'!E6:E27),0) -> 465 | J28: =ROUND(SUMIF(Определители!I6:I27,"=2",'Базовые цены с учетом расхода'!I6:I27),8) -> 0 | K28: =ROUND(SUMIF(Определители!I6:I27,"=2",'Базовые цены с учетом расхода'!K6:K27),8) -> 32.8971625 | L28: =ROUND(SUMIF(Определители!I6:I27,"=2",'Базовые цены с учетом расхода'!F6:F27),0) -> 17657 | N28: 22
A29: 23 | B29: . В ТОМ ЧИСЛЕ: | C29: Б | D29: 0 | N29: 23
A30: 24 | B30: . МАТЕРИАЛОВ - | C30: Б | D30: 0 | F30: =ROUND(СУММЕСЛИ2(Определители!I6:I27,"2",Определители!G6:G27,"1",'Базовые цены с учетом расхода'!B6:B27),0) -> 12362 | N30: 24
A31: 25 | B31: . СТОИМОСТЬ ВОЗВРАЩАЕМЫХ МАТЕРИАЛОВ - | C31: Б | D31: 0 | F31: =ROUND(SUMIF(Определители!I6:I27,"=2",'Базовые цены с учетом расхода'!H6:H27),0) -> 0 | N31: 25
A32: 26 | B32: . НАКЛАДНЫЕ РАСХОДЫ - | C32: Б | D32: 0 | F32: =ROUND(SUMIF(Определители!I6:I27,"=2",'Базовые цены с учетом расхода'!N6:N27),0) -> 5563 | N32: 26
A33: 27 | B33: . СМЕТНАЯ ПРИБЫЛЬ - | C33: Б | D33: 0 | F33: =ROUND(SUMIF(Определители!I6:I27,"=2",'Базовые цены с учетом расхода'!O6:O27),0) -> 3621 | N33: 27
A34: 28 | B34: ВСЕГО, СТОИМОСТЬ ОБЩЕСТРОИТЕЛЬНЫХ РАБОТ - | C34: ! | D34: 0 | F34: =ROUND((F28+F32+F33),0) -> 36897 | N34: 28
A35: 29 | B35: СТОИМОСТЬ МЕТАЛЛОМОНТАЖНЫХ РАБОТ - | C35: Б | D35: 0 | F35: =ROUND(SUMIF(Определители!I6:I27,"=3",'Базовые цены с учетом расхода'!B6:B27),0) -> 9047 | G35: =ROUND(SUMIF(Определители!I6:I27,"=3",'Базовые цены с учетом расхода'!C6:C27),0) -> 47 | H35: =ROUND(SUMIF(Определители!I6:I27,"=3",'Базовые цены с учетом расхода'!D6:D27),0) -> 189 | I35: =ROUND(SUMIF(Определители!I6:I27,"=3",'Базовые цены с учетом расхода'!E6:E27),0) -> 23 | J35: =ROUND(SUMIF(Определители!I6:I27,"=3",'Базовые цены с учетом расхода'!I6:I27),8) -> 0 | K35: =ROUND(SUMIF(Определители!I6:I27,"=3",'Базовые цены с учетом расхода'!K6:K27),8) -> 1.3167 | L35: =ROUND(SUMIF(Определители!I6:I27,"=3",'Базовые цены с учетом расхода'!F6:F27),0) -> 8811 | N35: 29
A36: 30 | B36: . СТОИМОСТЬ ВОЗВРАЩАЕМЫХ МАТЕРИАЛОВ - | C36: Б | D36: 0 | F36: =ROUND(SUMIF(Определители!I6:I27,"=3",'Базовые цены с учетом расхода'!H6:H27),0) -> 0 | N36: 30
A37: 31 | B37: . НАКЛАДНЫЕ РАСХОДЫ - | C37: Б | D37: 0 | F37: =ROUND(SUMIF(Определители!I6:I27,"=3",'Базовые цены с учетом расхода'!N6:N27),0) -> 57 | N37: 31
A38: 32 | B38: . СМЕТНАЯ ПРИБЫЛЬ - | C38: Б | D38: 0 | F38: =ROUND(SUMIF(Определители!I6:I27,"=3",'Базовые цены с учетом расхода'!O6:O27),0) -> 51 | N38: 32
A39: 33 | B39: ВСЕГО, СТОИМОСТЬ МЕТАЛЛОМОНТАЖНЫХ РАБОТ - | C39: ! | D39: 0 | F39: =ROUND((F35+F37+F38),0) -> 9155 | N39: 33
A40: 34 | B40: СТОИМОСТЬ САНТЕХНИЧЕСКИХ РАБОТ - | C40: Б | D40: 0 | F40: =ROUND(SUMIF(Определители!I6:I27,"=4",'Базовые цены с учетом расхода'!B6:B27),0) -> 32426 | G40: =ROUND(SUMIF(Определители!I6:I27,"=4",'Базовые цены с учетом расхода'!C6:C27),0) -> 0 | H40: =ROUND(SUMIF(Определители!I6:I27,"=4",'Базовые цены с учетом расхода'!D6:D27),0) -> 0 | I40: =ROUND(SUMIF(Определители!I6:I27,"=4",'Базовые цены с учетом расхода'!E6:E27),0) -> 0 | J40: =ROUND(SUMIF(Определители!I6:I27,"=4",'Базовые цены с учетом расхода'!I6:I27),8) -> 0 | K40: =ROUND(SUMIF(Определители!I6:I27,"=4",'Базовые цены с учетом расхода'!K6:K27),8) -> 0 | L40: =ROUND(SUMIF(Определители!I6:I27,"=4",'Базовые цены с учетом расхода'!F6:F27),0) -> 32426 | N40: 34
A41: 35 | B41: . В ТОМ ЧИСЛЕ: | C41: Б | D41: 0 | N41: 35
A42: 36 | B42: . СДАЧА И ИСПЫТАНИЕ - | C42: Б | D42: 0 | F42: =ROUND(SUMIF(Определители!I6:I27,"=4",'Базовые цены с учетом расхода'!AJ6:AJ27),0) -> 0 | G42: =ROUND(SUMIF(Определители!I6:I27,"=4",'Базовые цены с учетом расхода'!AI6:AI27),0) -> 0 | H42: =ROUND(SUMIF(Определители!I6:I27,"=4",'Базовые цены с учетом расхода'!AH6:AH27),0) -> 0 | I42: =ROUND(SUMIF(Определители!I6:I27,"=4",'Базовые цены с учетом расхода'!V6:V27),0) -> 0 | N42: 36
A43: 37 | B43: . СТОИМОСТЬ ВОЗВРАЩАЕМЫХ МАТЕРИАЛОВ - | C43: Б | D43: 0 | F43: =ROUND(SUMIF(Определители!I6:I27,"=4",'Базовые цены с учетом расхода'!H6:H27),0) -> 0 | N43: 37
A44: 38 | B44: . НАКЛАДНЫЕ РАСХОДЫ - | C44: Б | D44: 0 | F44: =ROUND(SUMIF(Определители!I6:I27,"=4",'Базовые цены с учетом расхода'!N6:N27),0) -> 0 | N44: 38
A45: 39 | B45: . СМЕТНАЯ ПРИБЫЛЬ - | C45: Б | D45: 0 | F45: =ROUND(SUMIF(Определители!I6:I27,"=4",'Базовые цены с учетом расхода'!O6:O27),0) -> 0 | N45: 39
A46: 40 | B46: . ШЕФМОНТАЖ - | C46: Б | D46: 0 | F46: =ROUND(СУММПРОИЗВЕСЛИ(1,Определители!I6:I27," ",'Базовые цены с учетом расхода'!M6:M27,Начисления!I6:I27,0),0) -> 0 | N46: 40
A47: 41 | B47: ВСЕГО, СТОИМОСТЬ САНТЕХНИЧЕСКИХ РАБОТ - | C47: ! | D47: 0 | F47: =ROUND((F40+F44+F45),0) -> 32426 | N47: 41
A48: 42 | B48: СТОИМОСТЬ БУРО-ВЗРЫВНЫХ РАБОТ - | C48: Б | D48: 0 | F48: =ROUND(SUMIF(Определители!I6:I27,"=5",'Базовые цены с учетом расхода'!B6:B27),0) -> 0 | G48: =ROUND(SUMIF(Определители!I6:I27,"=5",'Базовые цены с учетом расхода'!C6:C27),0) -> 0 | H48: =ROUND(SUMIF(Определители!I6:I27,"=5",'Базовые цены с учетом расхода'!D6:D27),0) -> 0 | I48: =ROUND(SUMIF(Определители!I6:I27,"=5",'Базовые цены с учетом расхода'!E6:E27),0) -> 0 | J48: =ROUND(SUMIF(Определители!I6:I27,"=5",'Базовые цены с учетом расхода'!I6:I27),8) -> 0 | K48: =ROUND(SUMIF(Определители!I6:I27,"=5",'Базовые цены с учетом расхода'!K6:K27),8) -> 0 | L48: =ROUND(SUMIF(Определители!I6:I27,"=5",'Базовые цены с учетом расхода'!F6:F27),0) -> 0 | N48: 42
A49: 43 | B49: . СТОИМОСТЬ ВОЗВРАЩАЕМЫХ МАТЕРИАЛОВ - | C49: Б | D49: 0 | F49: =ROUND(SUMIF(Определители!I6:I27,"=5",'Базовые цены с учетом расхода'!H6:H27),0) -> 0 | N49: 43
A50: 44 | B50: . НАКЛАДНЫЕ РАСХОДЫ - | C50: Б | D50: 0 | F50: =ROUND(SUMIF(Определители!I6:I27,"=5",'Базовые цены с учетом расхода'!N6:N27),0) -> 0 | N50: 44
A51: 45 | B51: . СМЕТНАЯ ПРИБЫЛЬ - | C51: Б | D51: 0 | F51: =ROUND(SUMIF(Определители!I6:I27,"=5",'Базовые цены с учетом расхода'!O6:O27),0) -> 0 | N51: 45
A52: 46 | B52: ВСЕГО, СТОИМОСТЬ БУРО-ВЗРЫВНЫХ РАБОТ - | C52: ! | D52: 0 | F52: =ROUND((F48+F50+F51),0) -> 0 | N52: 46
A53: 47 | B53: СТОИМОСТЬ ГОРНОПРОХОДЧЕСКИХ РАБОТ - | C53: Б | D53: 0 | F53: =ROUND(SUMIF(Определители!I6:I27,"=6",'Базовые цены с учетом расхода'!B6:B27),0) -> 0 | G53: =ROUND(SUMIF(Определители!I6:I27,"=6",'Базовые цены с учетом расхода'!C6:C27),0) -> 0 | H53: =ROUND(SUMIF(Определители!I6:I27,"=6",'Базовые цены с учетом расхода'!D6:D27),0) -> 0 | I53: =ROUND(SUMIF(Определители!I6:I27,"=6",'Базовые цены с учетом расхода'!E6:E27),0) -> 0 | J53: =ROUND(SUMIF(Определители!I6:I27,"=6",'Базовые цены с учетом расхода'!I6:I27),8) -> 0 | K53: =ROUND(SUMIF(Определители!I6:I27,"=6",'Базовые цены с учетом расхода'!K6:K27),8) -> 0 | L53: =ROUND(SUMIF(Определители!I6:I27,"=6",'Базовые цены с учетом расхода'!F6:F27),0) -> 0 | N53: 47
A54: 48 | B54: . СТОИМОСТЬ ВОЗВРАЩАЕМЫХ МАТЕРИАЛОВ - | C54: Б | D54: 0 | F54: =ROUND(SUMIF(Определители!I6:I27,"=6",'Базовые цены с учетом расхода'!H6:H27),0) -> 0 | N54: 48
A55: 49 | B55: . НАКЛАДНЫЕ РАСХОДЫ - | C55: Б | D55: 0 | F55: =ROUND(SUMIF(Определители!I6:I27,"=6",'Базовые цены с учетом расхода'!N6:N27),0) -> 0 | N55: 49
A56: 50 | B56: . СМЕТНАЯ ПРИБЫЛЬ - | C56: Б | D56: 0 | F56: =ROUND(SUMIF(Определители!I6:I27,"=6",'Базовые цены с учетом расхода'!O6:O27),0) -> 0 | N56: 50
A57: 51 | B57: ВСЕГО, СТОИМОСТЬ ГОРНОПРОХОДЧЕСКИХ РАБОТ - | C57: ! | D57: 0 | F57: =ROUND((F53+F55+F56),0) -> 0 | N57: 51
A58: 52 | B58: СТОИМОСТЬ РЕСТАВРАЦИОННЫХ РАБОТ - | C58: Б | D58: 0 | F58: =ROUND(SUMIF(Определители!I6:I27,"=7",'Базовые цены с учетом расхода'!B6:B27),0) -> 0 | G58: =ROUND(SUMIF(Определители!I6:I27,"=7",'Базовые цены с учетом расхода'!C6:C27),0) -> 0 | H58: =ROUND(SUMIF(Определители!I6:I27,"=7",'Базовые цены с учетом расхода'!D6:D27),0) -> 0 | I58: =ROUND(SUMIF(Определители!I6:I27,"=7",'Базовые цены с учетом расхода'!E6:E27),0) -> 0 | J58: =ROUND(SUMIF(Определители!I6:I27,"=7",'Базовые цены с учетом расхода'!I6:I27),8) -> 0 | K58: =ROUND(SUMIF(Определители!I6:I27,"=7",'Базовые цены с учетом расхода'!K6:K27),8) -> 0 | L58: =ROUND(SUMIF(Определители!I6:I27,"=7",'Базовые цены с учетом расхода'!F6:F27),0) -> 0 | N58: 52
A59: 53 | B59: . В ТОМ ЧИСЛЕ: | C59: Б | D59: 0 | N59: 53
A60: 54 | B60: . МАТЕРИАЛОВ - | C60: Б | D60: 0 | F60: =ROUND(СУММЕСЛИ2(Определители!I6:I27,"2",Определители!G6:G27,"1",'Базовые цены с учетом расхода'!B6:B27),0) -> 12362 | N60: 54
A61: 55 | B61: . СТОИМОСТЬ ВОЗВРАЩАЕМЫХ МАТЕРИАЛОВ - | C61: Б | D61: 0 | F61: =ROUND(SUMIF(Определители!I6:I27,"=7",'Базовые цены с учетом расхода'!H6:H27),0) -> 0 | N61: 55
A62: 56 | B62: . НАКЛАДНЫЕ РАСХОДЫ - | C62: Б | D62: 0 | F62: =ROUND(SUMIF(Определители!I6:I27,"=7",'Базовые цены с учетом расхода'!N6:N27),0) -> 0 | N62: 56
A63: 57 | B63: . СМЕТНАЯ ПРИБЫЛЬ - | C63: Б | D63: 0 | F63: =ROUND(SUMIF(Определители!I6:I27,"=7",'Базовые цены с учетом расхода'!O6:O27),0) -> 0 | N63: 57
A64: 58 | B64: ВСЕГО, СТОИМОСТЬ РЕСТАВРАЦИОННЫХ РАБОТ - | C64: ! | D64: 0 | F64: =ROUND((F58+F62+F63),0) -> 0 | N64: 58
A65: 59 | B65: СТОИМОСТЬ ПЕРЕВОЗКИ ГРУЗОВ - | C65: Б | D65: 0 | F65: =ROUND(SUMIF(Определители!I6:I27,"=;",'Базовые цены с учетом расхода'!B6:B27),0) -> 0 | G65: =ROUND(SUMIF(Определители!I6:I27,"=;",'Базовые цены с учетом расхода'!C6:C27),0) -> 0 | H65: =ROUND(SUMIF(Определители!I6:I27,"=;",'Базовые цены с учетом расхода'!D6:D27),0) -> 0 | I65: =ROUND(SUMIF(Определители!I6:I27,"=;",'Базовые цены с учетом расхода'!E6:E27),0) -> 0 | J65: =ROUND(SUMIF(Определители!I6:I27,"=;",'Базовые цены с учетом расхода'!I6:I27),8) -> 0 | K65: =ROUND(SUMIF(Определители!I6:I27,"=;",'Базовые цены с учетом расхода'!K6:K27),8) -> 0 | L65: =ROUND(SUMIF(Определители!I6:I27,"=;",'Базовые цены с учетом расхода'!F6:F27),0) -> 0 | N65: 59
A66: 60 | B66: . В Т.Ч. НАКЛАДНЫЕ РАСХОДЫ - | C66: Б | D66: 0 | F66: =ROUND(SUMIF(Определители!I6:I27,"=;",'Базовые цены с учетом расхода'!AF6:AF27),0) -> 0 | N66: 60
A67: 61 | B67: . В Т.Ч. СМЕТНАЯ ПРИБЫЛЬ - | C67: Б | D67: 0 | F67: =ROUND(SUMIF(Определители!I6:I27,"=;",'Базовые цены с учетом расхода'!AG6:AG27),0) -> 0 | N67: 61
A68: 62 | B68: . НАКЛАДНЫЕ РАСХОДЫ - | C68: Б | D68: 0 | F68: =ROUND(SUMIF(Определители!I6:I27,"=;",'Базовые цены с учетом расхода'!N6:N27),0) -> 0 | N68: 62
A69: 63 | B69: . СМЕТНАЯ ПРИБЫЛЬ - | C69: Б | D69: 0 | F69: =ROUND(SUMIF(Определители!I6:I27,"=;",'Базовые цены с учетом расхода'!O6:O27),0) -> 0 | N69: 63
A70: 64 | B70: ВСЕГО, СТОИМОСТЬ ПЕРЕВОЗКИ ГРУЗОВ - | C70: ! | D70: 0 | F70: =ROUND((F65+F68+F69),0) -> 0 | N70: 64
A71: 65 | B71: СТОИМОСТЬ ПУСКОНАЛАДОЧНЫХ РАБОТ - | C71: Б | D71: 0 | F71: =ROUND(SUMIF(Определители!I6:I27,"=9",'Базовые цены с учетом расхода'!B6:B27),0) -> 0 | G71: =ROUND(SUMIF(Определители!I6:I27,"=9",'Базовые цены с учетом расхода'!C6:C27),0) -> 0 | H71: =ROUND(SUMIF(Определители!I6:I27,"=9",'Базовые цены с учетом расхода'!D6:D27),0) -> 0 | I71: =ROUND(SUMIF(Определители!I6:I27,"=9",'Базовые цены с учетом расхода'!E6:E27),0) -> 0 | J71: =ROUND(SUMIF(Определители!I6:I27,"=9",'Базовые цены с учетом расхода'!I6:I27),8) -> 0 | K71: =ROUND(SUMIF(Определители!I6:I27,"=9",'Базовые цены с учетом расхода'!K6:K27),8) -> 0 | L71: =ROUND(SUMIF(Определители!I6:I27,"=9",'Базовые цены с учетом расхода'!F6:F27),0) -> 0 | N71: 65
A72: 66 | B72: . НАКЛАДНЫЕ РАСХОДЫ - | C72: Б | D72: 0 | F72: =ROUND(SUMIF(Определители!I6:I27,"=9",'Базовые цены с учетом расхода'!N6:N27),0) -> 0 | N72: 66
A73: 67 | B73: . СМЕТНАЯ ПРИБЫЛЬ - | C73: Б | D73: 0 | F73: =ROUND(SUMIF(Определители!I6:I27,"=9",'Базовые цены с учетом расхода'!O6:O27),0) -> 0 | N73: 67
A74: 68 | B74: ВСЕГО, СТОИМОСТЬ ПУСКОНАЛАДОЧНЫХ РАБОТ - | C74: ! | D74: 0 | F74: =ROUND((F71+F72+F73),0) -> 0 | N74: 68
A75: 69 | B75: СТОИМОСТЬ ПРОЧИХ РАБОТ (с НР и СП) - | C75: Б | D75: 0 | F75: =ROUND(SUMIF(Определители!I6:I27,"=:",'Базовые цены с учетом расхода'!B6:B27),0) -> 0 | G75: =ROUND(SUMIF(Определители!I6:I27,"=:",'Базовые цены с учетом расхода'!C6:C27),0) -> 0 | H75: =ROUND(SUMIF(Определители!I6:I27,"=:",'Базовые цены с учетом расхода'!D6:D27),0) -> 0 | I75: =ROUND(SUMIF(Определители!I6:I27,"=:",'Базовые цены с учетом расхода'!E6:E27),0) -> 0 | J75: =ROUND(SUMIF(Определители!I6:I27,"=:",'Базовые цены с учетом расхода'!I6:I27),8) -> 0 | K75: =ROUND(SUMIF(Определители!I6:I27,"=:",'Базовые цены с учетом расхода'!K6:K27),8) -> 0 | L75: =ROUND(SUMIF(Определители!I6:I27,"=:",'Базовые цены с учетом расхода'!F6:F27),0) -> 0 | N75: 69
A76: 70 | B76: . СТОИМОСТЬ ВОЗВРАЩАЕМЫХ МАТЕРИАЛОВ - | C76: Б | D76: 0 | F76: =ROUND(SUMIF(Определители!I6:I27,"=:",'Базовые цены с учетом расхода'!H6:H27),0) -> 0 | N76: 70
A77: 71 | B77: . НАКЛАДНЫЕ РАСХОДЫ - | C77: Б | D77: 0 | F77: =ROUND(SUMIF(Определители!I6:I27,"=:",'Базовые цены с учетом расхода'!N6:N27),0) -> 0 | N77: 71
A78: 72 | B78: . СМЕТНАЯ ПРИБЫЛЬ - | C78: Б | D78: 0 | F78: =ROUND(SUMIF(Определители!I6:I27,"=:",'Базовые цены с учетом расхода'!O6:O27),0) -> 0 | N78: 72
A79: 73 | B79: ВСЕГО, СТОИМОСТЬ ПРОЧИХ РАБОТ (с НР и СП) - | C79: ! | D79: 0 | F79: =ROUND((F75+F77+F78),0) -> 0 | N79: 73
A80: 74 | B80: ВСЕГО, СТОИМОСТЬ ПРОЧИХ РАБОТ (без НР и СП) - | C80: Б | D80: 0 | F80: =ROUND(SUMIF(Определители!I6:I27,"=8",'Базовые цены с учетом расхода'!B6:B27),0) -> 0 | G80: =ROUND(SUMIF(Определители!I6:I27,"=8",'Базовые цены с учетом расхода'!C6:C27),0) -> 0 | H80: =ROUND(SUMIF(Определители!I6:I27,"=8",'Базовые цены с учетом расхода'!D6:D27),0) -> 0 | I80: =ROUND(SUMIF(Определители!I6:I27,"=8",'Базовые цены с учетом расхода'!E6:E27),0) -> 0 | J80: =ROUND(SUMIF(Определители!I6:I27,"=8",'Базовые цены с учетом расхода'!I6:I27),8) -> 0 | K80: =ROUND(SUMIF(Определители!I6:I27,"=8",'Базовые цены с учетом расхода'!K6:K27),8) -> 0 | L80: =ROUND(SUMIF(Определители!I6:I27,"=8",'Базовые цены с учетом расхода'!F6:F27),0) -> 0 | N80: 74
A81: 75 | B81: . СТОИМОСТЬ ВОЗВРАЩАЕМЫХ МАТЕРИАЛОВ - | C81: Б | D81: 0 | F81: =ROUND(SUMIF(Определители!I6:I27,"=8",'Базовые цены с учетом расхода'!H6:H27),0) -> 0 | N81: 75
A82: 76 | B82: . ВСЕГО ПО СМЕТЕ | C82: ! | D82: 0 | F82: =ROUND((F17+F27+F34+F39+F47+F52+F57+F64+F74+F79+F80+F70),0) -> 79388 | G82: =ROUND((G17+G27+G34+G39+G47+G52+G57+G64+G74+G79+G80+G70),0) -> 0 | H82: =ROUND((H17+H27+H34+H39+H47+H52+H57+H64+H74+H79+H80+H70),0) -> 0 | I82: =ROUND((I17+I27+I34+I39+I47+I52+I57+I64+I74+I79+I80+I70),0) -> 0 | J82: =ROUND((J17+J27+J34+J39+J47+J52+J57+J64+J74+J79+J80+J70),8) -> 0 | K82: =ROUND((K17+K27+K34+K39+K47+K52+K57+K64+K74+K79+K80+K70),8) -> 0 | L82: =ROUND((L17+L27+L34+L39+L47+L52+L57+L64+L74+L79+L80+L70),0) -> 0 | N82: 76
A83: 77 | B83: ВСЕГО СТОИМОСТЬ ВОЗВРАЩАЕМЫХ МАТЕРИАЛОВ - | C83: ! | D83: 0 | F83: =ROUND((F23+F31+F36+F43+F49+F54+F61+F76+F81),0) -> 0 | N83: 77
A84: 78 | B84: ВСЕГО НАКЛАДНЫЕ РАСХОДЫ | C84: ! | D84: 0 | F84: =ROUND((F24+F32+F37+F44+F50+F55+F62+F72+F77+F68),0) -> 5620 | N84: 78
A85: 79 | B85: ВСЕГО СМЕТНАЯ ПРИБЫЛЬ | C85: ! | D85: 0 | F85: =ROUND((F25+F33+F38+F45+F51+F56+F63+F73+F78+F69),0) -> 3672 | N85: 79
A86: 80 | B86: в т.ч. Вспомогательные материалы от стоимости материалов | C86: h | D86: 0 | F86: =ROUND(SUM('Базовые цены с учетом расхода'!X6:X27),0) -> 0 | L86: =ROUND(SUM('Базовые цены с учетом расхода'!X6:X27),0) -> 0 | N86: 80
A87: 81 | B87: в т.ч. Вспомогательные материалы от ОЗП | C87: h | D87: 0 | F87: =ROUND(SUM(G87:N87),0) -> 0 | L87: =ROUND(SUM('Базовые цены с учетом расхода'!AE6:AE27),0) -> 0 | N87: 81
A88: 82 | B88: Оплата основных рабочих | C88: h | D88: 0 | F88: =ROUND(SUM('Базовые цены с учетом расхода'!C6:C27),0) -> 4986 | N88: 82
A89: 83 | B89: Оплата механизаторов | C89: h | D89: 0 | F89: =ROUND(SUM('Базовые цены с учетом расхода'!E6:E27),0) -> 488 | N89: 83
A90: 84 | B90: Сметная заработная плата | C90: s | D90: 0 | F90: =ROUND((F88+F89),0) -> 5474 | N90: 84
A91: 85 | B91: Трудозатраты осн. рабочих | C91: h | D91: 0 | J91: =ROUND(SUM('Базовые цены с учетом расхода'!I6:I27),8) -> 414.4874895 | N91: 85
A92: 86 | B92: Трудозатраты механизаторов | C92: h | D92: 0 | J92: =ROUND(SUM('Базовые цены с учетом расхода'!K6:K27),8) -> 34.2138625 | N92: 86
A93: 87 | B93: Нормативная трудоемкость | C93: s | D93: 0 | J93: =ROUND((J91+J92),8) -> 448.701352 | N93: 87
A94: 88 | B94: Промежуточная строка | C94: k | D94: 100 | F94: =ROUND((F84)*D94,0) -> 562000 | N94: 88
A95: 89 | B95: % НР | C95: d | D95: 0 | F95: =ROUND((F94/F90),0) -> 103 | N95: 89
A96: 90 | B96: Промежуточная строка | C96: k | D96: 100 | F96: =ROUND((F85)*D96,0) -> 367200 | N96: 90
A97: 91 | B97: % СП | C97: d | D97: 0 | F97: =ROUND((F96/F90),0) -> 67 | N97: 91
A98: 92 | B98: НДС 20% | C98: % | D98: 20 | F98: =ROUND((F82)*D98/100,0) -> 15878 | N98: 92
A99: 93 | B99: Итого с НДС | C99: s | D99: 0 | F99: =ROUND((F82+F98),0) -> 95266 | N99: 93
